Workbook

Sheet DeepSeek 671B
A1: 模型 | B1: 卡类型 | C1: 卡数 | D1: TP | E1: PP | F1: 数据类型 | G1: vLLM版本 | H1: V0/V1 Engine | I1: Prefix Caching开启 | J1: 输入长度 (tokens) | K1: 输出长度 (tokens) | L1: 并发数 | M1: 平均首字延时 TTFT(ms) | N1: 平均生成时间 TPOT(ms) | O1: 生成吞吐量 (tokens/s) | P1: 总吞吐量(tokens/s) | Q1: 总耗时 （s) | R1: 单并发Output吞吐 (tokens/s） | S1: 单并发Decode吞吐（tokens/s) | T1: 镜像 | U1: 硬件平台 | V1: 数据日期 | W1: 数据提供者 | X1: 备注
A2: DeepSeek-R1-Channel-INT8 | B2: 120cu K100AI | C2: 16 | D2: 16 | E2: 1 | F2: int8 | G2: 0.9.2 | H2: V1 | I2: 否 | J2: 512 | K2: 512 | L2: 1 | M2: 1169.21 | N2: 16.7 | O2: 52.76 | P2: 105.43 | Q2: 9.7 | R2: =O2/L2 -> 52.76 | S2: =1000/N2 -> 59.88023952 | T2: harbor.sourcefind.cn:5443/dcu/admin/base/vllm:0.9.2-ubuntu22.04-dtk26.04-0130-py3.10-20260202 | U2: Hygon C86 7490 64-core Processor*2 /DDR5 4800 32G*24 /480G 2.5 SATA 6Gb R SSD*2 / 960G 2.5 SATA 6Gb R SSD*4 / BCM 8560-8i 4G MR*1/板载双口1G RJ45网卡x1/DCU K100-AI x8(120CU)/2200W电源模块*4 | V2: 2026.02 | W2: 刘煦
A3: DeepSeek-R1-Channel-INT8 | B3: 120cu K100AI | C3: 16 | D3: 16 | E3: 1 | F3: int8 | G3: 0.9.2 | H3: V1 | I3: 否 | J3: 512 | K3: 512 | L3: 4 | M3: 2056.71 | N3: 24.87 | O3: 138.7 | P3: 277.13 | Q3: 14.77 | R3: 34.675 | S3: 40.20908725 | V3: 2026.02 | W3: 刘煦
A4: DeepSeek-R1-Channel-INT8 | B4: 120cu K100AI | C4: 16 | D4: 16 | E4: 1 | F4: int8 | G4: 0.9.2 | H4: V1 | I4: 否 | J4: 512 | K4: 512 | L4: 8 | M4: 2440.68 | N4: 60.29 | O4: 123.16 | P4: 246.09 | Q4: 33.26 | R4: 15.395 | S4: 16.58649859 | V4: 2026.02 | W4: 刘煦
A5: DeepSeek-R1-Channel-INT8 | B5: 120cu K100AI | C5: 16 | D5: 16 | E5: 1 | F5: int8 | G5: 0.9.2 | H5: V1 | I5: 否 | J5: 512 | K5: 512 | L5: 16 | M5: 3914.41 | N5: 61.81 | O5: 230.72 | P5: 460.99 | Q5: 35.51 | R5: 14.42 | S5: 16.17861188 | V5: 2026.02 | W5: 刘煦
A6: DeepSeek-R1-Channel-INT8 | B6: 120cu K100AI | C6: 16 | D6: 16 | E6: 1 | F6: int8 | G6: 0.9.2 | H6: V1 | I6: 否 | J6: 512 | K6: 512 | L6: 32 | M6: 6876.28 | N6: 39.42 | O6: 606.11 | P6: 1211.03 | Q6: 27.03 | R6: 18.9409375 | S6: 25.36783359 | V6: 2026.02 | W6: 刘煦
A7: DeepSeek-R1-Channel-INT8 | B7: 120cu K100AI | C7: 16 | D7: 16 | E7: 1 | F7: int8 | G7: 0.9.2 | H7: V1 | I7: 否 | J7: 512 | K7: 512 | L7: 64 | M7: 13104.19 | N7: 82.74 | O7: 591.38 | P7: 1181.47 | Q7: 55.41 | R7: 9.2403125 | S7: 12.0860527 | V7: 2026.02 | W7: 刘煦
A8: DeepSeek-R1-Channel-INT8 | B8: 120cu K100AI | C8: 16 | D8: 16 | E8: 1 | F8: int8 | G8: 0.9.2 | H8: V1 | I8: 否 | J8: 512 | K8: 512 | L8: 128 | M8: 22543.78 | N8: 110.79 | O8: 827.39 | P8: 1650.89 | Q8: 79.21 | R8: 6.463984375 | S8: 9.026085387 | V8: 2026.02 | W8: 刘煦
A9: DeepSeek-R1-Channel-INT8 | B9: 120cu K100AI | C9: 16 | D9: 16 | E9: 1 | F9: int8 | G9: 0.9.2 | H9: V1 | I9: 否 | J9: 4096 | K9: 1024 | L9: 1 | M9: 1657.88 | N9: 17.02 | O9: 53.69 | P9: 268.39 | Q9: 19.07 | R9: 53.69 | S9: 58.75440658 | V9: 2026.02 | W9: 刘煦
A10: DeepSeek-R1-Channel-INT8 | B10: 120cu K100AI | C10: 16 | D10: 16 | E10: 1 | F10: int8 | G10: 0.9.2 | H10: V1 | I10: 否 | J10: 4096 | K10: 1024 | L10: 4 | M10: 5113.37 | N10: 25.08 | O10: 133.1 | P10: 665.36 | Q10: 30.77 | R10: 33.275 | S10: 39.87240829 | V10: 2026.02 | W10: 刘煦
A11: DeepSeek-R1-Channel-INT8 | B11: 120cu K100AI | C11: 16 | D11: 16 | E11: 1 | F11: int8 | G11: 0.9.2 | H11: V1 | I11: 否 | J11: 4096 | K11: 1024 | L11: 8 | M11: 11173.09 | N11: 60.52 | O11: 112.07 | P11: 560.26 | Q11: 73.09 | R11: 14.00875 | S11: 16.52346332 | V11: 2026.02 | W11: 刘煦
A12: DeepSeek-R1-Channel-INT8 | B12: 120cu K100AI | C12: 16 | D12: 16 | E12: 1 | F12: int8 | G12: 0.9.2 | H12: V1 | I12: 否 | J12: 4096 | K12: 1024 | L12: 16 | M12: 21760.36 | N12: 65.3 | O12: 184.86 | P12: 924.12 | Q12: 88.63 | R12: 11.55375 | S12: 15.31393568 | V12: 2026.02 | W12: 刘煦
A13: DeepSeek-R1-Channel-INT8 | B13: 120cu K100AI | C13: 16 | D13: 16 | E13: 1 | F13: int8 | G13: 0.9.2 | H13: V1 | I13: 否 | J13: 4096 | K13: 1024 | L13: 32 | M13: 34979.27 | N13: 53.81 | O13: 331.4 | P13: 1655.52 | Q13: 98.88 | R13: 10.35625 | S13: 18.58390634 | V13: 2026.02 | W13: 刘煦
A14: DeepSeek-R1-Channel-INT8 | B14: 120cu K100AI | C14: 16 | D14: 16 | E14: 1 | F14: int8 | G14: 0.9.2 | H14: V1 | I14: 否 | J14: 4096 | K14: 1024 | L14: 64 | M14: 83499.33 | N14: 68.52 | O14: 331.13 | P14: 1654.05 | Q14: 197.92 | R14: 5.17390625 | S14: 14.59427904 | V14: 2026.02 | W14: 刘煦
A15: DeepSeek-R1-Channel-INT8 | B15: 120cu K100AI | C15: 16 | D15: 16 | E15: 1 | F15: int8 | G15: 0.9.2 | H15: V1 | I15: 否 | J15: 4096 | K15: 1024 | L15: 128 | M15: 185318.3 | N15: 71.74 | O15: 325.55 | P15: 1625.67 | Q15: 402.61 | R15: 2.543359375 | S15: 13.93922498 | V15: 2026.02 | W15: 刘煦
A16: DeepSeek-R1-Channel-INT8 | B16: 120cu K100AI | C16: 16 | D16: 16 | E16: 1 | F16: int8 | G16: 0.9.2 | H16: V1 | I16: 否 | J16: 16384 | K16: 1024 | L16: 1 | M16: 6566.2 | N16: 16.56 | O16: 43.57 | P16: 740.6 | Q16: 23.5 | R16: 43.57 | S16: 60.38647343 | V16: 2026.02 | W16: 刘煦
A17: DeepSeek-R1-Channel-INT8 | B17: 120cu K100AI | C17: 16 | D17: 16 | E17: 1 | F17: int8 | G17: 0.9.2 | H17: V1 | I17: 否 | J17: 16384 | K17: 1024 | L17: 4 | M17: 21464.02 | N17: 28.76 | O17: 80.48 | P17: 1368.11 | Q17: 50.89 | R17: 20.12 | S17: 34.7705146 | V17: 2026.02 | W17: 刘煦
A18: DeepSeek-R1-Channel-INT8 | B18: 120cu K100AI | C18: 16 | D18: 16 | E18: 1 | F18: int8 | G18: 0.9.2 | H18: V1 | I18: 否 | J18: 16384 | K18: 1024 | L18: 8 | M18: 36647.01 | N18: 74.68 | O18: 72.42 | P18: 1231.14 | Q18: 113.11 | R18: 9.0525 | S18: 13.39046599 | V18: 2026.02 | W18: 刘煦
A19: DeepSeek-R1-Channel-INT8 | B19: 120cu K100AI | C19: 16 | D19: 16 | E19: 1 | F19: int8 | G19: 0.9.2 | H19: V1 | I19: 否 | J19: 16384 | K19: 1024 | L19: 16 | M19: 94390.79 | N19: 94.77 | O19: 66.06 | P19: 1123.02 | Q19: 248 | R19: 4.12875 | S19: 10.5518624 | V19: 2026.02 | W19: 刘煦
A20: DeepSeek-R1-Channel-INT8 | B20: 120cu K100AI | C20: 16 | D20: 16 | E20: 1 | F20: int8 | G20: 0.9.2 | H20: V1 | I20: 否 | J20: 16384 | K20: 1024 | L20: 32 | M20: 216075.4 | N20: 101 | O20: 66.25 | P20: 1126.23 | Q20: 494.59 | R20: 2.0703125 | S20: 9.900990099 | T20: harbor.sourcefind.cn:5443/dcu/admin/base/vllm:0.9.2-ubuntu22.04-dtk25.04.2-1226-das1.7-py3.10-20251226 | U20: Hygon C86 7490 64-core Processor*2 /DDR5 4800 32G*24 /480G 2.5 SATA 6Gb R SSD*2 / 960G 2.5 SATA 6Gb R SSD*4 / BCM 8560-8i 4G MR*1/板载双口1G RJ45网卡x1/DCU K100-AI x8(120CU)/2200W电源模块*4 | V20: 2026.02 | W20: 刘煦
A21: DeepSeek-R1-AWQ | B21: 120cu K100AI | C21: 8 | D21: 8 | E21: 1 | F21: int4 | G21: 0.9.2 | H21: V1 | I21: 否 | J21: 512 | K21: 512 | L21: 1 | M21: 522.84 | N21: 11.58 | O21: 79.47 | P21: 158.78 | Q21: 6.44 | R21: 79.47 | S21: 86.35578584 | V21: 2026.02 | W21: 刘煦
A22: DeepSeek-R1-AWQ | B22: 120cu K100AI | C22: 8 | D22: 8 | E22: 1 | F22: int4 | G22: 0.9.2 | H22: V1 | I22: 否 | J22: 512 | K22: 512 | L22: 4 | M22: 2055.86 | N22: 14.5 | O22: 216.31 | P22: 432.2 | Q22: 9.47 | R22: 54.0775 | S22: 68.96551724 | V22: 2026.02 | W22: 刘煦
A23: DeepSeek-R1-AWQ | B23: 120cu K100AI | C23: 8 | D23: 8 | E23: 1 | F23: int4 | G23: 0.9.2 | H23: V1 | I23: 否 | J23: 512 | K23: 512 | L23: 8 | M23: 3502.9 | N23: 17.3 | O23: 331.74 | P23: 662.84 | Q23: 12.35 | R23: 41.4675 | S23: 57.80346821 | V23: 2026.02 | W23: 刘煦
A24: DeepSeek-R1-AWQ | B24: 120cu K100AI | C24: 8 | D24: 8 | E24: 1 | F24: int4 | G24: 0.9.2 | H24: V1 | I24: 否 | J24: 512 | K24: 512 | L24: 16 | M24: 3814.19 | N24: 35.85 | O24: 370.08 | P24: 739.43 | Q24: 22.14 | R24: 23.13 | S24: 27.89400279 | V24: 2026.02 | W24: 刘煦
A25: DeepSeek-R1-AWQ | B25: 120cu K100AI | C25: 8 | D25: 8 | E25: 1 | F25: int4 | G25: 0.9.2 | H25: V1 | I25: 否 | J25: 512 | K25: 512 | L25: 32 | M25: 7993.05 | N25: 46.83 | O25: 513 | P25: 1025.01 | Q25: 31.94 | R25: 16.03125 | S25: 21.35383301 | V25: 2026.02 | W25: 刘煦
A26: DeepSeek-R1-AWQ | B26: 120cu K100AI | C26: 8 | D26: 8 | E26: 1 | F26: int4 | G26: 0.9.2 | H26: V1 | I26: 否 | J26: 512 | K26: 512 | L26: 64 | M26: 15094.63 | N26: 70.45 | O26: 641.07 | P26: 1280.73 | Q26: 51.11 | R26: 10.01671875 | S26: 14.19446416 | V26: 2026.02 | W26: 刘煦
A27: DeepSeek-R1-AWQ | B27: 120cu K100AI | C27: 8 | D27: 8 | E27: 1 | F27: int4 | G27: 0.9.2 | H27: V1 | I27: 否 | J27: 512 | K27: 512 | L27: 128 | M27: 22601.33 | N27: 148.01 | O27: 544.92 | P27: 1087.28 | Q27: 120.27 | R27: 4.2571875 | S27: 6.75630025 | V27: 2026.02 | W27: 刘煦
A28: DeepSeek-R1-AWQ | B28: 120cu K100AI | C28: 8 | D28: 8 | E28: 1 | F28: int4 | G28: 0.9.2 | H28: V1 | I28: 否 | J28: 4096 | K28: 1024 | L28: 1 | M28: 2227.9 | N28: 10.62 | O28: 78.23 | P28: 391.07 | Q28: 13.09 | R28: 78.23 | S28: 94.16195857 | V28: 2026.02 | W28: 刘煦
A29: DeepSeek-R1-AWQ | B29: 120cu K100AI | C29: 8 | D29: 8 | E29: 1 | F29: int4 | G29: 0.9.2 | H29: V1 | I29: 否 | J29: 4096 | K29: 1024 | L29: 4 | M29: 6599.84 | N29: 15.04 | O29: 186.26 | P29: 931.14 | Q29: 21.99 | R29: 46.565 | S29: 66.4893617 | V29: 2026.02 | W29: 刘煦
A30: DeepSeek-R1-AWQ | B30: 120cu K100AI | C30: 8 | D30: 8 | E30: 1 | F30: int4 | G30: 0.9.2 | H30: V1 | I30: 否 | J30: 4096 | K30: 1024 | L30: 8 | M30: 13996.42 | N30: 18.08 | O30: 252.11 | P30: 1260.31 | Q30: 32.49 | R30: 31.51375 | S30: 55.30973451 | V30: 2026.02 | W30: 刘煦
A31: DeepSeek-R1-AWQ | B31: 120cu K100AI | C31: 8 | D31: 8 | E31: 1 | F31: int4 | G31: 0.9.2 | H31: V1 | I31: 否 | J31: 4096 | K31: 1024 | L31: 16 | M31: 22784.56 | N31: 43.38 | O31: 243.92 | P31: 1219.36 | Q31: 67.17 | R31: 15.245 | S31: 23.05209774 | V31: 2026.02 | W31: 刘煦
A32: DeepSeek-R1-AWQ | B32: 120cu K100AI | C32: 8 | D32: 8 | E32: 1 | F32: int4 | G32: 0.9.2 | H32: V1 | I32: 否 | J32: 4096 | K32: 1024 | L32: 32 | M32: 55753.99 | N32: 51.66 | O32: 226.81 | P32: 1133.05 | Q32: 144.47 | R32: 7.0878125 | S32: 19.35733643 | V32: 2026.02 | W32: 刘煦
A33: DeepSeek-R1-AWQ | B33: 120cu K100AI | C33: 8 | D33: 8 | E33: 1 | F33: int4 | G33: 0.9.2 | H33: V1 | I33: 否 | J33: 4096 | K33: 1024 | L33: 64 | M33: 127058.5 | N33: 54.85 | O33: 225.36 | P33: 1125.71 | Q33: 290.81 | R33: 3.52125 | S33: 18.23154057 | V33: 2026.02 | W33: 刘煦
A34: DeepSeek-R1-AWQ | B34: 120cu K100AI | C34: 8 | D34: 8 | E34: 1 | F34: int4 | G34: 0.9.2 | H34: V1 | I34: 否 | J34: 4096 | K34: 1024 | L34: 128 | M34: 276031.9 | N34: 60.62 | O34: 219.92 | P34: 1098.2 | Q34: 595.99 | R34: 1.718125 | S34: 16.49620587 | V34: 2026.02 | W34: 刘煦
A35: DeepSeek-R1-AWQ | B35: 120cu K100AI | C35: 8 | D35: 8 | E35: 1 | F35: int4 | G35: 0.9.2 | H35: V1 | I35: 否 | J35: 16384 | K35: 1024 | L35: 1 | M35: 9248 | N35: 10.59 | O35: 50.99 | P35: 866.73 | Q35: 20.08 | R35: 50.99 | S35: 94.42870633 | V35: 2026.02 | W35: 刘煦
A36: DeepSeek-R1-AWQ | B36: 120cu K100AI | C36: 8 | D36: 8 | E36: 1 | F36: int4 | G36: 0.9.2 | H36: V1 | I36: 否 | J36: 16384 | K36: 1024 | L36: 4 | M36: 25592.46 | N36: 24.87 | O36: 80.26 | P36: 1364.3 | Q36: 51.04 | R36: 20.065 | S36: 40.20908725 | V36: 2026.02 | W36: 刘煦
A37: DeepSeek-R1-AWQ | B37: 120cu K100AI | C37: 8 | D37: 8 | E37: 1 | F37: int4 | G37: 0.9.2 | H37: V1 | I37: 否 | J37: 16384 | K37: 1024 | L37: 8 | M37: 54770.15 | N37: 29.53 | O37: 73.53 | P37: 1249.92 | Q37: 111.41 | R37: 9.19125 | S37: 33.86386725 | V37: 2026.02 | W37: 刘煦
A38: DeepSeek-R1-AWQ | B38: 120cu K100AI | C38: 8 | D38: 8 | E38: 1 | F38: int4 | G38: 0.9.2 | H38: V1 | I38: 否 | J38: 16384 | K38: 1024 | L38: 16 | M38: 110712.1 | N38: 38.43 | O38: 69.92 | P38: 1188.6 | Q38: 234.32 | R38: 4.37 | S38: 26.0213375 | V38: 2026.02 | W38: 刘煦
A39: DeepSeek-R1-AWQ | B39: 120cu K100AI | C39: 8 | D39: 8 | E39: 1 | F39: int4 | G39: 0.9.2 | H39: V1 | I39: 否 | J39: 16384 | K39: 1024 | L39: 32 | M39: 224196.1 | N39: 45.8 | O39: 71.78 | P39: 1220.17 | Q39: 456.51 | R39: 2.243125 | S39: 21.83406114 | V39: 2026.02 | W39: 刘煦

Sheet DeepSeek蒸馏模型
A1: 模型 | B1: 卡类型 | C1: 卡数 | D1: 数据类型 | E1: vLLM版本 | F1: V0/V1 Engine | G1: Prefix Caching开启 | H1: 输入长度 (tokens) | I1: 输出长度 (tokens) | J1: 并发数 | K1: 平均首字延时 TTFT(ms) | L1: 平均生成时间 TPOT(ms) | M1: 生成吞吐量 (tokens/s) | N1: 总吞吐量(tokens/s) | O1: 总耗时 （s) | P1: 单并发Output吞吐 (tokens/s） | Q1: 单并发Decode吞吐（tokens/s) | R1: 镜像 | S1: 硬件平台 | T1: 数据日期 | U1: 数据提供者 | V1: 备注
A2: DeepSeek-R1-Distill-Qwen-7B | B2: K100_AI | C2: 1 | D2: float16 | E2: 0.9.2 | F2: V0 | G2: 否 | H2: 512 | I2: 512 | J2: 1 | K2: 120.47 | L2: 24.56 | M2: 40.41 | N2: 80.74 | O2: 12.67 | P2: =M2/J2 -> 40.41 | Q2: =1000/L2 -> 40.71661238 | R2: harbor.sourcefind.cn:5443/dcu/admin/base/vllm:0.9.2-ubuntu22.04-dtk25.04.2-1226-das1.7-py3.10-20251226 | S2: Hygon C86 7490 64-core Processor*2 /DDR5 4800 32G*24 /480G 2.5 SATA 6Gb R SSD*2 / 960G 2.5 SATA 6Gb R SSD*4 / BCM 8560-8i 4G MR*1/板载双口1G RJ45网卡x1/DCU K100-AI x8(120CU)/2200W电源模块*4 | T2: 2026.01 | U2: 刘玉升
A3: DeepSeek-R1-Distill-Qwen-7B | B3: K100_AI | C3: 1 | D3: float16 | E3: 0.9.2 | F3: V0 | G3: 否 | H3: 512 | I3: 512 | J3: 2 | K3: 194.23 | L3: 24.95 | M3: 79.11 | N3: 158.06 | O3: 12.94 | P3: 39.555 | Q3: 40.08016032 | T3: 2026.01 | U3: 刘玉升
A4: DeepSeek-R1-Distill-Qwen-7B | B4: K100_AI | C4: 1 | D4: float16 | E4: 0.9.2 | F4: V0 | G4: 否 | H4: 512 | I4: 512 | J4: 4 | K4: 351.74 | L4: 26.2 | M4: 149.02 | N4: 297.74 | O4: 13.74 | P4: 37.255 | Q4: 38.16793893 | T4: 2026.01 | U4: 刘玉升
A5: DeepSeek-R1-Distill-Qwen-7B | B5: K100_AI | C5: 1 | D5: float16 | E5: 0.9.2 | F5: V0 | G5: 否 | H5: 512 | I5: 512 | J5: 8 | K5: 577.74 | L5: 28.81 | M5: 267.69 | N5: 534.8 | O5: 15.3 | P5: 33.46125 | Q5: 34.71017008 | T5: 2026.01 | U5: 刘玉升
A6: DeepSeek-R1-Distill-Qwen-7B | B6: K100_AI | C6: 1 | D6: float16 | E6: 0.9.2 | F6: V0 | G6: 否 | H6: 512 | I6: 512 | J6: 16 | K6: 1195.04 | L6: 32.41 | M6: 461.28 | N6: 921.55 | O6: 17.76 | P6: 28.83 | Q6: 30.85467448 | T6: 2026.01 | U6: 刘玉升
A7: DeepSeek-R1-Distill-Qwen-7B | B7: K100_AI | C7: 1 | D7: float16 | E7: 0.9.2 | F7: V0 | G7: 否 | H7: 512 | I7: 512 | J7: 64 | K7: 4644.75 | L7: 52.26 | M7: 1044.87 | N7: 2087.64 | O7: 31.36 | P7: 16.32609375 | Q7: 19.13509376 | T7: 2026.01 | U7: 刘玉升
A8: DeepSeek-R1-Distill-Qwen-7B | B8: K100_AI | C8: 1 | D8: float16 | E8: 0.9.2 | F8: V0 | G8: 否 | H8: 512 | I8: 512 | J8: 128 | K8: 7144.53 | L8: 92.67 | M8: 1202.04 | N8: 2401.33 | O8: 54.52 | P8: 9.3909375 | Q8: 10.79097874 | T8: 2026.01 | U8: 刘玉升
A9: DeepSeek-R1-Distill-Qwen-7B | B9: K100_AI | C9: 1 | D9: float16 | E9: 0.9.2 | F9: V0 | G9: 否 | H9: 1024 | I9: 1024 | J9: 1 | K9: 187.93 | L9: 27.16 | M9: 36.61 | N9: 73.19 | O9: 27.97 | P9: 36.61 | Q9: 36.81885125 | T9: 2026.01 | U9: 刘玉升
A10: DeepSeek-R1-Distill-Qwen-7B | B10: K100_AI | C10: 1 | D10: float16 | E10: 0.9.2 | F10: V0 | G10: 否 | H10: 1024 | I10: 1024 | J10: 2 | K10: 335.33 | L10: 27.28 | M10: 72.5 | N10: 144.93 | O10: 28.25 | P10: 36.25 | Q10: 36.6568915 | T10: 2026.01 | U10: 刘玉升
A11: DeepSeek-R1-Distill-Qwen-7B | B11: K100_AI | C11: 1 | D11: float16 | E11: 0.9.2 | F11: V0 | G11: 否 | H11: 1024 | I11: 1024 | J11: 4 | K11: 627.04 | L11: 28.04 | M11: 139.75 | N11: 279.36 | O11: 29.31 | P11: 34.9375 | Q11: 35.66333809 | T11: 2026.01 | U11: 刘玉升
A12: DeepSeek-R1-Distill-Qwen-7B | B12: K100_AI | C12: 1 | D12: float16 | E12: 0.9.2 | F12: V0 | G12: 否 | H12: 1024 | I12: 1024 | J12: 8 | K12: 998.23 | L12: 31.48 | M12: 246.73 | N12: 493.19 | O12: 33.2 | P12: 30.84125 | Q12: 31.76620076 | T12: 2026.01 | U12: 刘玉升
A13: DeepSeek-R1-Distill-Qwen-7B | B13: K100_AI | C13: 1 | D13: float16 | E13: 0.9.2 | F13: V0 | G13: 否 | H13: 1024 | I13: 1024 | J13: 16 | K13: 2241.13 | L13: 35.47 | M13: 425.22 | N13: 849.51 | O13: 38.53 | P13: 26.57625 | Q13: 28.19283902 | T13: 2026.01 | U13: 刘玉升
A14: DeepSeek-R1-Distill-Qwen-7B | B14: K100_AI | C14: 1 | D14: float16 | E14: 0.9.2 | F14: V0 | G14: 否 | H14: 1024 | I14: 1024 | J14: 64 | K14: 7024.74 | L14: 66.33 | M14: 874.99 | N14: 1746.15 | O14: 74.9 | P14: 13.67171875 | Q14: 15.07613448 | T14: 2026.01 | U14: 刘玉升
A15: DeepSeek-R1-Distill-Qwen-7B | B15: K100_AI | C15: 1 | D15: float16 | E15: 0.9.2 | F15: V0 | G15: 否 | H15: 1024 | I15: 1024 | J15: 128 | K15: 11773.29 | L15: 115.74 | M15: 1006.67 | N15: 2009.86 | O15: 130.2 | P15: 7.864609375 | Q15: 8.640055296 | T15: 2026.01 | U15: 刘玉升
A16: DeepSeek-R1-Distill-Qwen-7B | B16: K100_AI | C16: 1 | D16: float16 | E16: 0.9.2 | F16: V0 | G16: 否 | H16: 2048 | I16: 2048 | J16: 1 | K16: 341.75 | L16: 28.3 | M16: 35.14 | N16: 70.27 | O16: 58.27 | P16: 35.14 | Q16: 35.33568905 | T16: 2026.01 | U16: 刘玉升
A17: DeepSeek-R1-Distill-Qwen-7B | B17: K100_AI | C17: 1 | D17: float16 | E17: 0.9.2 | F17: V0 | G17: 否 | H17: 2048 | I17: 2048 | J17: 2 | K17: 635.08 | L17: 29.14 | M17: 67.94 | N17: 135.85 | O17: 60.29 | P17: 33.97 | Q17: 34.31708991 | T17: 2026.01 | U17: 刘玉升
A18: DeepSeek-R1-Distill-Qwen-7B | B18: K100_AI | C18: 1 | D18: float16 | E18: 0.9.2 | F18: V0 | G18: 否 | H18: 2048 | I18: 2048 | J18: 4 | K18: 952.4 | L18: 31.21 | M18: 126.34 | N18: 252.62 | O18: 64.84 | P18: 31.585 | Q18: 32.0410125 | T18: 2026.01 | U18: 刘玉升
A19: DeepSeek-R1-Distill-Qwen-7B | B19: K100_AI | C19: 1 | D19: float16 | E19: 0.9.2 | F19: V0 | G19: 否 | H19: 2048 | I19: 2048 | J19: 8 | K19: 2187.46 | L19: 35.46 | M19: 219.11 | N19: 437.47 | O19: 74.77 | P19: 27.38875 | Q19: 28.20078962 | T19: 2026.01 | U19: 刘玉升
A20: DeepSeek-R1-Distill-Qwen-7B | B20: K100_AI | C20: 1 | D20: float16 | E20: 0.9.2 | F20: V0 | G20: 否 | H20: 2048 | I20: 2048 | J20: 16 | K20: 4512.57 | L20: 42.51 | M20: 358.01 | N20: 713.47 | O20: 91.53 | P20: 22.375625 | Q20: 23.52387673 | T20: 2026.01 | U20: 刘玉升
A21: DeepSeek-R1-Distill-Qwen-7B | B21: K100_AI | C21: 1 | D21: float16 | E21: 0.9.2 | F21: V0 | G21: 否 | H21: 2048 | I21: 2048 | J21: 64 | K21: 11888.5 | L21: 90.95 | M21: 661.75 | N21: 1320.29 | O21: 198.07 | P21: 10.33984375 | Q21: 10.99505223 | T21: 2026.01 | U21: 刘玉升
A22: DeepSeek-R1-Distill-Qwen-7B | B22: K100_AI | C22: 1 | D22: float16 | E22: 0.9.2 | F22: V0 | G22: 否 | H22: 2048 | I22: 2048 | J22: 128 | K22: 21440.66 | L22: 161.64 | M22: 744 | N22: 1485.22 | O22: 352.35 | P22: 5.8125 | Q22: 6.186587478 | T22: 2026.01 | U22: 刘玉升
A23: DeepSeek-R1-Distill-Qwen-7B | B23: K100_AI | C23: 1 | D23: float16 | E23: 0.9.2 | F23: V0 | G23: 否 | H23: 4096 | I23: 1024 | J23: 1 | K23: 660.88 | L23: 30.54 | M23: 32.09 | N23: 160.43 | O23: 31.91 | P23: 32.09 | Q23: 32.74394237 | T23: 2026.01 | U23: 刘玉升
A24: DeepSeek-R1-Distill-Qwen-7B | B24: K100_AI | C24: 1 | D24: float16 | E24: 0.9.2 | F24: V0 | G24: 否 | H24: 4096 | I24: 1024 | J24: 2 | K24: 983.32 | L24: 32.79 | M24: 59.31 | N24: 296.51 | O24: 34.53 | P24: 29.655 | Q24: 30.49710278 | T24: 2026.01 | U24: 刘玉升
A25: DeepSeek-R1-Distill-Qwen-7B | B25: K100_AI | C25: 1 | D25: float16 | E25: 0.9.2 | F25: V0 | G25: 否 | H25: 4096 | I25: 1024 | J25: 4 | K25: 2057.59 | L25: 36.23 | M25: 104.7 | N25: 523.18 | O25: 39.12 | P25: 26.175 | Q25: 27.60143527 | T25: 2026.01 | U25: 刘玉升
A26: DeepSeek-R1-Distill-Qwen-7B | B26: K100_AI | C26: 1 | D26: float16 | E26: 0.9.2 | F26: V0 | G26: 否 | H26: 4096 | I26: 1024 | J26: 8 | K26: 4434.26 | L26: 41.66 | M26: 174.08 | N26: 870.06 | O26: 47.06 | P26: 21.76 | Q26: 24.00384061 | T26: 2026.01 | U26: 刘玉升
A27: DeepSeek-R1-Distill-Qwen-7B | B27: K100_AI | C27: 1 | D27: float16 | E27: 0.9.2 | F27: V0 | G27: 否 | H27: 4096 | I27: 1024 | J27: 16 | K27: 7139.87 | L27: 52.58 | M27: 268.88 | N27: 1341.63 | O27: 60.93 | P27: 16.805 | Q27: 19.01863827 | T27: 2026.01 | U27: 刘玉升
A28: DeepSeek-R1-Distill-Qwen-7B | B28: K100_AI | C28: 1 | D28: float16 | E28: 0.9.2 | F28: V0 | G28: 否 | H28: 4096 | I28: 1024 | J28: 64 | K28: 22027.29 | L28: 125.8 | M28: 434.77 | N28: 2170.61 | O28: 150.74 | P28: 6.79328125 | Q28: 7.949125596 | T28: 2026.01 | U28: 刘玉升
A29: DeepSeek-R1-Distill-Qwen-7B | B29: K100_AI | C29: 1 | D29: float16 | E29: 0.9.2 | F29: V0 | G29: 否 | H29: 4096 | I29: 1024 | J29: 128 | K29: 41658.9 | L29: 230.01 | M29: 473.2 | N29: 2362.68 | O29: 276.99 | P29: 3.696875 | Q29: 4.347637059 | T29: 2026.01 | U29: 刘玉升
A30: DeepSeek-R1-Distill-Qwen-7B | B30: K100_AI | C30: 1 | D30: float16 | E30: 0.9.2 | F30: V0 | G30: 否 | H30: 16384 | I30: 1024 | J30: 1 | K30: 4177.35 | L30: 35.64 | M30: 25.2 | N30: 428.4 | O30: 40.63 | P30: 25.2 | Q30: 28.05836139 | T30: 2026.01 | U30: 刘玉升
A31: DeepSeek-R1-Distill-Qwen-7B | B31: K100_AI | C31: 1 | D31: float16 | E31: 0.9.2 | F31: V0 | G31: 否 | H31: 16384 | I31: 1024 | J31: 2 | K31: 6217.49 | L31: 42.94 | M31: 40.84 | N31: 694.29 | O31: 50.14 | P31: 20.42 | Q31: 23.28830927 | T31: 2026.01 | U31: 刘玉升
A32: DeepSeek-R1-Distill-Qwen-7B | B32: K100_AI | C32: 1 | D32: float16 | E32: 0.9.2 | F32: V0 | G32: 否 | H32: 16384 | I32: 1024 | J32: 4 | K32: 12752.16 | L32: 58 | M32: 56.82 | N32: 965.93 | O32: 72.08 | P32: 14.205 | Q32: 17.24137931 | T32: 2026.01 | U32: 刘玉升
A33: DeepSeek-R1-Distill-Qwen-7B | B33: K100_AI | C33: 1 | D33: float16 | E33: 0.9.2 | F33: V0 | G33: 否 | H33: 16384 | I33: 1024 | J33: 8 | K33: 23495.04 | L33: 85.55 | M33: 73.79 | N33: 1254.33 | O33: 111.02 | P33: 9.22375 | Q33: 11.68907072 | T33: 2026.01 | U33: 刘玉升
A34: DeepSeek-R1-Distill-Qwen-7B | B34: K100_AI | C34: 1 | D34: float16 | E34: 0.9.2 | F34: V0 | G34: 否 | H34: 16384 | I34: 1024 | J34: 16 | K34: 43717.73 | L34: 144.15 | M34: 85.7 | N34: 1456.73 | O34: 191.19 | P34: 5.35625 | Q34: 6.937218176 | T34: 2026.01 | U34: 刘玉升
A35: DeepSeek-R1-Distill-Qwen-7B | B35: K100_AI | C35: 1 | D35: float16 | E35: 0.9.2 | F35: V0 | G35: 否 | H35: 16384 | I35: 1024 | J35: 64 | K35: 233990.18 | L35: 296.38 | M35: 94.74 | N35: 1610.48 | O35: 691.75 | P35: 1.4803125 | Q35: 3.374046832 | T35: 2026.01 | U35: 刘玉升
A36: DeepSeek-R1-Distill-Qwen-7B | B36: K100_AI | C36: 1 | D36: float16 | E36: 0.9.2 | F36: V0 | G36: 否 | H36: 16384 | I36: 1024 | J36: 128 | K36: 558116.58 | L36: 333.75 | M36: 97.41 | N36: 1655.94 | O36: 1345.52 | P36: 0.761015625 | Q36: 2.996254682 | T36: 2026.01 | U36: 刘玉升
A37: DeepSeek-R1-Distill-Qwen-32B | B37: K100_AI | C37: 2 | D37: float16 | E37: 0.9.2 | F37: V0 | G37: 否 | H37: 512 | I37: 512 | J37: 1 | K37: 405.25 | L37: 108.9 | M37: 9.13 | N37: 18.25 | O37: 56.06 | P37: 9.13 | Q37: 9.182736455 | R37: harbor.sourcefind.cn:5443/dcu/admin/base/vllm:0.9.2-ubuntu22.04-dtk25.04.2-1226-das1.7-py3.10-20251226 | S37: Hygon C86 7490 64-core Processor*2 /DDR5 4800 32G*24 /480G 2.5 SATA 6Gb R SSD*2 / 960G 2.5 SATA 6Gb R SSD*4 / BCM 8560-8i 4G MR*1/板载双口1G RJ45网卡x1/DCU K100-AI x8(120CU)/2200W电源模块*4 | T37: 2026.01 | U37: 刘玉升
A38: DeepSeek-R1-Distill-Qwen-32B | B38: K100_AI | C38: 2 | D38: float16 | E38: 0.9.2 | F38: V0 | G38: 否 | H38: 512 | I38: 512 | J38: 2 | K38: 608.12 | L38: 114.92 | M38: 17.26 | N38: 34.48 | O38: 59.33 | P38: 8.63 | Q38: 8.701705534 | T38: 2026.01 | U38: 刘玉升
A39: DeepSeek-R1-Distill-Qwen-32B | B39: K100_AI | C39: 2 | D39: float16 | E39: 0.9.2 | F39: V0 | G39: 否 | H39: 512 | I39: 512 | J39: 4 | K39: 1026.47 | L39: 112.41 | M39: 35.03 | N39: 69.98 | O39: 58.47 | P39: 8.7575 | Q39: 8.896005693 | T39: 2026.01 | U39: 刘玉升
A40: DeepSeek-R1-Distill-Qwen-32B | B40: K100_AI | C40: 2 | D40: float16 | E40: 0.9.2 | F40: V0 | G40: 否 | H40: 512 | I40: 512 | J40: 8 | K40: 1806.36 | L40: 118.3 | M40: 65.79 | N40: 131.43 | O40: 62.26 | P40: 8.22375 | Q40: 8.453085376 | T40: 2026.01 | U40: 刘玉升
A41: DeepSeek-R1-Distill-Qwen-32B | B41: K100_AI | C41: 2 | D41: float16 | E41: 0.9.2 | F41: V0 | G41: 否 | H41: 512 | I41: 512 | J41: 16 | K41: 3349.38 | L41: 126.88 | M41: 120.14 | N41: 240.01 | O41: 68.19 | P41: 7.50875 | Q41: 7.881462799 | T41: 2026.01 | U41: 刘玉升
A42: DeepSeek-R1-Distill-Qwen-32B | B42: K100_AI | C42: 2 | D42: float16 | E42: 0.9.2 | F42: V0 | G42: 否 | H42: 512 | I42: 512 | J42: 64 | K42: 10065.7 | L42: 169.55 | M42: 338.79 | N42: 676.9 | O42: 96.72 | P42: 5.29359375 | Q42: 5.897965202 | T42: 2026.01 | U42: 刘玉升
A43: DeepSeek-R1-Distill-Qwen-32B | B43: K100_AI | C43: 2 | D43: float16 | E43: 0.9.2 | F43: V0 | G43: 否 | H43: 1024 | I43: 1024 | J43: 1 | K43: 583.95 | L43: 108.99 | M43: 9.14 | N43: 18.26 | O43: 112.08 | P43: 9.14 | Q43: 9.175153684 | T43: 2026.01 | U43: 刘玉升
A44: DeepSeek-R1-Distill-Qwen-32B | B44: K100_AI | C44: 2 | D44: float16 | E44: 0.9.2 | F44: V0 | G44: 否 | H44: 1024 | I44: 1024 | J44: 2 | K44: 998.6 | L44: 115.32 | M44: 17.21 | N44: 34.41 | O44: 118.97 | P44: 8.605 | Q44: 8.671522719 | T44: 2026.01 | U44: 刘玉升
A45: DeepSeek-R1-Distill-Qwen-32B | B45: K100_AI | C45: 2 | D45: float16 | E45: 0.9.2 | F45: V0 | G45: 否 | H45: 1024 | I45: 1024 | J45: 4 | K45: 1762.48 | L45: 114.08 | M45: 34.57 | N45: 69.11 | O45: 118.47 | P45: 8.6425 | Q45: 8.765778401 | T45: 2026.01 | U45: 刘玉升
A46: DeepSeek-R1-Distill-Qwen-32B | B46: K100_AI | C46: 2 | D46: float16 | E46: 0.9.2 | F46: V0 | G46: 否 | H46: 1024 | I46: 1024 | J46: 8 | K46: 3334.57 | L46: 120.81 | M46: 64.54 | N46: 129.01 | O46: 126.92 | P46: 8.0675 | Q46: 8.277460475 | T46: 2026.01 | U46: 刘玉升
A47: DeepSeek-R1-Distill-Qwen-32B | B47: K100_AI | C47: 2 | D47: float16 | E47: 0.9.2 | F47: V0 | G47: 否 | H47: 1024 | I47: 1024 | J47: 16 | K47: 6341.7 | L47: 132.74 | M47: 115.27 | N47: 230.28 | O47: 142.14 | P47: 7.204375 | Q47: 7.533524183 | T47: 2026.01 | U47: 刘玉升
A48: DeepSeek-R1-Distill-Qwen-32B | B48: K100_AI | C48: 2 | D48: float16 | E48: 0.9.2 | F48: V0 | G48: 否 | H48: 1024 | I48: 1024 | J48: 64 | K48: 17714.1 | L48: 196.24 | M48: 299.96 | N48: 598.61 | O48: 218.48 | P48: 4.686875 | Q48: 5.09580106 | T48: 2026.01 | U48: 刘玉升
A49: DeepSeek-R1-Distill-Qwen-32B | B49: K100_AI | C49: 2 | D49: float16 | E49: 0.9.2 | F49: V0 | G49: 否 | H49: 2048 | I49: 2048 | J49: 1 | K49: 1006.66 | L49: 109.47 | M49: 9.1 | N49: 18.19 | O49: 225.09 | P49: 9.1 | Q49: 9.13492281 | T49: 2026.01 | U49: 刘玉升
A50: DeepSeek-R1-Distill-Qwen-32B | B50: K100_AI | C50: 2 | D50: float16 | E50: 0.9.2 | F50: V0 | G50: 否 | H50: 2048 | I50: 2048 | J50: 2 | K50: 1775.54 | L50: 116.41 | M50: 17.06 | N50: 34.12 | O50: 240.06 | P50: 8.53 | Q50: 8.590327291 | T50: 2026.01 | U50: 刘玉升
A51: DeepSeek-R1-Distill-Qwen-32B | B51: K100_AI | C51: 2 | D51: float16 | E51: 0.9.2 | F51: V0 | G51: 否 | H51: 2048 | I51: 2048 | J51: 4 | K51: 3361.3 | L51: 116.95 | M51: 33.75 | N51: 67.48 | O51: 242.75 | P51: 8.4375 | Q51: 8.550662676 | T51: 2026.01 | U51: 刘玉升
A52: DeepSeek-R1-Distill-Qwen-32B | B52: K100_AI | C52: 2 | D52: float16 | E52: 0.9.2 | F52: V0 | G52: 否 | H52: 2048 | I52: 2048 | J52: 8 | K52: 6387.23 | L52: 127.26 | M52: 61.39 | N52: 122.56 | O52: 266.9 | P52: 7.67375 | Q52: 7.85792865 | T52: 2026.01 | U52: 刘玉升
A53: DeepSeek-R1-Distill-Qwen-32B | B53: K100_AI | C53: 2 | D53: float16 | E53: 0.9.2 | F53: V0 | G53: 否 | H53: 2048 | I53: 2048 | J53: 16 | K53: 10287.47 | L53: 147.67 | M53: 104.84 | N53: 208.92 | O53: 312.57 | P53: 6.5525 | Q53: 6.771856166 | T53: 2026.01 | U53: 刘玉升
A54: DeepSeek-R1-Distill-Qwen-32B | B54: K100_AI | C54: 2 | D54: float16 | E54: 0.9.2 | F54: V0 | G54: 否 | H54: 2048 | I54: 2048 | J54: 64 | K54: 31003.85 | L54: 256 | M54: 192.1 | N54: 383.28 | O54: 682.3 | P54: 3.0015625 | Q54: 3.90625 | T54: 2026.01 | U54: 刘玉升
A55: DeepSeek-R1-Distill-Qwen-32B | B55: K100_AI | C55: 2 | D55: float16 | E55: 0.9.2 | F55: V0 | G55: 否 | H55: 4096 | I55: 1024 | J55: 1 | K55: 1812.49 | L55: 110.64 | M55: 8.9 | N55: 44.51 | O55: 115 | P55: 8.9 | Q55: 9.038322487 | T55: 2026.01 | U55: 刘玉升
A56: DeepSeek-R1-Distill-Qwen-32B | B56: K100_AI | C56: 2 | D56: float16 | E56: 0.9.2 | F56: V0 | G56: 否 | H56: 4096 | I56: 1024 | J56: 2 | K56: 3408.27 | L56: 118.28 | M56: 16.46 | N56: 82.3 | O56: 124.41 | P56: 8.23 | Q56: 8.454514711 | T56: 2026.01 | U56: 刘玉升
A57: DeepSeek-R1-Distill-Qwen-32B | B57: K100_AI | C57: 2 | D57: float16 | E57: 0.9.2 | F57: V0 | G57: 否 | H57: 4096 | I57: 1024 | J57: 4 | K57: 6502.42 | L57: 121.97 | M57: 31.2 | N57: 155.92 | O57: 131.27 | P57: 7.8 | Q57: 8.198737394 | T57: 2026.01 | U57: 刘玉升
A58: DeepSeek-R1-Distill-Qwen-32B | B58: K100_AI | C58: 2 | D58: float16 | E58: 0.9.2 | F58: V0 | G58: 否 | H58: 4096 | I58: 1024 | J58: 8 | K58: 11394.09 | L58: 137.54 | M58: 53.86 | N58: 269.18 | O58: 152.1 | P58: 6.7325 | Q58: 7.270612186 | T58: 2026.01 | U58: 刘玉升
A59: DeepSeek-R1-Distill-Qwen-32B | B59: K100_AI | C59: 2 | D59: float16 | E59: 0.9.2 | F59: V0 | G59: 否 | H59: 4096 | I59: 1024 | J59: 16 | K59: 18390.82 | L59: 168.01 | M59: 86.11 | N59: 429.66 | O59: 190.27 | P59: 5.381875 | Q59: 5.952026665 | T59: 2026.01 | U59: 刘玉升
A60: DeepSeek-R1-Distill-Qwen-32B | B60: K100_AI | C60: 2 | D60: float16 | E60: 0.9.2 | F60: V0 | G60: 否 | H60: 4096 | I60: 1024 | J60: 64 | K60: 120877.56 | L60: 262.24 | M60: 122.74 | N60: 612.77 | O60: 533.95 | P60: 1.9178125 | Q60: 3.813300793 | T60: 2026.01 | U60: 刘玉升
A61: DeepSeek-R1-Distill-Qwen-32B | B61: K100_AI | C61: 2 | D61: float16 | E61: 0.9.2 | F61: V0 | G61: 否 | H61: 16384 | I61: 1024 | J61: 1 | K61: 10145.47 | L61: 115.14 | M61: 8 | N61: 136.06 | O61: 127.94 | P61: 8 | Q61: 8.685079034 | T61: 2026.01 | U61: 刘玉升
A62: DeepSeek-R1-Distill-Qwen-32B | B62: K100_AI | C62: 2 | D62: float16 | E62: 0.9.2 | F62: V0 | G62: 否 | H62: 16384 | I62: 1024 | J62: 2 | K62: 15219.22 | L62: 138.15 | M62: 13.08 | N62: 222.38 | O62: 156.55 | P62: 6.54 | Q62: 7.238508867 | T62: 2026.01 | U62: 刘玉升
A63: DeepSeek-R1-Distill-Qwen-32B | B63: K100_AI | C63: 2 | D63: float16 | E63: 0.9.2 | F63: V0 | G63: 否 | H63: 16384 | I63: 1024 | J63: 4 | K63: 28831.88 | L63: 166.35 | M63: 20.58 | N63: 349.88 | O63: 199.01 | P63: 5.145 | Q63: 6.011421701 | T63: 2026.01 | U63: 刘玉升
A64: DeepSeek-R1-Distill-Qwen-32B | B64: K100_AI | C64: 2 | D64: float16 | E64: 0.9.2 | F64: V0 | G64: 否 | H64: 16384 | I64: 1024 | J64: 8 | K64: 51556.75 | L64: 233.45 | M64: 28.21 | N64: 479.57 | O64: 290.38 | P64: 3.52625 | Q64: 4.283572499 | T64: 2026.01 | U64: 刘玉升
A65: DeepSeek-R1-Distill-Qwen-32B | B65: K100_AI | C65: 2 | D65: float16 | E65: 0.9.2 | F65: V0 | G65: 否 | H65: 16384 | I65: 1024 | J65: 16 | K65: 160651.58 | L65: 275.16 | M65: 27.4 | N65: 465.78 | O65: 597.94 | P65: 1.7125 | Q65: 3.634249164 | T65: 2026.01 | U65: 刘玉升
A66: DeepSeek-R1-Distill-Qwen-32B | B66: K100_AI | C66: 2 | D66: float16 | E66: 0.9.2 | F66: V0 | G66: 否 | H66: 16384 | I66: 1024 | J66: 64 | K66: 948869.07 | L66: 305.39 | M66: 30.06 | N66: 510.93 | O66: 2180.45 | P66: =M66/J66 -> 0.4696875 | Q66: =1000/L66 -> 3.274501457 | T66: 2026.01 | U66: 刘玉升
A67: DeepSeek-R1-Distill-Qwen-32B | B67: K100_AI | C67: 4 | D67: float16 | E67: 0.9.2 | F67: V0 | G67: 否 | H67: 512 | I67: 512 | J67: 1 | K67: 283.1 | L67: 79.62 | M67: 12.5 | N67: 24.97 | O67: 40.97 | P67: 12.5 | Q67: 12.55965838 | T67: 2026.01 | U67: 刘玉升
A68: DeepSeek-R1-Distill-Qwen-32B | B68: K100_AI | C68: 4 | D68: float16 | E68: 0.9.2 | F68: V0 | G68: 否 | H68: 512 | I68: 512 | J68: 2 | K68: 425.86 | L68: 82.1 | M68: 24.16 | N68: 48.28 | O68: 42.38 | P68: 12.08 | Q68: 12.18026797 | T68: 2026.01 | U68: 刘玉升
A69: DeepSeek-R1-Distill-Qwen-32B | B69: K100_AI | C69: 4 | D69: float16 | E69: 0.9.2 | F69: V0 | G69: 否 | H69: 512 | I69: 512 | J69: 4 | K69: 679.66 | L69: 80.62 | M69: 48.91 | N69: 97.72 | O69: 41.88 | P69: 12.2275 | Q69: 12.40387001 | T69: 2026.01 | U69: 刘玉升
A70: DeepSeek-R1-Distill-Qwen-32B | B70: K100_AI | C70: 4 | D70: float16 | E70: 0.9.2 | F70: V0 | G70: 否 | H70: 512 | I70: 512 | J70: 8 | K70: 1167.72 | L70: 85.48 | M70: 91.32 | N70: 182.44 | O70: 44.85 | P70: 11.415 | Q70: 11.69864296 | T70: 2026.01 | U70: 刘玉升
A71: DeepSeek-R1-Distill-Qwen-32B | B71: K100_AI | C71: 4 | D71: float16 | E71: 0.9.2 | F71: V0 | G71: 否 | H71: 512 | I71: 512 | J71: 16 | K71: 2140.98 | L71: 90.98 | M71: 168.43 | N71: 336.5 | O71: 48.64 | P71: 10.526875 | Q71: 10.99142669 | T71: 2026.01 | U71: 刘玉升
A72: DeepSeek-R1-Distill-Qwen-32B | B72: K100_AI | C72: 4 | D72: float16 | E72: 0.9.2 | F72: V0 | G72: 否 | H72: 512 | I72: 512 | J72: 64 | K72: 7761.19 | L72: 125.99 | M72: 454.13 | N72: 907.35 | O72: 72.16 | P72: 7.09578125 | Q72: 7.937137868 | T72: 2026.01 | U72: 刘玉升
A73: DeepSeek-R1-Distill-Qwen-32B | B73: K100_AI | C73: 4 | D73: float16 | E73: 0.9.2 | F73: V0 | G73: 否 | H73: 512 | I73: 512 | J73: 128 | K73: 11083.37 | L73: 168.26 | M73: 675 | N73: 1348.46 | O73: 97.09 | P73: 5.2734375 | Q73: 5.943183169 | T73: 2026.01 | U73: 刘玉升
A74: DeepSeek-R1-Distill-Qwen-32B | B74: K100_AI | C74: 4 | D74: float16 | E74: 0.9.2 | F74: V0 | G74: 否 | H74: 1024 | I74: 1024 | J74: 1 | K74: 409.65 | L74: 82.38 | M74: 12.09 | N74: 24.17 | O74: 84.69 | P74: 12.09 | Q74: 12.13886866 | T74: 2026.01 | U74: 刘玉升
A75: DeepSeek-R1-Distill-Qwen-32B | B75: K100_AI | C75: 4 | D75: float16 | E75: 0.9.2 | F75: V0 | G75: 否 | H75: 1024 | I75: 1024 | J75: 2 | K75: 658.51 | L75: 85.37 | M75: 23.28 | N75: 46.53 | O75: 87.99 | P75: 11.64 | Q75: 11.71371676 | T75: 2026.01 | U75: 刘玉升
A76: DeepSeek-R1-Distill-Qwen-32B | B76: K100_AI | C76: 4 | D76: float16 | E76: 0.9.2 | F76: V0 | G76: 否 | H76: 1024 | I76: 1024 | J76: 4 | K76: 1150.69 | L76: 84.55 | M76: 46.74 | N76: 93.42 | O76: 87.64 | P76: 11.685 | Q76: 11.82732111 | T76: 2026.01 | U76: 刘玉升
A77: DeepSeek-R1-Distill-Qwen-32B | B77: K100_AI | C77: 4 | D77: float16 | E77: 0.9.2 | F77: V0 | G77: 否 | H77: 1024 | I77: 1024 | J77: 8 | K77: 2134.64 | L77: 91.15 | M77: 85.89 | N77: 171.68 | O77: 95.38 | P77: 10.73625 | Q77: 10.97092704 | T77: 2026.01 | U77: 刘玉升
A78: DeepSeek-R1-Distill-Qwen-32B | B78: K100_AI | C78: 4 | D78: float16 | E78: 0.9.2 | F78: V0 | G78: 否 | H78: 1024 | I78: 1024 | J78: 16 | K78: 4056.99 | L78: 95.89 | M78: 160.38 | N78: 320.42 | O78: 102.15 | P78: 10.02375 | Q78: 10.42861612 | T78: 2026.01 | U78: 刘玉升
A79: DeepSeek-R1-Distill-Qwen-32B | B79: K100_AI | C79: 4 | D79: float16 | E79: 0.9.2 | F79: V0 | G79: 否 | H79: 1024 | I79: 1024 | J79: 64 | K79: 11028.47 | L79: 143.06 | M79: 416.38 | N79: 830.93 | O79: 157.4 | P79: 6.5059375 | Q79: 6.990074095 | T79: 2026.01 | U79: 刘玉升
A80: DeepSeek-R1-Distill-Qwen-32B | B80: K100_AI | C80: 4 | D80: float16 | E80: 0.9.2 | F80: V0 | G80: 否 | H80: 1024 | I80: 1024 | J80: 128 | K80: 18437.73 | L80: 194.17 | M80: 603.74 | N80: 1205.38 | O80: 217.1 | P80: 4.71671875 | Q80: 5.150126178 | T80: 2026.01 | U80: 刘玉升
A81: DeepSeek-R1-Distill-Qwen-32B | B81: K100_AI | C81: 4 | D81: float16 | E81: 0.9.2 | F81: V0 | G81: 否 | H81: 2048 | I81: 2048 | J81: 1 | K81: 668.18 | L81: 84.57 | M81: 11.78 | N81: 23.56 | O81: 173.79 | P81: 11.78 | Q81: 11.82452406 | T81: 2026.01 | U81: 刘玉升
A82: DeepSeek-R1-Distill-Qwen-32B | B82: K100_AI | C82: 4 | D82: float16 | E82: 0.9.2 | F82: V0 | G82: 否 | H82: 2048 | I82: 2048 | J82: 2 | K82: 1162.36 | L82: 87.9 | M82: 22.62 | N82: 45.23 | O82: 181.09 | P82: 11.31 | Q82: 11.37656428 | T82: 2026.01 | U82: 刘玉升
A83: DeepSeek-R1-Distill-Qwen-32B | B83: K100_AI | C83: 4 | D83: float16 | E83: 0.9.2 | F83: V0 | G83: 否 | H83: 2048 | I83: 2048 | J83: 4 | K83: 2146.74 | L83: 88.28 | M83: 44.8 | N83: 89.58 | O83: 182.86 | P83: 11.2 | Q83: 11.32759402 | T83: 2026.01 | U83: 刘玉升
A84: DeepSeek-R1-Distill-Qwen-32B | B84: K100_AI | C84: 4 | D84: float16 | E84: 0.9.2 | F84: V0 | G84: 否 | H84: 2048 | I84: 2048 | J84: 8 | K84: 4071.02 | L84: 97.98 | M84: 80.06 | N84: 159.85 | O84: 204.64 | P84: 10.0075 | Q84: 10.20616452 | T84: 2026.01 | U84: 刘玉升
A85: DeepSeek-R1-Distill-Qwen-32B | B85: K100_AI | C85: 4 | D85: float16 | E85: 0.9.2 | F85: V0 | G85: 否 | H85: 2048 | I85: 2048 | J85: 16 | K85: 6125.49 | L85: 106.39 | M85: 146.35 | N85: 291.65 | O85: 223.91 | P85: 9.146875 | Q85: 9.399379641 | T85: 2026.01 | U85: 刘玉升
A86: DeepSeek-R1-Distill-Qwen-32B | B86: K100_AI | C86: 4 | D86: float16 | E86: 0.9.2 | F86: V0 | G86: 否 | H86: 2048 | I86: 2048 | J86: 64 | K86: 18500.76 | L86: 173.55 | M86: 350.68 | N86: 699.67 | O86: 373.76 | P86: 5.479375 | Q86: 5.762028234 | T86: 2026.01 | U86: 刘玉升
A87: DeepSeek-R1-Distill-Qwen-32B | B87: K100_AI | C87: 4 | D87: float16 | E87: 0.9.2 | F87: V0 | G87: 否 | H87: 2048 | I87: 2048 | J87: 128 | K87: 33899.8 | L87: 253.45 | M87: 474.26 | N87: 946.75 | O87: 552.74 | P87: 3.70515625 | Q87: 3.945551391 | T87: 2026.01 | U87: 刘玉升
A88: DeepSeek-R1-Distill-Qwen-32B | B88: K100_AI | C88: 4 | D88: float16 | E88: 0.9.2 | F88: V0 | G88: 否 | H88: 4096 | I88: 1024 | J88: 1 | K88: 1183.39 | L88: 86.83 | M88: 11.38 | N88: 56.87 | O88: 90.01 | P88: 11.38 | Q88: 11.51675688 | T88: 2026.01 | U88: 刘玉升
A89: DeepSeek-R1-Distill-Qwen-32B | B89: K100_AI | C89: 4 | D89: float16 | E89: 0.9.2 | F89: V0 | G89: 否 | H89: 4096 | I89: 1024 | J89: 2 | K89: 2186.84 | L89: 90.89 | M89: 21.52 | N89: 107.58 | O89: 95.17 | P89: 10.76 | Q89: 11.00231049 | T89: 2026.01 | U89: 刘玉升
A90: DeepSeek-R1-Distill-Qwen-32B | B90: K100_AI | C90: 4 | D90: float16 | E90: 0.9.2 | F90: V0 | G90: 否 | H90: 4096 | I90: 1024 | J90: 4 | K90: 4138.09 | L90: 94.01 | M90: 40.83 | N90: 204.04 | O90: 100.31 | P90: 10.2075 | Q90: 10.63716626 | T90: 2026.01 | U90: 刘玉升
A91: DeepSeek-R1-Distill-Qwen-32B | B91: K100_AI | C91: 4 | D91: float16 | E91: 0.9.2 | F91: V0 | G91: 否 | H91: 4096 | I91: 1024 | J91: 8 | K91: 6310.43 | L91: 107.76 | M91: 70.28 | N91: 351.29 | O91: 116.55 | P91: 8.785 | Q91: 9.279881218 | T91: 2026.01 | U91: 刘玉升
A92: DeepSeek-R1-Distill-Qwen-32B | B92: K100_AI | C92: 4 | D92: float16 | E92: 0.9.2 | F92: V0 | G92: 否 | H92: 4096 | I92: 1024 | J92: 16 | K92: 10829.43 | L92: 123.34 | M92: 119.58 | N92: 596.67 | O92: 137.01 | P92: 7.47375 | Q92: 8.107669856 | T92: 2026.01 | U92: 刘玉升
A93: DeepSeek-R1-Distill-Qwen-32B | B93: K100_AI | C93: 4 | D93: float16 | E93: 0.9.2 | F93: V0 | G93: 否 | H93: 4096 | I93: 1024 | J93: 64 | K93: 33750.48 | L93: 225.26 | M93: 248.05 | N93: 1238.38 | O93: 264.21 | P93: 3.87578125 | Q93: 4.43931457 | T93: 2026.01 | U93: 刘玉升
A94: DeepSeek-R1-Distill-Qwen-32B | B94: K100_AI | C94: 4 | D94: float16 | E94: 0.9.2 | F94: V0 | G94: 否 | H94: 4096 | I94: 1024 | J94: 128 | K94: 63463.25 | L94: 353.78 | M94: 308.11 | N94: 1538.38 | O94: 425.41 | P94: 2.407109375 | Q94: 2.826615411 | T94: 2026.01 | U94: 刘玉升
A95: DeepSeek-R1-Distill-Qwen-32B | B95: K100_AI | C95: 4 | D95: float16 | E95: 0.9.2 | F95: V0 | G95: 否 | H95: 16384 | I95: 1024 | J95: 1 | K95: 4495.83 | L95: 90.54 | M95: 10.54 | N95: 179.24 | O95: 97.12 | P95: 10.54 | Q95: 11.04484206 | T95: 2026.01 | U95: 刘玉升
A96: DeepSeek-R1-Distill-Qwen-32B | B96: K100_AI | C96: 4 | D96: float16 | E96: 0.9.2 | F96: V0 | G96: 否 | H96: 16384 | I96: 1024 | J96: 2 | K96: 6722.27 | L96: 100.4 | M96: 18.72 | N96: 318.14 | O96: 109.43 | P96: 9.36 | Q96: 9.960159363 | T96: 2026.01 | U96: 刘玉升
A97: DeepSeek-R1-Distill-Qwen-32B | B97: K100_AI | C97: 4 | D97: float16 | E97: 0.9.2 | F97: V0 | G97: 否 | H97: 16384 | I97: 1024 | J97: 4 | K97: 11659.89 | L97: 116.93 | M97: 31.2 | N97: 530.37 | O97: 131.28 | P97: 7.8 | Q97: 8.552125203 | T97: 2026.01 | U97: 刘玉升
A98: DeepSeek-R1-Distill-Qwen-32B | B98: K100_AI | C98: 4 | D98: float16 | E98: 0.9.2 | F98: V0 | G98: 否 | H98: 16384 | I98: 1024 | J98: 8 | K98: 20211.02 | L98: 150.39 | M98: 47.06 | N98: 800.04 | O98: 174.06 | P98: 5.8825 | Q98: 6.649378283 | T98: 2026.01 | U98: 刘玉升
A99: DeepSeek-R1-Distill-Qwen-32B | B99: K100_AI | C99: 4 | D99: float16 | E99: 0.9.2 | F99: V0 | G99: 否 | H99: 16384 | I99: 1024 | J99: 16 | K99: 36572.79 | L99: 209.93 | M99: 65.19 | N99: 1108.1 | O99: 251.34 | P99: 4.074375 | Q99: 4.763492593 | T99: 2026.01 | U99: 刘玉升
A100: DeepSeek-R1-Distill-Qwen-32B | B100: K100_AI | C100: 4 | D100: float16 | E100: 0.9.2 | F100: V0 | G100: 否 | H100: 16384 | I100: 1024 | J100: 64 | K100: 265347.85 | L100: 368.48 | M100: 76.41 | N100: 1298.89 | O100: 857.69 | P100: 1.19390625 | Q100: 2.713851498 | T100: 2026.01 | U100: 刘玉升
A101: DeepSeek-R1-Distill-Qwen-32B | B101: K100_AI | C101: 4 | D101: float16 | E101: 0.9.2 | F101: V0 | G101: 否 | H101: 16384 | I101: 1024 | J101: 128 | K101: 664281.64 | L101: 395.24 | M101: 76.48 | N101: 1300.08 | O101: 1713.81 | P101: 0.5975 | Q101: 2.530108289 | T101: 2026.01 | U101: 刘玉升
A102: DeepSeek-R1-Distill-Qwen-14B | B102: K100_AI | C102: 1 | D102: float16 | E102: 0.9.2 | F102: V0 | G102: 否 | H102: 512 | I102: 512 | J102: 1 | K102: 239.58 | L102: 53.08 | M102: 18.71 | N102: 37.39 | O102: 27.36 | P102: 18.71 | Q102: 18.83948757 | R102: arbor.sourcefind.cn:5443/dcu/admin/base/vllm:0.9.2-ubuntu22.04-dtk25.04.2-1226-das1.7-py3.10-20251226 | S102: Hygon C86 7490 64-core Processor*2 /DDR5 4800 32G*24 /480G 2.5 SATA 6Gb R SSD*2 / 960G 2.5 SATA 6Gb R SSD*4 / BCM 8560-8i 4G MR*1/板载双口1G RJ45网卡x1/DCU K100-AI x8(120CU)/2200W电源模块*4 | T102: 2026.01 | U102: 刘玉升
A103: DeepSeek-R1-Distill-Qwen-14B | B103: K100_AI | C103: 1 | D103: float16 | E103: 0.9.2 | F103: V0 | G103: 否 | H103: 512 | I103: 512 | J103: 2 | K103: 393.19 | L103: 57.66 | M103: 34.29 | N103: 68.52 | O103: 29.86 | P103: 17.145 | Q103: 17.34304544 | T103: 2026.01 | U103: 刘玉升
A104: DeepSeek-R1-Distill-Qwen-14B | B104: K100_AI | C104: 1 | D104: float16 | E104: 0.9.2 | F104: V0 | G104: 否 | H104: 512 | I104: 512 | J104: 4 | K104: 726.26 | L104: 58.62 | M104: 66.75 | N104: 133.36 | O104: 30.68 | P104: 16.6875 | Q104: 17.05902422 | T104: 2026.01 | U104: 刘玉升
A105: DeepSeek-R1-Distill-Qwen-14B | B105: K100_AI | C105: 1 | D105: float16 | E105: 0.9.2 | F105: V0 | G105: 否 | H105: 512 | I105: 512 | J105: 8 | K105: 1296.61 | L105: 62.07 | M105: 124.05 | N105: 247.83 | O105: 33.02 | P105: 15.50625 | Q105: 16.1108426 | T105: 2026.01 | U105: 刘玉升
A106: DeepSeek-R1-Distill-Qwen-14B | B106: K100_AI | C106: 1 | D106: float16 | E106: 0.9.2 | F106: V0 | G106: 否 | H106: 512 | I106: 512 | J106: 16 | K106: 2474.61 | L106: 69.16 | M106: 216.62 | N106: 432.76 | O106: 37.82 | P106: 13.53875 | Q106: 14.45922499 | T106: 2026.01 | U106: 刘玉升
A107: DeepSeek-R1-Distill-Qwen-14B | B107: K100_AI | C107: 1 | D107: float16 | E107: 0.9.2 | F107: V0 | G107: 否 | H107: 512 | I107: 512 | J107: 64 | K107: 8813.35 | L107: 116.94 | M107: 477.8 | N107: 954.63 | O107: 68.58 | P107: 7.465625 | Q107: 8.551393877 | T107: 2026.01 | U107: 刘玉升
A108: DeepSeek-R1-Distill-Qwen-14B | B108: K100_AI | C108: 1 | D108: float16 | E108: 0.9.2 | F108: V0 | G108: 否 | H108: 512 | I108: 512 | J108: 128 | K108: 13695.54 | L108: 203.08 | M108: 557.77 | N108: 1114.27 | O108: 117.5 | P108: 4.357578125 | Q108: 4.924167816 | T108: 2026.01 | U108: 刘玉升
A109: DeepSeek-R1-Distill-Qwen-14B | B109: K100_AI | C109: 1 | D109: float16 | E109: 0.9.2 | F109: V0 | G109: 否 | H109: 1024 | I109: 1024 | J109: 1 | K109: 380.88 | L109: 53.32 | M109: 18.64 | N109: 37.26 | O109: 54.93 | P109: 18.64 | Q109: 18.75468867 | T109: 2026.01 | U109: 刘玉升
A110: DeepSeek-R1-Distill-Qwen-14B | B110: K100_AI | C110: 1 | D110: float16 | E110: 0.9.2 | F110: V0 | G110: 否 | H110: 1024 | I110: 1024 | J110: 2 | K110: 693.52 | L110: 58.15 | M110: 34.03 | N110: 68.03 | O110: 60.18 | P110: 17.015 | Q110: 17.19690456 | T110: 2026.01 | U110: 刘玉升
A111: DeepSeek-R1-Distill-Qwen-14B | B111: K100_AI | C111: 1 | D111: float16 | E111: 0.9.2 | F111: V0 | G111: 否 | H111: 1024 | I111: 1024 | J111: 4 | K111: 1273.48 | L111: 60.51 | M111: 64.83 | N111: 129.6 | O111: 63.18 | P111: 16.2075 | Q111: 16.52619402 | T111: 2026.01 | U111: 刘玉升
A112: DeepSeek-R1-Distill-Qwen-14B | B112: K100_AI | C112: 1 | D112: float16 | E112: 0.9.2 | F112: V0 | G112: 否 | H112: 1024 | I112: 1024 | J112: 8 | K112: 2459.17 | L112: 66.85 | M112: 115.62 | N112: 231.11 | O112: 70.85 | P112: 14.4525 | Q112: 14.95886313 | T112: 2026.01 | U112: 刘玉升
A113: DeepSeek-R1-Distill-Qwen-14B | B113: K100_AI | C113: 1 | D113: float16 | E113: 0.9.2 | F113: V0 | G113: 否 | H113: 1024 | I113: 1024 | J113: 16 | K113: 3684.17 | L113: 78.52 | M113: 195.02 | N113: 389.61 | O113: 84.01 | P113: 12.18875 | Q113: 12.73560876 | T113: 2026.01 | U113: 刘玉升
A114: DeepSeek-R1-Distill-Qwen-14B | B114: K100_AI | C114: 1 | D114: float16 | E114: 0.9.2 | F114: V0 | G114: 否 | H114: 1024 | I114: 1024 | J114: 64 | K114: 13726.64 | L114: 156.09 | M114: 377.89 | N114: 754.13 | O114: 173.42 | P114: 5.90453125 | Q114: 6.406560318 | T114: 2026.01 | U114: 刘玉升
A115: DeepSeek-R1-Distill-Qwen-14B | B115: K100_AI | C115: 1 | D115: float16 | E115: 0.9.2 | F115: V0 | G115: 否 | H115: 1024 | I115: 1024 | J115: 128 | K115: 22907.94 | L115: 266.09 | M115: 349.39 | N115: 697.57 | O115: 375.15 | P115: 2.729609375 | Q115: 3.75812695 | T115: 2026.01 | U115: 刘玉升
A116: DeepSeek-R1-Distill-Qwen-14B | B116: K100_AI | C116: 1 | D116: float16 | E116: 0.9.2 | F116: V0 | G116: 否 | H116: 2048 | I116: 2048 | J116: 1 | K116: 735.7 | L116: 53.98 | M116: 18.41 | N116: 36.81 | O116: 111.24 | P116: 18.41 | Q116: 18.52537977 | T116: 2026.01 | U116: 刘玉升
A117: DeepSeek-R1-Distill-Qwen-14B | B117: K100_AI | C117: 1 | D117: float16 | E117: 0.9.2 | F117: V0 | G117: 否 | H117: 2048 | I117: 2048 | J117: 2 | K117: 1294.67 | L117: 60.14 | M117: 32.92 | N117: 65.83 | O117: 124.41 | P117: 16.46 | Q117: 16.62786831 | T117: 2026.01 | U117: 刘玉升
A118: DeepSeek-R1-Distill-Qwen-14B | B118: K100_AI | C118: 1 | D118: float16 | E118: 0.9.2 | F118: V0 | G118: 否 | H118: 2048 | I118: 2048 | J118: 4 | K118: 2497.92 | L118: 65.61 | M118: 59.88 | N118: 119.73 | O118: 136.81 | P118: 14.97 | Q118: 15.24157903 | T118: 2026.01 | U118: 刘玉升
A119: DeepSeek-R1-Distill-Qwen-14B | B119: K100_AI | C119: 1 | D119: float16 | E119: 0.9.2 | F119: V0 | G119: 否 | H119: 2048 | I119: 2048 | J119: 8 | K119: 3919.65 | L119: 78.16 | M119: 99.95 | N119: 199.56 | O119: 163.91 | P119: 12.49375 | Q119: 12.79426817 | T119: 2026.01 | U119: 刘玉升
A120: DeepSeek-R1-Distill-Qwen-14B | B120: K100_AI | C120: 1 | D120: float16 | E120: 0.9.2 | F120: V0 | G120: 否 | H120: 2048 | I120: 2048 | J120: 16 | K120: 7501.99 | L120: 100.94 | M120: 153.03 | N120: 304.96 | O120: 214.13 | P120: 9.564375 | Q120: 9.906875372 | T120: 2026.01 | U120: 刘玉升
A121: DeepSeek-R1-Distill-Qwen-14B | B121: K100_AI | C121: 1 | D121: float16 | E121: 0.9.2 | F121: V0 | G121: 否 | H121: 2048 | I121: 2048 | J121: 64 | K121: 23468.99 | L121: 227.49 | M121: 207.67 | N121: 414.33 | O121: 631.16 | P121: 3.24484375 | Q121: 4.395797617 | T121: 2026.01 | U121: 刘玉升
A122: DeepSeek-R1-Distill-Qwen-14B | B122: K100_AI | C122: 1 | D122: float16 | E122: 0.9.2 | F122: V0 | G122: 否 | H122: 2048 | I122: 2048 | J122: 128 | K122: 306989.48 | L122: 238.71 | M122: 217.43 | N122: 434.05 | O122: 1205.65 | P122: 1.698671875 | Q122: 4.189183528 | T122: 2026.01 | U122: 刘玉升
A123: DeepSeek-R1-Distill-Qwen-14B | B123: K100_AI | C123: 1 | D123: float16 | E123: 0.9.2 | F123: V0 | G123: 否 | H123: 4096 | I123: 1024 | J123: 1 | K123: 1355.85 | L123: 54.98 | M123: 17.78 | N123: 88.87 | O123: 57.6 | P123: 17.78 | Q123: 18.18843216 | T123: 2026.01 | U123: 刘玉升
A124: DeepSeek-R1-Distill-Qwen-14B | B124: K100_AI | C124: 1 | D124: float16 | E124: 0.9.2 | F124: V0 | G124: 否 | H124: 4096 | I124: 1024 | J124: 2 | K124: 2621.83 | L124: 63.42 | M124: 30.34 | N124: 151.67 | O124: 67.5 | P124: 15.17 | Q124: 15.76789656 | T124: 2026.01 | U124: 刘玉升
A125: DeepSeek-R1-Distill-Qwen-14B | B125: K100_AI | C125: 1 | D125: float16 | E125: 0.9.2 | F125: V0 | G125: 否 | H125: 4096 | I125: 1024 | J125: 4 | K125: 4139.89 | L125: 72.4 | M125: 52.38 | N125: 261.72 | O125: 78.21 | P125: 13.095 | Q125: 13.8121547 | T125: 2026.01 | U125: 刘玉升
A126: DeepSeek-R1-Distill-Qwen-14B | B126: K100_AI | C126: 1 | D126: float16 | E126: 0.9.2 | F126: V0 | G126: 否 | H126: 4096 | I126: 1024 | J126: 8 | K126: 7698.35 | L126: 89.27 | M126: 82.73 | N126: 413.46 | O126: 99.03 | P126: 10.34125 | Q126: 11.20197155 | T126: 2026.01 | U126: 刘玉升
A127: DeepSeek-R1-Distill-Qwen-14B | B127: K100_AI | C127: 1 | D127: float16 | E127: 0.9.2 | F127: V0 | G127: 否 | H127: 4096 | I127: 1024 | J127: 16 | K127: 14093.98 | L127: 122.27 | M127: 117.72 | N127: 587.4 | O127: 139.18 | P127: 7.3575 | Q127: 8.178621084 | T127: 2026.01 | U127: 刘玉升
A128: DeepSeek-R1-Distill-Qwen-14B | B128: K100_AI | C128: 1 | D128: float16 | E128: 0.9.2 | F128: V0 | G128: 否 | H128: 4096 | I128: 1024 | J128: 64 | K128: 127361.78 | L128: 208.41 | M128: 144.81 | N128: 722.98 | O128: 452.55 | P128: 2.26265625 | Q128: 4.79823425 | T128: 2026.01 | U128: 刘玉升
A129: DeepSeek-R1-Distill-Qwen-14B | B129: K100_AI | C129: 1 | D129: float16 | E129: 0.9.2 | F129: V0 | G129: 否 | H129: 4096 | I129: 1024 | J129: 128 | K129: 354583.25 | L129: 212.45 | M129: 143.29 | N129: 715.45 | O129: 914.73 | P129: 1.119453125 | Q129: 4.70698988 | T129: 2026.01 | U129: 刘玉升
A130: DeepSeek-R1-Distill-Qwen-14B | B130: K100_AI | C130: 1 | D130: float16 | E130: 0.9.2 | F130: V0 | G130: 否 | H130: 16384 | I130: 1024 | J130: 1 | K130: 26425.97 | L130: 66.19 | M130: 10.88 | N130: 184.91 | O130: 94.14 | P130: =M130/J130 -> 10.88 | Q130: =1000/L130 -> 15.10802236 | T130: 2026.01 | U130: 刘玉升
A131: DeepSeek-R1-Distill-Qwen-14B | B131: K100_AI | C131: 1 | D131: float16 | E131: 0.9.2 | F131: V0 | G131: 否 | H131: 16384 | I131: 1024 | J131: 2 | K131: 39703.38 | L131: 100.99 | M131: 14.32 | N131: 243.43 | O131: 143.02 | P131: 7.16 | Q131: 9.901970492 | T131: 2026.01 | U131: 刘玉升
A132: DeepSeek-R1-Distill-Qwen-14B | B132: K100_AI | C132: 1 | D132: float16 | E132: 0.9.2 | F132: V0 | G132: 否 | H132: 16384 | I132: 1024 | J132: 4 | K132: 75607.74 | L132: 154.06 | M132: 17.56 | N132: 298.56 | O132: 233.21 | P132: 4.39 | Q132: 6.490977541 | T132: 2026.01 | U132: 刘玉升
A133: DeepSeek-R1-Distill-Qwen-14B | B133: K100_AI | C133: 1 | D133: float16 | E133: 0.9.2 | F133: V0 | G133: 否 | H133: 16384 | I133: 1024 | J133: 8 | K133: 135671.6 | L133: 273.36 | M133: 19.72 | N133: 335.29 | O133: 415.33 | P133: 2.465 | Q133: 3.65817969 | T133: 2026.01 | U133: 刘玉升
A134: DeepSeek-R1-Distill-Qwen-14B | B134: K100_AI | C134: 1 | D134: float16 | E134: 0.9.2 | F134: V0 | G134: 否 | H134: 16384 | I134: 1024 | J134: 16 | K134: 354930.41 | L134: 291.07 | M134: 18.95 | N134: 322.08 | O134: 864.72 | P134: 1.184375 | Q134: 3.435599684 | T134: 2026.01 | U134: 刘玉升
A135: DeepSeek-R1-Distill-Qwen-14B | B135: K100_AI | C135: 1 | D135: float16 | E135: 0.9.2 | F135: V0 | G135: 否 | H135: 16384 | I135: 1024 | J135: 64 | K135: 1661310.12 | L135: 321.96 | M135: 18.52 | N135: 314.86 | O135: 3538.2 | P135: 0.289375 | Q135: 3.105975898 | T135: 2026.01 | U135: 刘玉升
A136: DeepSeek-R1-Distill-Qwen-14B | B136: K100_AI | C136: 1 | D136: float16 | E136: 0.9.2 | F136: V0 | G136: 否 | H136: 16384 | I136: 1024 | J136: 128 | T136: 2026.01 | U136: 刘玉升
A137: DeepSeek-R1-Distill-Qwen-14B | B137: K100_AI | C137: 1 | D137: float16 | E137: 0.9.2 | F137: V0 | G137: 否 | H137: 512 | I137: 512 | J137: 1 | K137: 246.81 | L137: 53.01 | M137: 18.73 | N137: 37.42 | O137: 27.34 | P137: =M137/J137 -> 18.73 | Q137: =1000/L137 -> 18.86436521 | T137: 2026.01 | U137: 刘玉升
A138: DeepSeek-R1-Distill-Qwen-14B | B138: K100_AI | C138: 1 | D138: float16 | E138: 0.9.2 | F138: V0 | G138: 否 | H138: 512 | I138: 512 | J138: 2 | K138: 413.96 | L138: 57.67 | M138: 34.26 | N138: 68.46 | O138: 29.89 | P138: 17.13 | Q138: 17.34003815 | T138: 2026.01 | U138: 刘玉升
A139: DeepSeek-R1-Distill-Qwen-14B | B139: K100_AI | C139: 1 | D139: float16 | E139: 0.9.2 | F139: V0 | G139: 否 | H139: 512 | I139: 512 | J139: 4 | K139: 729.08 | L139: 58.41 | M139: 66.98 | N139: 133.83 | O139: 30.58 | P139: 16.745 | Q139: 17.1203561 | T139: 2026.01 | U139: 刘玉升
A140: DeepSeek-R1-Distill-Qwen-14B | B140: K100_AI | C140: 1 | D140: float16 | E140: 0.9.2 | F140: V0 | G140: 否 | H140: 512 | I140: 512 | J140: 8 | K140: 1280.56 | L140: 61.85 | M140: 124.54 | N140: 248.81 | O140: 32.89 | P140: 15.5675 | Q140: 16.16814875 | T140: 2026.01 | U140: 刘玉升
A141: DeepSeek-R1-Distill-Qwen-14B | B141: K100_AI | C141: 1 | D141: float16 | E141: 0.9.2 | F141: V0 | G141: 否 | H141: 512 | I141: 512 | J141: 16 | K141: 2496.23 | L141: 69.15 | M141: 216.53 | N141: 432.58 | O141: 37.83 | P141: 13.533125 | Q141: 14.46131598 | T141: 2026.01 | U141: 刘玉升
A142: DeepSeek-R1-Distill-Qwen-14B | B142: K100_AI | C142: 1 | D142: float16 | E142: 0.9.2 | F142: V0 | G142: 否 | H142: 512 | I142: 512 | J142: 64 | K142: 8964.48 | L142: 117.32 | M142: 475.4 | N142: 949.84 | O142: 68.93 | P142: 7.428125 | Q142: 8.523695875 | T142: 2026.01 | U142: 刘玉升
A143: DeepSeek-R1-Distill-Qwen-14B | B143: K100_AI | C143: 1 | D143: float16 | E143: 0.9.2 | F143: V0 | G143: 否 | H143: 1024 | I143: 1024 | J143: 1 | K143: 388.32 | L143: 53.32 | M143: 18.64 | N143: 37.26 | O143: 54.93 | P143: 18.64 | Q143: 18.75468867 | T143: 2026.01 | U143: 刘玉升
A144: DeepSeek-R1-Distill-Qwen-14B | B144: K100_AI | C144: 1 | D144: float16 | E144: 0.9.2 | F144: V0 | G144: 否 | H144: 1024 | I144: 1024 | J144: 2 | K144: 704.19 | L144: 58.2 | M144: 34 | N144: 67.96 | O144: 60.24 | P144: 17 | Q144: 17.18213058 | T144: 2026.01 | U144: 刘玉升
A145: DeepSeek-R1-Distill-Qwen-14B | B145: K100_AI | C145: 1 | D145: float16 | E145: 0.9.2 | F145: V0 | G145: 否 | H145: 1024 | I145: 1024 | J145: 4 | K145: 1290.69 | L145: 60.33 | M145: 65.01 | N145: 129.95 | O145: 63.01 | P145: 16.2525 | Q145: 16.57550141 | T145: 2026.01 | U145: 刘玉升
A146: DeepSeek-R1-Distill-Qwen-14B | B146: K100_AI | C146: 1 | D146: float16 | E146: 0.9.2 | F146: V0 | G146: 否 | H146: 1024 | I146: 1024 | J146: 8 | K146: 2489.49 | L146: 65.91 | M146: 117.16 | N146: 234.19 | O146: 69.92 | P146: 14.645 | Q146: 15.17220452 | T146: 2026.01 | U146: 刘玉升
A147: DeepSeek-R1-Distill-Qwen-14B | B147: K100_AI | C147: 1 | D147: float16 | E147: 0.9.2 | F147: V0 | G147: 否 | H147: 1024 | I147: 1024 | J147: 16 | K147: 3664.08 | L147: 78.19 | M147: 195.84 | N147: 391.25 | O147: 83.66 | P147: 12.24 | Q147: 12.78935925 | T147: 2026.01 | U147: 刘玉升
A148: DeepSeek-R1-Distill-Qwen-14B | B148: K100_AI | C148: 1 | D148: float16 | E148: 0.9.2 | F148: V0 | G148: 否 | H148: 1024 | I148: 1024 | J148: 64 | K148: 13891.8 | L148: 157.34 | M148: 374.77 | N148: 747.91 | O148: 174.87 | P148: 5.85578125 | Q148: 6.355662896 | T148: 2026.01 | U148: 刘玉升
A149: DeepSeek-R1-Distill-Qwen-14B | B149: K100_AI | C149: 1 | D149: float16 | E149: 0.9.2 | F149: V0 | G149: 否 | H149: 2048 | I149: 2048 | J149: 1 | K149: 720.21 | L149: 53.8 | M149: 18.48 | N149: 36.94 | O149: 110.85 | P149: 18.48 | Q149: 18.58736059 | T149: 2026.01 | U149: 刘玉升
A150: DeepSeek-R1-Distill-Qwen-14B | B150: K100_AI | C150: 1 | D150: float16 | E150: 0.9.2 | F150: V0 | G150: 否 | H150: 2048 | I150: 2048 | J150: 2 | K150: 1314.97 | L150: 59.9 | M150: 33.05 | N150: 66.09 | O150: 123.93 | P150: 16.525 | Q150: 16.69449082 | T150: 2026.01 | U150: 刘玉升
A151: DeepSeek-R1-Distill-Qwen-14B | B151: K100_AI | C151: 1 | D151: float16 | E151: 0.9.2 | F151: V0 | G151: 否 | H151: 2048 | I151: 2048 | J151: 4 | K151: 2534.48 | L151: 65.42 | M151: 60.04 | N151: 120.04 | O151: 136.45 | P151: 15.01 | Q151: 15.28584531 | T151: 2026.01 | U151: 刘玉升
A152: DeepSeek-R1-Distill-Qwen-14B | B152: K100_AI | C152: 1 | D152: float16 | E152: 0.9.2 | F152: V0 | G152: 否 | H152: 2048 | I152: 2048 | J152: 8 | K152: 3982.53 | L152: 76.25 | M152: 102.36 | N152: 204.36 | O152: 160.06 | P152: 12.795 | Q152: 13.1147541 | T152: 2026.01 | U152: 刘玉升
A153: DeepSeek-R1-Distill-Qwen-14B | B153: K100_AI | C153: 1 | D153: float16 | E153: 0.9.2 | F153: V0 | G153: 否 | H153: 2048 | I153: 2048 | J153: 16 | K153: 7604.32 | L153: 97.99 | M153: 157.39 | N153: 313.65 | O153: 208.2 | P153: 9.836875 | Q153: 10.20512297 | T153: 2026.01 | U153: 刘玉升
A154: DeepSeek-R1-Distill-Qwen-14B | B154: K100_AI | C154: 1 | D154: float16 | E154: 0.9.2 | F154: V0 | G154: 否 | H154: 2048 | I154: 2048 | J154: 64 | K154: 23628.72 | L154: 226.08 | M154: 208.78 | N154: 416.56 | O154: 627.79 | P154: 3.2621875 | Q154: 4.423213022 | T154: 2026.01 | U154: 刘玉升
A155: DeepSeek-R1-Distill-Qwen-14B | B155: K100_AI | C155: 1 | D155: float16 | E155: 0.9.2 | F155: V0 | G155: 否 | H155: 4096 | I155: 1024 | J155: 1 | K155: 1409.95 | L155: 54.74 | M155: 17.84 | N155: 89.16 | O155: 57.41 | P155: 17.84 | Q155: 18.26817684 | T155: 2026.01 | U155: 刘玉升
A156: DeepSeek-R1-Distill-Qwen-14B | B156: K100_AI | C156: 1 | D156: float16 | E156: 0.9.2 | F156: V0 | G156: 否 | H156: 4096 | I156: 1024 | J156: 2 | K156: 2662.09 | L156: 63.56 | M156: 30.26 | N156: 151.26 | O156: 67.68 | P156: 15.13 | Q156: 15.73316551 | T156: 2026.01 | U156: 刘玉升
A157: DeepSeek-R1-Distill-Qwen-14B | B157: K100_AI | C157: 1 | D157: float16 | E157: 0.9.2 | F157: V0 | G157: 否 | H157: 4096 | I157: 1024 | J157: 4 | K157: 5109.04 | L157: 71.36 | M157: 52.44 | N157: 262.05 | O157: 78.11 | P157: 13.11 | Q157: 14.01345291 | T157: 2026.01 | U157: 刘玉升
A158: DeepSeek-R1-Distill-Qwen-14B | B158: K100_AI | C158: 1 | D158: float16 | E158: 0.9.2 | F158: V0 | G158: 否 | H158: 4096 | I158: 1024 | J158: 8 | K158: 8307.77 | L158: 87.62 | M158: 83.63 | N158: 418.01 | O158: 97.95 | P158: 10.45375 | Q158: 11.41291942 | T158: 2026.01 | U158: 刘玉升
A159: DeepSeek-R1-Distill-Qwen-14B | B159: K100_AI | C159: 1 | D159: float16 | E159: 0.9.2 | F159: V0 | G159: 否 | H159: 4096 | I159: 1024 | J159: 16 | K159: 14248.19 | L159: 120.79 | M159: 118.87 | N159: 593.15 | O159: 137.83 | P159: 7.429375 | Q159: 8.278831029 | T159: 2026.01 | U159: 刘玉升
A160: DeepSeek-R1-Distill-Qwen-14B | B160: K100_AI | C160: 1 | D160: float16 | E160: 0.9.2 | F160: V0 | G160: 否 | H160: 4096 | I160: 1024 | J160: 64 | K160: 126583.93 | L160: 206.55 | M160: 145.7 | N160: 727.43 | O160: 449.79 | P160: 2.2765625 | Q160: 4.84144275 | T160: 2026.01 | U160: 刘玉升
A161: DeepSeek-R1-Distill-Qwen-14B | B161: K100_AI | C161: 1 | D161: float16 | E161: 0.9.2 | F161: V0 | G161: 否 | H161: 16384 | I161: 1024 | J161: 1 | K161: 26593.72 | L161: 66.9 | M161: 10.78 | N161: 183.17 | O161: 95.03 | P161: 10.78 | Q161: 14.94768311 | T161: 2026.01 | U161: 刘玉升
A162: DeepSeek-R1-Distill-Qwen-14B | B162: K100_AI | C162: 1 | D162: float16 | E162: 0.9.2 | F162: V0 | G162: 否 | H162: 16384 | I162: 1024 | J162: 2 | K162: 39549.65 | L162: 101.29 | M162: 14.3 | N162: 243.16 | O162: 143.17 | P162: 7.15 | Q162: 9.872642907 | T162: 2026.01 | U162: 刘玉升
A163: DeepSeek-R1-Distill-Qwen-14B | B163: K100_AI | C163: 1 | D163: float16 | E163: 0.9.2 | F163: V0 | G163: 否 | H163: 16384 | I163: 1024 | J163: 4 | K163: 75413.39 | L163: 152.79 | M163: 17.68 | N163: 300.48 | O163: 231.72 | P163: 4.42 | Q163: 6.544930951 | T163: 2026.01 | U163: 刘玉升
A164: DeepSeek-R1-Distill-Qwen-14B | B164: K100_AI | C164: 1 | D164: float16 | E164: 0.9.2 | F164: V0 | G164: 否 | H164: 16384 | I164: 1024 | J164: 8 | K164: 135976.7 | L164: 271.82 | M164: 19.78 | N164: 336.32 | O164: 414.05 | P164: 2.4725 | Q164: 3.678905158 | T164: 2026.01 | U164: 刘玉升
A165: DeepSeek-R1-Distill-Qwen-14B | B165: K100_AI | C165: 1 | D165: float16 | E165: 0.9.2 | F165: V0 | G165: 否 | H165: 16384 | I165: 1024 | J165: 16 | K165: 354568.64 | L165: 290.84 | M165: 18.96 | N165: 322.37 | O165: 863.96 | P165: 1.185 | Q165: 3.4383166 | T165: 2026.01 | U165: 刘玉升
A166: DeepSeek-R1-Distill-Qwen-14B | B166: K100_AI | C166: 1 | D166: float16 | E166: 0.9.2 | F166: V0 | G166: 否 | H166: 16384 | I166: 1024 | J166: 64 | K166: 1658725.09 | L166: 321.32 | M166: 18.54 | N166: 315.23 | O166: 3534.08 | P166: 0.2896875 | Q166: 3.11216233 | T166: 2026.01 | U166: 刘玉升
A167: DeepSeek-R1-Distill-Qwen-14B | B167: K100_AI | C167: 2 | D167: float16 | E167: 0.9.2 | F167: V0 | G167: 否 | H167: 512 | I167: 512 | J167: 1 | K167: 212.89 | L167: 59.94 | M167: 16.6 | N167: 33.17 | O167: 30.85 | P167: 16.6 | Q167: 16.68335002 | T167: 2026.01 | U167: 刘玉升
A168: DeepSeek-R1-Distill-Qwen-14B | B168: K100_AI | C168: 2 | D168: float16 | E168: 0.9.2 | F168: V0 | G168: 否 | H168: 512 | I168: 512 | J168: 2 | K168: 349.77 | L168: 61.52 | M168: 32.22 | N168: 64.37 | O168: 31.79 | P168: 16.11 | Q168: 16.25487646 | T168: 2026.01 | U168: 刘玉升
A169: DeepSeek-R1-Distill-Qwen-14B | B169: K100_AI | C169: 2 | D169: float16 | E169: 0.9.2 | F169: V0 | G169: 否 | H169: 512 | I169: 512 | J169: 4 | K169: 553.42 | L169: 61.96 | M169: 63.57 | N169: 127.02 | O169: 32.21 | P169: 15.8925 | Q169: 16.1394448 | T169: 2026.01 | U169: 刘玉升
A170: DeepSeek-R1-Distill-Qwen-14B | B170: K100_AI | C170: 2 | D170: float16 | E170: 0.9.2 | F170: V0 | G170: 否 | H170: 512 | I170: 512 | J170: 8 | K170: 910.42 | L170: 70.55 | M170: 110.81 | N170: 221.38 | O170: 36.96 | P170: 13.85125 | Q170: 14.17434444 | T170: 2026.01 | U170: 刘玉升
A171: DeepSeek-R1-Distill-Qwen-14B | B171: K100_AI | C171: 2 | D171: float16 | E171: 0.9.2 | F171: V0 | G171: 否 | H171: 512 | I171: 512 | J171: 16 | K171: 1629.38 | L171: 74.41 | M171: 206.57 | N171: 412.69 | O171: 39.66 | P171: 12.910625 | Q171: 13.43905389 | T171: 2026.01 | U171: 刘玉升
A172: DeepSeek-R1-Distill-Qwen-14B | B172: K100_AI | C172: 2 | D172: float16 | E172: 0.9.2 | F172: V0 | G172: 否 | H172: 512 | I172: 512 | J172: 64 | K172: 5735.75 | L172: 111.33 | M172: 523.1 | N172: 1045.15 | O172: 62.64 | P172: 8.1734375 | Q172: 8.982304859 | T172: 2026.01 | U172: 刘玉升
A173: DeepSeek-R1-Distill-Qwen-14B | B173: K100_AI | C173: 2 | D173: float16 | E173: 0.9.2 | F173: V0 | G173: 否 | H173: 512 | I173: 512 | J173: 128 | K173: 8598.71 | L173: 156.55 | M173: 739.5 | N173: 1477.32 | O173: 88.62 | P173: 5.77734375 | Q173: 6.387735548 | T173: 2026.01 | U173: 刘玉升
A174: DeepSeek-R1-Distill-Qwen-14B | B174: K100_AI | C174: 2 | D174: float16 | E174: 0.9.2 | F174: V0 | G174: 否 | H174: 1024 | I174: 1024 | J174: 1 | K174: 306.69 | L174: 62.18 | M174: 16.02 | N174: 32.03 | O174: 63.91 | P174: 16.02 | Q174: 16.08234159 | T174: 2026.01 | U174: 刘玉升
A175: DeepSeek-R1-Distill-Qwen-14B | B175: K100_AI | C175: 2 | D175: float16 | E175: 0.9.2 | F175: V0 | G175: 否 | H175: 1024 | I175: 1024 | J175: 2 | K175: 502.09 | L175: 63.86 | M175: 31.11 | N175: 62.19 | O175: 65.83 | P175: 15.555 | Q175: 15.65925462 | T175: 2026.01 | U175: 刘玉升
A176: DeepSeek-R1-Distill-Qwen-14B | B176: K100_AI | C176: 2 | D176: float16 | E176: 0.9.2 | F176: V0 | G176: 否 | H176: 1024 | I176: 1024 | J176: 4 | K176: 876.52 | L176: 65.65 | M176: 60.21 | N176: 120.35 | O176: 68.03 | P176: 15.0525 | Q176: 15.23229246 | T176: 2026.01 | U176: 刘玉升
A177: DeepSeek-R1-Distill-Qwen-14B | B177: K100_AI | C177: 2 | D177: float16 | E177: 0.9.2 | F177: V0 | G177: 否 | H177: 1024 | I177: 1024 | J177: 8 | K177: 1631.6 | L177: 77.14 | M177: 101.7 | N177: 203.29 | O177: 80.55 | P177: 12.7125 | Q177: 12.96344309 | T177: 2026.01 | U177: 刘玉升
A178: DeepSeek-R1-Distill-Qwen-14B | B178: K100_AI | C178: 2 | D178: float16 | E178: 0.9.2 | F178: V0 | G178: 否 | H178: 1024 | I178: 1024 | J178: 16 | K178: 2684.21 | L178: 82.76 | M178: 187.57 | N178: 374.73 | O178: 87.35 | P178: 11.723125 | Q178: 12.08313195 | T178: 2026.01 | U178: 刘玉升
A179: DeepSeek-R1-Distill-Qwen-14B | B179: K100_AI | C179: 2 | D179: float16 | E179: 0.9.2 | F179: V0 | G179: 否 | H179: 1024 | I179: 1024 | J179: 64 | K179: 8523.62 | L179: 132 | M179: 456.47 | N179: 910.94 | O179: 143.57 | P179: 7.13234375 | Q179: 7.575757576 | T179: 2026.01 | U179: 刘玉升
A180: DeepSeek-R1-Distill-Qwen-14B | B180: K100_AI | C180: 2 | D180: float16 | E180: 0.9.2 | F180: V0 | G180: 否 | H180: 1024 | I180: 1024 | J180: 128 | K180: 14113.49 | L180: 195.2 | M180: 612.97 | N180: 1223.82 | O180: 213.83 | P180: 4.788828125 | Q180: 5.12295082 | T180: 2026.01 | U180: 刘玉升
A181: DeepSeek-R1-Distill-Qwen-14B | B181: K100_AI | C181: 2 | D181: float16 | E181: 0.9.2 | F181: V0 | G181: 否 | H181: 2048 | I181: 2048 | J181: 1 | K181: 512.81 | L181: 63.5 | M181: 15.69 | N181: 31.38 | O181: 130.5 | P181: 15.69 | Q181: 15.7480315 | T181: 2026.01 | U181: 刘玉升
A182: DeepSeek-R1-Distill-Qwen-14B | B182: K100_AI | C182: 2 | D182: float16 | E182: 0.9.2 | F182: V0 | G182: 否 | H182: 2048 | I182: 2048 | J182: 2 | K182: 889.18 | L182: 67.24 | M182: 29.57 | N182: 59.12 | O182: 138.53 | P182: 14.785 | Q182: 14.87209994 | T182: 2026.01 | U182: 刘玉升
A183: DeepSeek-R1-Distill-Qwen-14B | B183: K100_AI | C183: 2 | D183: float16 | E183: 0.9.2 | F183: V0 | G183: 否 | H183: 2048 | I183: 2048 | J183: 4 | K183: 1650.72 | L183: 70.36 | M183: 56.23 | N183: 112.44 | O183: 145.68 | P183: 14.0575 | Q183: 14.21262081 | T183: 2026.01 | U183: 刘玉升
A184: DeepSeek-R1-Distill-Qwen-14B | B184: K100_AI | C184: 2 | D184: float16 | E184: 0.9.2 | F184: V0 | G184: 否 | H184: 2048 | I184: 2048 | J184: 8 | K184: 2576.49 | L184: 84.21 | M184: 93.64 | N184: 186.96 | O184: 174.96 | P184: 11.705 | Q184: 11.87507422 | T184: 2026.01 | U184: 刘玉升
A185: DeepSeek-R1-Distill-Qwen-14B | B185: K100_AI | C185: 2 | D185: float16 | E185: 0.9.2 | F185: V0 | G185: 否 | H185: 2048 | I185: 2048 | J185: 16 | K185: 4870.25 | L185: 96.42 | M185: 162.02 | N185: 322.89 | O185: 202.24 | P185: 10.12625 | Q185: 10.37129226 | T185: 2026.01 | U185: 刘玉升
A186: DeepSeek-R1-Distill-Qwen-14B | B186: K100_AI | C186: 2 | D186: float16 | E186: 0.9.2 | F186: V0 | G186: 否 | H186: 2048 | I186: 2048 | J186: 64 | K186: 14218.05 | L186: 174.26 | M186: 353.35 | N186: 704.99 | O186: 370.94 | P186: 5.52109375 | Q186: 5.73855159 | T186: 2026.01 | U186: 刘玉升
A187: DeepSeek-R1-Distill-Qwen-14B | B187: K100_AI | C187: 2 | D187: float16 | E187: 0.9.2 | F187: V0 | G187: 否 | H187: 2048 | I187: 2048 | J187: 128 | K187: 25559.33 | L187: 276.26 | M187: 411.56 | N187: 821.58 | O187: 636.96 | P187: 3.2153125 | Q187: 3.61977847 | T187: 2026.01 | U187: 刘玉升
A188: DeepSeek-R1-Distill-Qwen-14B | B188: K100_AI | C188: 2 | D188: float16 | E188: 0.9.2 | F188: V0 | G188: 否 | H188: 4096 | I188: 1024 | J188: 1 | K188: 918.15 | L188: 66.11 | M188: 14.94 | N188: 74.67 | O188: 68.55 | P188: 14.94 | Q188: 15.12630464 | T188: 2026.01 | U188: 刘玉升
A189: DeepSeek-R1-Distill-Qwen-14B | B189: K100_AI | C189: 2 | D189: float16 | E189: 0.9.2 | F189: V0 | G189: 否 | H189: 4096 | I189: 1024 | J189: 2 | K189: 1693.31 | L189: 70 | M189: 27.94 | N189: 139.67 | O189: 73.3 | P189: 13.97 | Q189: 14.28571429 | T189: 2026.01 | U189: 刘玉升
A190: DeepSeek-R1-Distill-Qwen-14B | B190: K100_AI | C190: 2 | D190: float16 | E190: 0.9.2 | F190: V0 | G190: 否 | H190: 4096 | I190: 1024 | J190: 4 | K190: 3198.06 | L190: 77.5 | M190: 49.66 | N190: 248.14 | O190: 82.49 | P190: 12.415 | Q190: 12.90322581 | T190: 2026.01 | U190: 刘玉升
A191: DeepSeek-R1-Distill-Qwen-14B | B191: K100_AI | C191: 2 | D191: float16 | E191: 0.9.2 | F191: V0 | G191: 否 | H191: 4096 | I191: 1024 | J191: 8 | K191: 4784.48 | L191: 94.8 | M191: 80.49 | N191: 402.32 | O191: 101.77 | P191: 10.06125 | Q191: 10.54852321 | T191: 2026.01 | U191: 刘玉升
A192: DeepSeek-R1-Distill-Qwen-14B | B192: K100_AI | C192: 2 | D192: float16 | E192: 0.9.2 | F192: V0 | G192: 否 | H192: 4096 | I192: 1024 | J192: 16 | K192: 8345.81 | L192: 112.22 | M192: 133.04 | N192: 663.85 | O192: 123.15 | P192: 8.315 | Q192: 8.911067546 | T192: 2026.01 | U192: 刘玉升
A193: DeepSeek-R1-Distill-Qwen-14B | B193: K100_AI | C193: 2 | D193: float16 | E193: 0.9.2 | F193: V0 | G193: 否 | H193: 4096 | I193: 1024 | J193: 64 | K193: 26255.18 | L193: 227.35 | M193: 253.18 | N193: 1264 | O193: 258.85 | P193: 3.9559375 | Q193: 4.398504508 | T193: 2026.01 | U193: 刘玉升
A194: DeepSeek-R1-Distill-Qwen-14B | B194: K100_AI | C194: 2 | D194: float16 | E194: 0.9.2 | F194: V0 | G194: 否 | H194: 4096 | I194: 1024 | J194: 128 | K194: 88050.57 | L194: 313.82 | M194: 243.86 | N194: 1217.58 | O194: 537.49 | P194: 1.90515625 | Q194: 3.186540055 | T194: 2026.01 | U194: 刘玉升
A195: DeepSeek-R1-Distill-Qwen-14B | B195: K100_AI | C195: 2 | D195: float16 | E195: 0.9.2 | F195: V0 | G195: 否 | H195: 16384 | I195: 1024 | J195: 1 | K195: 5934.52 | L195: 73.52 | M195: 12.62 | N195: 214.5 | O195: 81.15 | P195: 12.62 | Q195: 13.60174102 | T195: 2026.01 | U195: 刘玉升
A196: DeepSeek-R1-Distill-Qwen-14B | B196: K100_AI | C196: 2 | D196: float16 | E196: 0.9.2 | F196: V0 | G196: 否 | H196: 16384 | I196: 1024 | J196: 2 | K196: 8850.11 | L196: 86.92 | M196: 20.95 | N196: 356.09 | O196: 97.77 | P196: 10.475 | Q196: 11.50483203 | T196: 2026.01 | U196: 刘玉升
A197: DeepSeek-R1-Distill-Qwen-14B | B197: K100_AI | C197: 2 | D197: float16 | E197: 0.9.2 | F197: V0 | G197: 否 | H197: 16384 | I197: 1024 | J197: 4 | K197: 16693.12 | L197: 110.36 | M197: 31.61 | N197: 537.27 | O197: 129.6 | P197: 7.9025 | Q197: 9.061254078 | T197: 2026.01 | U197: 刘玉升
A198: DeepSeek-R1-Distill-Qwen-14B | B198: K100_AI | C198: 2 | D198: float16 | E198: 0.9.2 | F198: V0 | G198: 否 | H198: 16384 | I198: 1024 | J198: 8 | K198: 29799.29 | L198: 161.2 | M198: 42.07 | N198: 715.21 | O198: 194.71 | P198: 5.25875 | Q198: 6.203473945 | T198: 2026.01 | U198: 刘玉升
A199: DeepSeek-R1-Distill-Qwen-14B | B199: K100_AI | C199: 2 | D199: float16 | E199: 0.9.2 | F199: V0 | G199: 否 | H199: 16384 | I199: 1024 | J199: 16 | K199: 54799.86 | L199: 252.51 | M199: 52.32 | N199: 889.45 | O199: 313.13 | P199: 3.27 | Q199: 3.960239198 | T199: 2026.01 | U199: 刘玉升
A200: DeepSeek-R1-Distill-Qwen-14B | B200: K100_AI | C200: 2 | D200: float16 | E200: 0.9.2 | F200: V0 | G200: 否 | H200: 16384 | I200: 1024 | J200: 64 | K200: 430387.79 | L200: 364.37 | M200: 54.68 | N200: 929.56 | O200: 1198.46 | P200: 0.854375 | Q200: 2.744463046 | T200: 2026.01 | U200: 刘玉升
... 43 more rows

Sheet Qwen3系列
A1: 模型 | B1: 卡类型 | C1: 卡数 | D1: 数据类型 | E1: vLLM版本 | F1: V0/V1 Engine | G1: Prefix Caching开启 | H1: 输入长度 (tokens) | I1: 输出长度 (tokens) | J1: 并发数 | K1: 平均首字延时 TTFT(ms) | L1: 平均生成时间 TPOT(ms) | M1: 生成吞吐量 (tokens/s) | N1: 总吞吐量(tokens/s) | O1: 总耗时 （s) | P1: 单并发Output吞吐 (tokens/s） | Q1: 单并发Decode吞吐（tokens/s) | R1: 镜像 | S1: 硬件平台 | T1: 数据日期 | U1: 数据提供者 | V1: 备注
A2: Qwen2.5-VL-7B-Instruct | B2: K100_AI | C2: 1 | D2: float16 | E2: 0.9.2 | F2: V0 | G2: 否 | H2: 512 | I2: 512 | J2: 1 | K2: 128.34 | L2: 26.98 | M2: 36.79 | N2: 73.58 | O2: 13.92 | P2: =M2/J2 -> 36.79 | Q2: =1000/L2 -> 37.06449222 | R2: arbor.sourcefind.cn:5443/dcu/admin/base/vllm:0.9.2-ubuntu22.04-dtk25.04.2-1226-das1.7-py3.10-20251226 | S2: Hygon C86 7490 64-core Processor*2 /DDR5 4800 32G*24 /480G 2.5 SATA 6Gb R SSD*2 / 960G 2.5 SATA 6Gb R SSD*4 / BCM 8560-8i 4G MR*1/板载双口1G RJ45网卡x1/DCU K100-AI x8(120CU)/2200W电源模块*4 | T2: 2026.01 | U2: 刘玉升
A3: Qwen2.5-VL-7B-Instruct | B3: K100_AI | C3: 1 | D3: float16 | E3: 0.9.2 | F3: V0 | G3: 否 | H3: 512 | I3: 512 | J3: 2 | K3: 212.34 | L3: 27.5 | M3: 71.77 | N3: 143.53 | O3: 14.27 | P3: 35.885 | Q3: 36.36363636 | T3: 2026.01 | U3: 刘玉升
A4: Qwen2.5-VL-7B-Instruct | B4: K100_AI | C4: 1 | D4: float16 | E4: 0.9.2 | F4: V0 | G4: 否 | H4: 512 | I4: 512 | J4: 4 | K4: 368.05 | L4: 28.5 | M4: 137.17 | N4: 274.34 | O4: 14.93 | P4: 34.2925 | Q4: 35.0877193 | T4: 2026.01 | U4: 刘玉升
A5: Qwen2.5-VL-7B-Instruct | B5: K100_AI | C5: 1 | D5: float16 | E5: 0.9.2 | F5: V0 | G5: 否 | H5: 512 | I5: 512 | J5: 8 | K5: 583.48 | L5: 31.28 | M5: 247.21 | N5: 494.35 | O5: 16.57 | P5: 30.90125 | Q5: 31.96930946 | T5: 2026.01 | U5: 刘玉升
A6: Qwen2.5-VL-7B-Instruct | B6: K100_AI | C6: 1 | D6: float16 | E6: 0.9.2 | F6: V0 | G6: 否 | H6: 512 | I6: 512 | J6: 16 | K6: 1250.84 | L6: 34.88 | M6: 429.39 | N6: 858.67 | O6: 19.08 | P6: 26.836875 | Q6: 28.66972477 | T6: 2026.01 | U6: 刘玉升
A7: Qwen2.5-VL-7B-Instruct | B7: K100_AI | C7: 1 | D7: float16 | E7: 0.9.2 | F7: V0 | G7: 否 | H7: 512 | I7: 512 | J7: 64 | K7: 4915.63 | L7: 55.73 | M7: 980.91 | N7: 1961.76 | O7: 33.41 | P7: 15.32671875 | Q7: 17.94365692 | T7: 2026.01 | U7: 刘玉升
A8: Qwen2.5-VL-7B-Instruct | B8: K100_AI | C8: 1 | D8: float16 | E8: 0.9.2 | F8: V0 | G8: 否 | H8: 512 | I8: 512 | J8: 128 | K8: 7553.59 | L8: 96.81 | M8: 1148.79 | N8: 2297.18 | O8: 57.05 | P8: 8.974921875 | Q8: 10.32951141 | T8: 2026.01 | U8: 刘玉升
A9: Qwen2.5-VL-7B-Instruct | B9: K100_AI | C9: 1 | D9: float16 | E9: 0.9.2 | F9: V0 | G9: 否 | H9: 1024 | I9: 1024 | J9: 1 | K9: 198.55 | L9: 28.84 | M9: 34.48 | N9: 68.95 | O9: 29.7 | P9: 34.48 | Q9: 34.6740638 | T9: 2026.01 | U9: 刘玉升
A10: Qwen2.5-VL-7B-Instruct | B10: K100_AI | C10: 1 | D10: float16 | E10: 0.9.2 | F10: V0 | G10: 否 | H10: 1024 | I10: 1024 | J10: 2 | K10: 355.7 | L10: 29.81 | M10: 66.39 | N10: 132.77 | O10: 30.85 | P10: 33.195 | Q10: 33.54579 | T10: 2026.01 | U10: 刘玉升
A11: Qwen2.5-VL-7B-Instruct | B11: K100_AI | C11: 1 | D11: float16 | E11: 0.9.2 | F11: V0 | G11: 否 | H11: 1024 | I11: 1024 | J11: 4 | K11: 660.31 | L11: 30.31 | M11: 129.33 | N11: 258.66 | O11: 31.67 | P11: 32.3325 | Q11: 32.99241175 | T11: 2026.01 | U11: 刘玉升
A12: Qwen2.5-VL-7B-Instruct | B12: K100_AI | C12: 1 | D12: float16 | E12: 0.9.2 | F12: V0 | G12: 否 | H12: 1024 | I12: 1024 | J12: 8 | K12: 1056.89 | L12: 33.92 | M12: 229.09 | N12: 458.15 | O12: 35.76 | P12: 28.63625 | Q12: 29.48113208 | T12: 2026.01 | U12: 刘玉升
A13: Qwen2.5-VL-7B-Instruct | B13: K100_AI | C13: 1 | D13: float16 | E13: 0.9.2 | F13: V0 | G13: 否 | H13: 1024 | I13: 1024 | J13: 16 | K13: 2340.08 | L13: 38.36 | M13: 393.97 | N13: 787.47 | O13: 41.59 | P13: 24.623125 | Q13: 26.06882169 | T13: 2026.01 | U13: 刘玉升
A14: Qwen2.5-VL-7B-Instruct | B14: K100_AI | C14: 1 | D14: float16 | E14: 0.9.2 | F14: V0 | G14: 否 | H14: 1024 | I14: 1024 | J14: 64 | K14: 7285.02 | L14: 69.62 | M14: 834.59 | N14: 1666.34 | O14: 78.52 | P14: 13.04046875 | Q14: 14.3636886 | T14: 2026.01 | U14: 刘玉升
A15: Qwen2.5-VL-7B-Instruct | B15: K100_AI | C15: 1 | D15: float16 | E15: 0.9.2 | F15: V0 | G15: 否 | H15: 1024 | I15: 1024 | J15: 128 | K15: 12250.08 | L15: 120 | M15: 970.62 | N15: 1938.83 | O15: 135.04 | P15: 7.58296875 | Q15: 8.333333333 | T15: 2026.01 | U15: 刘玉升
A16: Qwen2.5-VL-7B-Instruct | B16: K100_AI | C16: 1 | D16: float16 | E16: 0.9.2 | F16: V0 | G16: 否 | H16: 2048 | I16: 2048 | J16: 1 | K16: 360.69 | L16: 30.57 | M16: 32.54 | N16: 65.08 | O16: 62.94 | P16: 32.54 | Q16: 32.71180896 | T16: 2026.01 | U16: 刘玉升
A17: Qwen2.5-VL-7B-Instruct | B17: K100_AI | C17: 1 | D17: float16 | E17: 0.9.2 | F17: V0 | G17: 否 | H17: 2048 | I17: 2048 | J17: 2 | K17: 666.87 | L17: 31.86 | M17: 62.18 | N17: 124.35 | O17: 65.88 | P17: 31.09 | Q17: 31.38731952 | T17: 2026.01 | U17: 刘玉升
A18: Qwen2.5-VL-7B-Instruct | B18: K100_AI | C18: 1 | D18: float16 | E18: 0.9.2 | F18: V0 | G18: 否 | H18: 2048 | I18: 2048 | J18: 4 | K18: 999.42 | L18: 33.12 | M18: 119.08 | N18: 238.16 | O18: 68.79 | P18: 29.77 | Q18: 30.19323671 | T18: 2026.01 | U18: 刘玉升
A19: Qwen2.5-VL-7B-Instruct | B19: K100_AI | C19: 1 | D19: float16 | E19: 0.9.2 | F19: V0 | G19: 否 | H19: 2048 | I19: 2048 | J19: 8 | K19: 2275.8 | L19: 38.27 | M19: 203.24 | N19: 405.88 | O19: 80.61 | P19: 25.405 | Q19: 26.13012804 | T19: 2026.01 | U19: 刘玉升
A20: Qwen2.5-VL-7B-Instruct | B20: K100_AI | C20: 1 | D20: float16 | E20: 0.9.2 | F20: V0 | G20: 否 | H20: 2048 | I20: 2048 | J20: 16 | K20: 4677.34 | L20: 45.58 | M20: 334.41 | N20: 666.59 | O20: 97.99 | P20: 20.900625 | Q20: 21.93944713 | T20: 2026.01 | U20: 刘玉升
A21: Qwen2.5-VL-7B-Instruct | B21: K100_AI | C21: 1 | D21: float16 | E21: 0.9.2 | F21: V0 | G21: 否 | H21: 2048 | I21: 2048 | J21: 64 | K21: 12345.87 | L21: 94.93 | M21: 634.16 | N21: 1265.55 | O21: 206.69 | P21: 9.90875 | Q21: 10.53407774 | T21: 2026.01 | U21: 刘玉升
A22: Qwen2.5-VL-7B-Instruct | B22: K100_AI | C22: 1 | D22: float16 | E22: 0.9.2 | F22: V0 | G22: 否 | H22: 2048 | I22: 2048 | J22: 128 | K22: 22313.51 | L22: 166.73 | M22: 720.89 | N22: 1439.43 | O22: 363.64 | P22: 5.631953125 | Q22: 5.997720866 | T22: 2026.01 | U22: 刘玉升
A23: Qwen2.5-VL-7B-Instruct | B23: K100_AI | C23: 1 | D23: float16 | E23: 0.9.2 | F23: V0 | G23: 否 | H23: 4096 | I23: 1024 | J23: 1 | K23: 693.85 | L23: 33.36 | M23: 29.4 | N23: 147.02 | O23: 34.83 | P23: 29.4 | Q23: 29.97601918 | T23: 2026.01 | U23: 刘玉升
A24: Qwen2.5-VL-7B-Instruct | B24: K100_AI | C24: 1 | D24: float16 | E24: 0.9.2 | F24: V0 | G24: 否 | H24: 4096 | I24: 1024 | J24: 2 | K24: 1029.93 | L24: 36.35 | M24: 53.59 | N24: 267.96 | O24: 38.21 | P24: 26.795 | Q24: 27.51031637 | T24: 2026.01 | U24: 刘玉升
A25: Qwen2.5-VL-7B-Instruct | B25: K100_AI | C25: 1 | D25: float16 | E25: 0.9.2 | F25: V0 | G25: 否 | H25: 4096 | I25: 1024 | J25: 4 | K25: 2147.41 | L25: 38.63 | M25: 98.29 | N25: 491.27 | O25: 41.67 | P25: 24.5725 | Q25: 25.88661662 | T25: 2026.01 | U25: 刘玉升
A26: Qwen2.5-VL-7B-Instruct | B26: K100_AI | C26: 1 | D26: float16 | E26: 0.9.2 | F26: V0 | G26: 否 | H26: 4096 | I26: 1024 | J26: 8 | K26: 4607.45 | L26: 44.32 | M26: 164 | N26: 819.83 | O26: 49.95 | P26: 20.5 | Q26: 22.5631769 | T26: 2026.01 | U26: 刘玉升
A27: Qwen2.5-VL-7B-Instruct | B27: K100_AI | C27: 1 | D27: float16 | E27: 0.9.2 | F27: V0 | G27: 否 | H27: 4096 | I27: 1024 | J27: 16 | K27: 7424.98 | L27: 55.63 | M27: 254.64 | N27: 1270.85 | O27: 64.34 | P27: 15.915 | Q27: 17.97591228 | T27: 2026.01 | U27: 刘玉升
A28: Qwen2.5-VL-7B-Instruct | B28: K100_AI | C28: 1 | D28: float16 | E28: 0.9.2 | F28: V0 | G28: 否 | H28: 4096 | I28: 1024 | J28: 64 | K28: 22833.23 | L28: 130.66 | M28: 418.73 | N28: 2090.92 | O28: 156.51 | P28: 6.54265625 | Q28: 7.653451707 | T28: 2026.01 | U28: 刘玉升
A29: Qwen2.5-VL-7B-Instruct | B29: K100_AI | C29: 1 | D29: float16 | E29: 0.9.2 | F29: V0 | G29: 否 | H29: 4096 | I29: 1024 | J29: 128 | K29: 43152.13 | L29: 236.09 | M29: 460.39 | N29: 2299.18 | O29: 284.7 | P29: 3.596796875 | Q29: 4.235672837 | T29: 2026.01 | U29: 刘玉升
A30: Qwen2.5-VL-7B-Instruct | B30: K100_AI | C30: 1 | D30: float16 | E30: 0.9.2 | F30: V0 | G30: 否 | H30: 16384 | I30: 1024 | J30: 1 | K30: 4096.03 | L30: 38.55 | M30: 23.52 | N30: 399.84 | O30: 43.54 | P30: 23.52 | Q30: 25.94033722 | T30: 2026.01 | U30: 刘玉升
A31: Qwen2.5-VL-7B-Instruct | B31: K100_AI | C31: 1 | D31: float16 | E31: 0.9.2 | F31: V0 | G31: 否 | H31: 16384 | I31: 1024 | J31: 2 | K31: 6120.65 | L31: 46.74 | M31: 37.97 | N31: 645.53 | O31: 53.93 | P31: 18.985 | Q31: 21.39495079 | T31: 2026.01 | U31: 刘玉升
A32: Qwen2.5-VL-7B-Instruct | B32: K100_AI | C32: 1 | D32: float16 | E32: 0.9.2 | F32: V0 | G32: 否 | H32: 16384 | I32: 1024 | J32: 4 | K32: 12193.02 | L32: 60.15 | M32: 55.55 | N32: 944.38 | O32: 73.73 | P32: 13.8875 | Q32: 16.62510391 | T32: 2026.01 | U32: 刘玉升
A33: Qwen2.5-VL-7B-Instruct | B33: K100_AI | C33: 1 | D33: float16 | E33: 0.9.2 | F33: V0 | G33: 否 | H33: 16384 | I33: 1024 | J33: 8 | K33: 22321.5 | L33: 87.02 | M33: 73.57 | N33: 1250.71 | O33: 111.35 | P33: 9.19625 | Q33: 11.49161112 | T33: 2026.01 | U33: 刘玉升
A34: Qwen2.5-VL-7B-Instruct | B34: K100_AI | C34: 1 | D34: float16 | E34: 0.9.2 | F34: V0 | G34: 否 | H34: 16384 | I34: 1024 | J34: 16 | K34: 41590.61 | L34: 145.79 | M34: 85.89 | N34: 1460.21 | O34: 190.75 | P34: 5.368125 | Q34: 6.859181014 | T34: 2026.01 | U34: 刘玉升
A35: Qwen2.5-VL-7B-Instruct | B35: K100_AI | C35: 1 | D35: float16 | E35: 0.9.2 | F35: V0 | G35: 否 | H35: 16384 | I35: 1024 | J35: 64 | K35: 233980.33 | L35: 282.81 | M35: 95.67 | N35: 1626.41 | O35: 685.01 | P35: 1.49484375 | Q35: 3.535942859 | T35: 2026.01 | U35: 刘玉升
A36: Qwen2.5-VL-7B-Instruct | B36: K100_AI | C36: 1 | D36: float16 | E36: 0.9.2 | F36: V0 | G36: 否 | H36: 16384 | I36: 1024 | J36: 128 | K36: 556009.92 | L36: 334.08 | M36: 94.46 | N36: 1605.9 | O36: 1387.52 | P36: 0.73796875 | Q36: 2.993295019 | T36: 2026.01 | U36: 刘玉升
A37: Qwen3-8B | B37: K100_AI | C37: 1 | D37: float16 | E37: 0.9.2 | F37: V0 | G37: 否 | H37: 512 | I37: 512 | J37: 1 | K37: 151.94 | L37: 24.51 | M37: 40.38 | N37: 80.76 | O37: 12.68 | P37: 40.38 | Q37: 40.7996736 | R37: vllm:0.9.2-ubuntu22.04-dtk25.04.2-1226-das1.7-py3.10-20251226 | S37: Hygon C86 7490 64-core Processor*2 /DDR5 4800 32G*24 /480G 2.5 SATA 6Gb R SSD*2 / 960G 2.5 SATA 6Gb R SSD*4 / BCM 8560-8i 4G MR*1/板载双口1G RJ45网卡x1/DCU K100-AI x8(120CU)/2200W电源模块*4 | T37: 2026.01 | U37: 刘玉升
A38: Qwen3-8B | B38: K100_AI | C38: 1 | D38: float16 | E38: 0.9.2 | F38: V0 | G38: 否 | H38: 512 | I38: 512 | J38: 2 | K38: 253.51 | L38: 25.55 | M38: 76.94 | N38: 153.87 | O38: 13.31 | P38: 38.47 | Q38: 39.13894325 | T38: 2026.01 | U38: 刘玉升
A39: Qwen3-8B | B39: K100_AI | C39: 1 | D39: float16 | E39: 0.9.2 | F39: V0 | G39: 否 | H39: 512 | I39: 512 | J39: 4 | K39: 415.03 | L39: 27.78 | M39: 140.18 | N39: 280.35 | O39: 14.61 | P39: 35.045 | Q39: 35.99712023 | T39: 2026.01 | U39: 刘玉升
A40: Qwen3-8B | B40: K100_AI | C40: 1 | D40: float16 | E40: 0.9.2 | F40: V0 | G40: 否 | H40: 512 | I40: 512 | J40: 8 | K40: 614.74 | L40: 31.94 | M40: 241.79 | N40: 483.52 | O40: 16.94 | P40: 30.22375 | Q40: 31.30870382 | T40: 2026.01 | U40: 刘玉升
A41: Qwen3-8B | B41: K100_AI | C41: 1 | D41: float16 | E41: 0.9.2 | F41: V0 | G41: 否 | H41: 512 | I41: 512 | J41: 16 | K41: 1322.21 | L41: 38.23 | M41: 392.67 | N41: 785.24 | O41: 20.86 | P41: 24.541875 | Q41: 26.15746796 | T41: 2026.01 | U41: 刘玉升
A42: Qwen3-8B | B42: K100_AI | C42: 1 | D42: float16 | E42: 0.9.2 | F42: V0 | G42: 否 | H42: 512 | I42: 512 | J42: 64 | K42: 5104.88 | L42: 77.32 | M42: 734.19 | N42: 1468.34 | O42: 44.63 | P42: 11.47171875 | Q42: 12.93326436 | T42: 2026.01 | U42: 刘玉升
A43: Qwen3-8B | B43: K100_AI | C43: 1 | D43: float16 | E43: 0.9.2 | F43: V0 | G43: 否 | H43: 1024 | I43: 1024 | J43: 1 | K43: 233.73 | L43: 24.84 | M43: 39.92 | N43: 79.85 | O43: 25.65 | P43: 39.92 | Q43: 40.25764895 | T43: 2026.01 | U43: 刘玉升
A44: Qwen3-8B | B44: K100_AI | C44: 1 | D44: float16 | E44: 0.9.2 | F44: V0 | G44: 否 | H44: 1024 | I44: 1024 | J44: 2 | K44: 409.4 | L44: 26.52 | M44: 74.37 | N44: 148.74 | O44: 27.54 | P44: 37.185 | Q44: 37.70739065 | T44: 2026.01 | U44: 刘玉升
A45: Qwen3-8B | B45: K100_AI | C45: 1 | D45: float16 | E45: 0.9.2 | F45: V0 | G45: 否 | H45: 1024 | I45: 1024 | J45: 4 | K45: 663.35 | L45: 29.57 | M45: 132.48 | N45: 264.97 | O45: 30.92 | P45: 33.12 | Q45: 33.81805884 | T45: 2026.01 | U45: 刘玉升
A46: Qwen3-8B | B46: K100_AI | C46: 1 | D46: float16 | E46: 0.9.2 | F46: V0 | G46: 否 | H46: 1024 | I46: 1024 | J46: 8 | K46: 1187.5 | L46: 35.3 | M46: 219.63 | N46: 439.23 | O46: 37.3 | P46: 27.45375 | Q46: 28.3286119 | T46: 2026.01 | U46: 刘玉升
A47: Qwen3-8B | B47: K100_AI | C47: 1 | D47: float16 | E47: 0.9.2 | F47: V0 | G47: 否 | H47: 1024 | I47: 1024 | J47: 16 | K47: 2502.41 | L47: 44.71 | M47: 339.63 | N47: 678.84 | O47: 48.24 | P47: 21.226875 | Q47: 22.36636099 | T47: 2026.01 | U47: 刘玉升
A48: Qwen3-8B | B48: K100_AI | C48: 1 | D48: float16 | E48: 0.9.2 | F48: V0 | G48: 否 | H48: 1024 | I48: 1024 | J48: 64 | K48: 7889.23 | L48: 105.52 | M48: 565.67 | N48: 1129.41 | O48: 115.86 | P48: 8.83859375 | Q48: 9.476876422 | T48: 2026.01 | U48: 刘玉升
A49: Qwen3-8B | B49: K100_AI | C49: 1 | D49: float16 | E49: 0.9.2 | F49: V0 | G49: 否 | H49: 2048 | I49: 2048 | J49: 1 | K49: 421.47 | L49: 27.51 | M49: 36.1 | N49: 72.2 | O49: 56.73 | P49: 36.1 | Q49: 36.35041803 | T49: 2026.01 | U49: 刘玉升
A50: Qwen3-8B | B50: K100_AI | C50: 1 | D50: float16 | E50: 0.9.2 | F50: V0 | G50: 否 | H50: 2048 | I50: 2048 | J50: 2 | K50: 746.19 | L50: 29.89 | M50: 66.14 | N50: 132.28 | O50: 61.93 | P50: 33.07 | Q50: 33.45600535 | T50: 2026.01 | U50: 刘玉升
A51: Qwen3-8B | B51: K100_AI | C51: 1 | D51: float16 | E51: 0.9.2 | F51: V0 | G51: 否 | H51: 2048 | I51: 2048 | J51: 4 | K51: 1119.22 | L51: 34.93 | M51: 112.8 | N51: 225.6 | O51: 72.62 | P51: 28.2 | Q51: 28.62868594 | T51: 2026.01 | U51: 刘玉升
A52: Qwen3-8B | B52: K100_AI | C52: 1 | D52: float16 | E52: 0.9.2 | F52: V0 | G52: 否 | H52: 2048 | I52: 2048 | J52: 8 | K52: 2456.12 | L52: 45.86 | M52: 170.07 | N52: 339.64 | O52: 96.34 | P52: 21.25875 | Q52: 21.80549498 | T52: 2026.01 | U52: 刘玉升
A53: Qwen3-8B | B53: K100_AI | C53: 1 | D53: float16 | E53: 0.9.2 | F53: V0 | G53: 否 | H53: 2048 | I53: 2048 | J53: 16 | K53: 5105.23 | L53: 61.2 | M53: 251.3 | N53: 500.92 | O53: 130.4 | P53: 15.70625 | Q53: 16.33986928 | T53: 2026.01 | U53: 刘玉升
A54: Qwen3-8B | B54: K100_AI | C54: 1 | D54: float16 | E54: 0.9.2 | F54: V0 | G54: 否 | H54: 2048 | I54: 2048 | J54: 64 | K54: 13390.85 | L54: 168.43 | M54: 365.94 | N54: 730.28 | O54: 358.18 | P54: 5.7178125 | Q54: 5.937184587 | T54: 2026.01 | U54: 刘玉升
A55: Qwen3-8B | B55: K100_AI | C55: 1 | D55: float16 | E55: 0.9.2 | F55: V0 | G55: 否 | H55: 4096 | I55: 1024 | J55: 1 | K55: 800.14 | L55: 29.86 | M55: 32.66 | N55: 163.31 | O55: 31.35 | P55: 32.66 | Q55: 33.48961822 | T55: 2026.01 | U55: 刘玉升
A56: Qwen3-8B | B56: K100_AI | C56: 1 | D56: float16 | E56: 0.9.2 | F56: V0 | G56: 否 | H56: 4096 | I56: 1024 | J56: 2 | K56: 1552.62 | L56: 35.69 | M56: 53.81 | N56: 269.05 | O56: 38.06 | P56: 26.905 | Q56: 28.01905296 | T56: 2026.01 | U56: 刘玉升
A57: Qwen3-8B | B57: K100_AI | C57: 1 | D57: float16 | E57: 0.9.2 | F57: V0 | G57: 否 | H57: 4096 | I57: 1024 | J57: 4 | K57: 2476.73 | L57: 45.64 | M57: 83.3 | N57: 416.35 | O57: 49.17 | P57: 20.825 | Q57: 21.91060473 | T57: 2026.01 | U57: 刘玉升
A58: Qwen3-8B | B58: K100_AI | C58: 1 | D58: float16 | E58: 0.9.2 | F58: V0 | G58: 否 | H58: 4096 | I58: 1024 | J58: 8 | K58: 5380.83 | L58: 61.33 | M58: 120.25 | N58: 601.14 | O58: 68.12 | P58: 15.03125 | Q58: 16.30523398 | T58: 2026.01 | U58: 刘玉升
A59: Qwen3-8B | B59: K100_AI | C59: 1 | D59: float16 | E59: 0.9.2 | F59: V0 | G59: 否 | H59: 4096 | I59: 1024 | J59: 16 | K59: 8783.59 | L59: 85.13 | M59: 170.89 | N59: 852.86 | O59: 95.88 | P59: 10.680625 | Q59: 11.74674028 | T59: 2026.01 | U59: 刘玉升
A60: Qwen3-8B | B60: K100_AI | C60: 1 | D60: float16 | E60: 0.9.2 | F60: V0 | G60: 否 | H60: 4096 | I60: 1024 | J60: 64 | K60: 27274.85 | L60: 236.36 | M60: 224.25 | N60: 1119.8 | O60: 292.24 | P60: 3.50390625 | Q60: 4.230834321 | T60: 2026.01 | U60: 刘玉升
A61: Qwen3-8B | B61: K100_AI | C61: 1 | D61: float16 | E61: 0.9.2 | F61: V0 | G61: 否 | H61: 16384 | I61: 1024 | J61: 1 | K61: 13917.15 | L61: 42.87 | M61: 17.72 | N61: 301.31 | O61: 57.77 | P61: 17.72 | Q61: 23.32633543 | T61: 2026.01 | U61: 刘玉升
A62: Qwen3-8B | B62: K100_AI | C62: 1 | D62: float16 | E62: 0.9.2 | F62: V0 | G62: 否 | H62: 16384 | I62: 1024 | J62: 2 | K62: 20884.08 | L62: 65.9 | M62: 23.19 | N62: 394.29 | O62: 88.3 | P62: 11.595 | Q62: 15.17450683 | T62: 2026.01 | U62: 刘玉升
A63: Qwen3-8B | B63: K100_AI | C63: 1 | D63: float16 | E63: 0.9.2 | F63: V0 | G63: 否 | H63: 16384 | I63: 1024 | J63: 4 | K63: 38388.36 | L63: 98.61 | M63: 29.41 | N63: 499.98 | O63: 139.27 | P63: 7.3525 | Q63: 10.14095933 | T63: 2026.01 | U63: 刘玉升
A64: Qwen3-8B | B64: K100_AI | C64: 1 | D64: float16 | E64: 0.9.2 | F64: V0 | G64: 否 | H64: 16384 | I64: 1024 | J64: 8 | K64: 68680.28 | L64: 179.38 | M64: 32.48 | N64: 552.21 | O64: 252.19 | P64: 4.06 | Q64: 5.574757498 | T64: 2026.01 | U64: 刘玉升
A65: Qwen3-8B | B65: K100_AI | C65: 1 | D65: float16 | E65: 0.9.2 | F65: V0 | G65: 否 | H65: 16384 | I65: 1024 | J65: 16 | K65: 125691.57 | L65: 322.78 | M65: 35.94 | N65: 610.94 | O65: 455.9 | P65: 2.24625 | Q65: 3.098085383 | T65: 2026.01 | U65: 刘玉升
A66: Qwen3-8B | B66: K100_AI | C66: 1 | D66: float16 | E66: 0.9.2 | F66: V0 | G66: 否 | H66: 16384 | I66: 1024 | J66: 64 | K66: 815389.83 | L66: 348.54 | M66: 35.19 | N66: 598.21 | O66: 1862.4 | P66: =M66/J66 -> 0.54984375 | Q66: =1000/L66 -> 2.869111149 | T66: 2026.01 | U66: 刘玉升
A67: Qwen3-32B | B67: K100_AI | C67: 2 | D67: float16 | E67: 0.9.2 | F67: V0 | G67: 否 | H67: 512 | I67: 512 | J67: 1 | K67: 437.91 | L67: 105.76 | M67: 9.4 | N67: 18.8 | O67: 54.48 | P67: 9.4 | Q67: 9.455370651 | R67: vllm:0.9.2-ubuntu22.04-dtk25.04.2-1226-das1.7-py3.10-20251226 | S67: Hygon C86 7490 64-core Processor*2 /DDR5 4800 32G*24 /480G 2.5 SATA 6Gb R SSD*2 / 960G 2.5 SATA 6Gb R SSD*4 / BCM 8560-8i 4G MR*1/板载双口1G RJ45网卡x1/DCU K100-AI x8(120CU)/2200W电源模块*4 | T67: 2026.01 | U67: 刘玉升
A68: Qwen3-32B | B68: K100_AI | C68: 2 | D68: float16 | E68: 0.9.2 | F68: V0 | G68: 否 | H68: 512 | I68: 512 | J68: 2 | K68: 594.42 | L68: 106.87 | M68: 18.55 | N68: 37.1 | O68: 55.2 | P68: 9.275 | Q68: 9.357162908 | T68: 2026.01 | U68: 刘玉升
A69: Qwen3-32B | B69: K100_AI | C69: 2 | D69: float16 | E69: 0.9.2 | F69: V0 | G69: 否 | H69: 512 | I69: 512 | J69: 4 | K69: 982.85 | L69: 115.39 | M69: 34.16 | N69: 68.32 | O69: 59.95 | P69: 8.54 | Q69: 8.666262241 | T69: 2026.01 | U69: 刘玉升
A70: Qwen3-32B | B70: K100_AI | C70: 2 | D70: float16 | E70: 0.9.2 | F70: V0 | G70: 否 | H70: 512 | I70: 512 | J70: 8 | K70: 1701.6 | L70: 117.45 | M70: 66.37 | N70: 132.71 | O70: 61.72 | P70: 8.29625 | Q70: 8.514261388 | T70: 2026.01 | U70: 刘玉升
A71: Qwen3-32B | B71: K100_AI | C71: 2 | D71: float16 | E71: 0.9.2 | F71: V0 | G71: 否 | H71: 512 | I71: 512 | J71: 16 | K71: 3206.93 | L71: 127.48 | M71: 119.85 | N71: 239.67 | O71: 68.35 | P71: 7.490625 | Q71: 7.844367744 | T71: 2026.01 | U71: 刘玉升
A72: Qwen3-32B | B72: K100_AI | C72: 2 | D72: float16 | E72: 0.9.2 | F72: V0 | G72: 否 | H72: 512 | I72: 512 | J72: 64 | K72: 9563.61 | L72: 170.88 | M72: 338.19 | N72: 676.35 | O72: 96.89 | P72: 5.28421875 | Q72: 5.852059925 | T72: 2026.01 | U72: 刘玉升
A73: Qwen3-32B | B73: K100_AI | C73: 2 | D73: float16 | E73: 0.9.2 | F73: V0 | G73: 否 | H73: 1024 | I73: 1024 | J73: 1 | K73: 573.64 | L73: 106.08 | M73: 9.39 | N73: 18.77 | O73: 109.1 | P73: 9.39 | Q73: 9.426847662 | T73: 2026.01 | U73: 刘玉升
A74: Qwen3-32B | B74: K100_AI | C74: 2 | D74: float16 | E74: 0.9.2 | F74: V0 | G74: 否 | H74: 1024 | I74: 1024 | J74: 2 | K74: 960.35 | L74: 107.78 | M74: 18.41 | N74: 36.83 | O74: 111.22 | P74: 9.205 | Q74: 9.278159213 | T74: 2026.01 | U74: 刘玉升
A75: Qwen3-32B | B75: K100_AI | C75: 2 | D75: float16 | E75: 0.9.2 | F75: V0 | G75: 否 | H75: 1024 | I75: 1024 | J75: 4 | K75: 1697.74 | L75: 115.94 | M75: 34.05 | N75: 68.09 | O75: 120.3 | P75: 8.5125 | Q75: 8.62515094 | T75: 2026.01 | U75: 刘玉升
A76: Qwen3-32B | B76: K100_AI | C76: 2 | D76: float16 | E76: 0.9.2 | F76: V0 | G76: 否 | H76: 1024 | I76: 1024 | J76: 8 | K76: 3197.17 | L76: 119.86 | M76: 65.11 | N76: 130.21 | O76: 125.82 | P76: 8.13875 | Q76: 8.343066911 | T76: 2026.01 | U76: 刘玉升
A77: Qwen3-32B | B77: K100_AI | C77: 2 | D77: float16 | E77: 0.9.2 | F77: V0 | G77: 否 | H77: 1024 | I77: 1024 | J77: 16 | K77: 6096.98 | L77: 133 | M77: 115.25 | N77: 230.36 | O77: 142.16 | P77: 7.203125 | Q77: 7.518796992 | T77: 2026.01 | U77: 刘玉升
A78: Qwen3-32B | B78: K100_AI | C78: 2 | D78: float16 | E78: 0.9.2 | F78: V0 | G78: 否 | H78: 1024 | I78: 1024 | J78: 64 | K78: 16883.74 | L78: 196.15 | M78: 301.23 | N78: 601.44 | O78: 217.56 | P78: 4.70671875 | Q78: 5.098139179 | T78: 2026.01 | U78: 刘玉升
A79: Qwen3-32B | B79: K100_AI | C79: 2 | D79: float16 | E79: 0.9.2 | F79: V0 | G79: 否 | H79: 2048 | I79: 2048 | J79: 1 | K79: 980.57 | L79: 106.56 | M79: 9.35 | N79: 18.69 | O79: 219.11 | P79: 9.35 | Q79: 9.384384384 | T79: 2026.01 | U79: 刘玉升
A80: Qwen3-32B | B80: K100_AI | C80: 2 | D80: float16 | E80: 0.9.2 | F80: V0 | G80: 否 | H80: 2048 | I80: 2048 | J80: 2 | K80: 1723.49 | L80: 108.13 | M80: 18.36 | N80: 36.72 | O80: 223.06 | P80: 9.18 | Q80: 9.248127254 | T80: 2026.01 | U80: 刘玉升
A81: Qwen3-32B | B81: K100_AI | C81: 2 | D81: float16 | E81: 0.9.2 | F81: V0 | G81: 否 | H81: 2048 | I81: 2048 | J81: 4 | K81: 3252.34 | L81: 118.48 | M81: 33.33 | N81: 66.66 | O81: 245.79 | P81: 8.3325 | Q81: 8.440243079 | T81: 2026.01 | U81: 刘玉升
A82: Qwen3-32B | B82: K100_AI | C82: 2 | D82: float16 | E82: 0.9.2 | F82: V0 | G82: 否 | H82: 2048 | I82: 2048 | J82: 8 | K82: 6175.06 | L82: 125.31 | M82: 62.37 | N82: 124.55 | O82: 262.69 | P82: 7.79625 | Q82: 7.980209081 | T82: 2026.01 | U82: 刘玉升
A83: Qwen3-32B | B83: K100_AI | C83: 2 | D83: float16 | E83: 0.9.2 | F83: V0 | G83: 否 | H83: 2048 | I83: 2048 | J83: 16 | K83: 9926.98 | L83: 146.58 | M83: 105.71 | N83: 210.72 | O83: 309.98 | P83: 6.606875 | Q83: 6.822213126 | T83: 2026.01 | U83: 刘玉升
A84: Qwen3-32B | B84: K100_AI | C84: 2 | D84: float16 | E84: 0.9.2 | F84: V0 | G84: 否 | H84: 2048 | I84: 2048 | J84: 64 | K84: 30052.12 | L84: 255.07 | M84: 195.63 | N84: 390.41 | O84: 669.99 | P84: 3.05671875 | Q84: 3.920492414 | T84: 2026.01 | U84: 刘玉升
A85: Qwen3-32B | B85: K100_AI | C85: 2 | D85: float16 | E85: 0.9.2 | F85: V0 | G85: 否 | H85: 4096 | I85: 1024 | J85: 1 | K85: 1789.34 | L85: 107.16 | M85: 9.19 | N85: 45.96 | O85: 111.41 | P85: 9.19 | Q85: 9.331840239 | T85: 2026.01 | U85: 刘玉升
A86: Qwen3-32B | B86: K100_AI | C86: 2 | D86: float16 | E86: 0.9.2 | F86: V0 | G86: 否 | H86: 4096 | I86: 1024 | J86: 2 | K86: 3378.33 | L86: 110 | M86: 17.67 | N86: 88.35 | O86: 115.9 | P86: 8.835 | Q86: 9.090909091 | T86: 2026.01 | U86: 刘玉升
A87: Qwen3-32B | B87: K100_AI | C87: 2 | D87: float16 | E87: 0.9.2 | F87: V0 | G87: 否 | H87: 4096 | I87: 1024 | J87: 4 | K87: 6468.18 | L87: 122.69 | M87: 31.03 | N87: 155.11 | O87: 131.99 | P87: 7.7575 | Q87: 8.150623523 | T87: 2026.01 | U87: 刘玉升
A88: Qwen3-32B | B88: K100_AI | C88: 2 | D88: float16 | E88: 0.9.2 | F88: V0 | G88: 否 | H88: 4096 | I88: 1024 | J88: 8 | K88: 11443.47 | L88: 136.15 | M88: 54.35 | N88: 271.69 | O88: 150.73 | P88: 6.79375 | Q88: 7.34484025 | T88: 2026.01 | U88: 刘玉升
A89: Qwen3-32B | B89: K100_AI | C89: 2 | D89: float16 | E89: 0.9.2 | F89: V0 | G89: 否 | H89: 4096 | I89: 1024 | J89: 16 | K89: 17977.13 | L89: 167.4 | M89: 86.58 | N89: 432.11 | O89: 189.23 | P89: 5.41125 | Q89: 5.973715651 | T89: 2026.01 | U89: 刘玉升
A90: Qwen3-32B | B90: K100_AI | C90: 2 | D90: float16 | E90: 0.9.2 | F90: V0 | G90: 否 | H90: 4096 | I90: 1024 | J90: 64 | K90: 116568.31 | L90: 261.48 | M90: 124.45 | N90: 621.42 | O90: 526.62 | P90: 1.94453125 | Q90: 3.824384274 | T90: 2026.01 | U90: 刘玉升
A91: Qwen3-32B | B91: K100_AI | C91: 2 | D91: float16 | E91: 0.9.2 | F91: V0 | G91: 否 | H91: 16384 | I91: 1024 | J91: 1 | K91: 19701.06 | L91: 112.85 | M91: 7.58 | N91: 128.81 | O91: 135.15 | P91: 7.58 | Q91: 8.861320337 | T91: 2026.01 | U91: 刘玉升
A92: Qwen3-32B | B92: K100_AI | C92: 2 | D92: float16 | E92: 0.9.2 | F92: V0 | G92: 否 | H92: 16384 | I92: 1024 | J92: 2 | K92: 29697.83 | L92: 135.76 | M92: 12.15 | N92: 206.53 | O92: 168.58 | P92: 6.075 | Q92: 7.365939894 | T92: 2026.01 | U92: 刘玉升
A93: Qwen3-32B | B93: K100_AI | C93: 2 | D93: float16 | E93: 0.9.2 | F93: V0 | G93: 否 | H93: 16384 | I93: 1024 | J93: 4 | K93: 56251.71 | L93: 179.01 | M93: 17.11 | N93: 290.88 | O93: 239.38 | P93: 4.2775 | Q93: 5.586280096 | T93: 2026.01 | U93: 刘玉升
A94: Qwen3-32B | B94: K100_AI | C94: 2 | D94: float16 | E94: 0.9.2 | F94: V0 | G94: 否 | H94: 16384 | I94: 1024 | J94: 8 | K94: 101061.07 | L94: 263.27 | M94: 22.12 | N94: 375.99 | O94: 370.39 | P94: 2.765 | Q94: 3.798381889 | T94: 2026.01 | U94: 刘玉升
A95: Qwen3-32B | B95: K100_AI | C95: 2 | D95: float16 | E95: 0.9.2 | F95: V0 | G95: 否 | H95: 16384 | I95: 1024 | J95: 16 | K95: 256555.05 | L95: 317.55 | M95: 21.13 | N95: 359.18 | O95: 775.46 | P95: 1.320625 | Q95: 3.149110376 | T95: 2026.01 | U95: 刘玉升
A96: Qwen3-32B | B96: K100_AI | C96: 2 | D96: float16 | E96: 0.9.2 | F96: V0 | G96: 否 | H96: 16384 | I96: 1024 | J96: 64 | K96: 1308373.14 | L96: 363.04 | M96: 22.58 | N96: 383.89 | O96: 2902.14 | P96: 0.3528125 | Q96: 2.754517409 | T96: 2026.01 | U96: 刘玉升
A97: Qwen3-32B | B97: K100_AI | C97: 4 | D97: float16 | E97: 0.9.2 | F97: V0 | G97: 否 | H97: 512 | I97: 512 | J97: 1 | K97: 281.71 | L97: 80.07 | M97: 12.43 | N97: 24.86 | O97: 41.2 | P97: 12.43 | Q97: 12.48907206 | T97: 2026.01 | U97: 刘玉升
A98: Qwen3-32B | B98: K100_AI | C98: 4 | D98: float16 | E98: 0.9.2 | F98: V0 | G98: 否 | H98: 512 | I98: 512 | J98: 2 | K98: 416.64 | L98: 81.97 | M98: 24.21 | N98: 48.41 | O98: 42.3 | P98: 12.105 | Q98: 12.19958521 | T98: 2026.01 | U98: 刘玉升
A99: Qwen3-32B | B99: K100_AI | C99: 4 | D99: float16 | E99: 0.9.2 | F99: V0 | G99: 否 | H99: 512 | I99: 512 | J99: 4 | K99: 665.95 | L99: 83.03 | M99: 47.52 | N99: 95.04 | O99: 43.1 | P99: 11.88 | Q99: 12.04383958 | T99: 2026.01 | U99: 刘玉升
A100: Qwen3-32B | B100: K100_AI | C100: 4 | D100: float16 | E100: 0.9.2 | F100: V0 | G100: 否 | H100: 512 | I100: 512 | J100: 8 | K100: 1112.58 | L100: 86.94 | M100: 89.94 | N100: 179.87 | O100: 45.54 | P100: 11.2425 | Q100: 11.50218542 | T100: 2026.01 | U100: 刘玉升
A101: Qwen3-32B | B101: K100_AI | C101: 4 | D101: float16 | E101: 0.9.2 | F101: V0 | G101: 否 | H101: 512 | I101: 512 | J101: 16 | K101: 2064.31 | L101: 93.56 | M101: 164.23 | N101: 328.43 | O101: 49.88 | P101: 10.264375 | Q101: 10.68832835 | T101: 2026.01 | U101: 刘玉升
A102: Qwen3-32B | B102: K100_AI | C102: 4 | D102: float16 | E102: 0.9.2 | F102: V0 | G102: 否 | H102: 512 | I102: 512 | J102: 64 | K102: 7075.51 | L102: 128.63 | M102: 449.99 | N102: 899.95 | O102: 72.82 | P102: 7.03109375 | Q102: 7.774236181 | T102: 2026.01 | U102: 刘玉升
A103: Qwen3-32B | B103: K100_AI | C103: 4 | D103: float16 | E103: 0.9.2 | F103: V0 | G103: 否 | H103: 1024 | I103: 1024 | J103: 1 | K103: 401.58 | L103: 82.35 | M103: 12.1 | N103: 24.2 | O103: 84.64 | P103: 12.1 | Q103: 12.14329083 | T103: 2026.01 | U103: 刘玉升
A104: Qwen3-32B | B104: K100_AI | C104: 4 | D104: float16 | E104: 0.9.2 | F104: V0 | G104: 否 | H104: 1024 | I104: 1024 | J104: 2 | K104: 655.94 | L104: 83.88 | M104: 23.68 | N104: 47.37 | O104: 86.47 | P104: 11.84 | Q104: 11.92179304 | T104: 2026.01 | U104: 刘玉升
A105: Qwen3-32B | B105: K100_AI | C105: 4 | D105: float16 | E105: 0.9.2 | F105: V0 | G105: 否 | H105: 1024 | I105: 1024 | J105: 4 | K105: 1103.41 | L105: 84.94 | M105: 46.54 | N105: 93.09 | O105: 88 | P105: 11.635 | Q105: 11.77301625 | T105: 2026.01 | U105: 刘玉升
A106: Qwen3-32B | B106: K100_AI | C106: 4 | D106: float16 | E106: 0.9.2 | F106: V0 | G106: 否 | H106: 1024 | I106: 1024 | J106: 8 | K106: 2051.97 | L106: 87.58 | M106: 89.39 | N106: 178.76 | O106: 91.65 | P106: 11.17375 | Q106: 11.41813199 | T106: 2026.01 | U106: 刘玉升
A107: Qwen3-32B | B107: K100_AI | C107: 4 | D107: float16 | E107: 0.9.2 | F107: V0 | G107: 否 | H107: 1024 | I107: 1024 | J107: 16 | K107: 3867.99 | L107: 96.69 | M107: 159.39 | N107: 318.59 | O107: 102.79 | P107: 9.961875 | Q107: 10.34233116 | T107: 2026.01 | U107: 刘玉升
A108: Qwen3-32B | B108: K100_AI | C108: 4 | D108: float16 | E108: 0.9.2 | F108: V0 | G108: 否 | H108: 1024 | I108: 1024 | J108: 64 | K108: 11184.28 | L108: 144.69 | M108: 411.63 | N108: 821.85 | O108: 159.21 | P108: 6.43171875 | Q108: 6.911327666 | T108: 2026.01 | U108: 刘玉升
A109: Qwen3-32B | B109: K100_AI | C109: 4 | D109: float16 | E109: 0.9.2 | F109: V0 | G109: 否 | H109: 2048 | I109: 2048 | J109: 1 | K109: 669.21 | L109: 88.32 | M109: 11.29 | N109: 22.57 | O109: 181.46 | P109: 11.29 | Q109: 11.32246377 | T109: 2026.01 | U109: 刘玉升
A110: Qwen3-32B | B110: K100_AI | C110: 4 | D110: float16 | E110: 0.9.2 | F110: V0 | G110: 否 | H110: 2048 | I110: 2048 | J110: 2 | K110: 1132.56 | L110: 89.42 | M110: 22.24 | N110: 44.48 | O110: 184.18 | P110: 11.12 | Q110: 11.1831805 | T110: 2026.01 | U110: 刘玉升
A111: Qwen3-32B | B111: K100_AI | C111: 4 | D111: float16 | E111: 0.9.2 | F111: V0 | G111: 否 | H111: 2048 | I111: 2048 | J111: 4 | K111: 2090.54 | L111: 90.91 | M111: 43.53 | N111: 87.06 | O111: 188.19 | P111: 10.8825 | Q111: 10.99989 | T111: 2026.01 | U111: 刘玉升
A112: Qwen3-32B | B112: K100_AI | C112: 4 | D112: float16 | E112: 0.9.2 | F112: V0 | G112: 否 | H112: 2048 | I112: 2048 | J112: 8 | K112: 3923.45 | L112: 98.13 | M112: 80 | N112: 159.75 | O112: 204.81 | P112: 10 | Q112: 10.19056354 | T112: 2026.01 | U112: 刘玉升
A113: Qwen3-32B | B113: K100_AI | C113: 4 | D113: float16 | E113: 0.9.2 | F113: V0 | G113: 否 | H113: 2048 | I113: 2048 | J113: 16 | K113: 5886.63 | L113: 108.87 | M113: 143.24 | N113: 285.53 | O113: 228.76 | P113: 8.9525 | Q113: 9.185266832 | T113: 2026.01 | U113: 刘玉升
A114: Qwen3-32B | B114: K100_AI | C114: 4 | D114: float16 | E114: 0.9.2 | F114: V0 | G114: 否 | H114: 2048 | I114: 2048 | J114: 64 | K114: 19045.65 | L114: 175.15 | M114: 347.12 | N114: 692.73 | O114: 377.6 | P114: 5.42375 | Q114: 5.70939195 | T114: 2026.01 | U114: 刘玉升
A115: Qwen3-32B | B115: K100_AI | C115: 4 | D115: float16 | E115: 0.9.2 | F115: V0 | G115: 否 | H115: 4096 | I115: 1024 | J115: 1 | K115: 1160.22 | L115: 89.91 | M115: 10.99 | N115: 54.97 | O115: 93.13 | P115: 10.99 | Q115: 11.12223334 | T115: 2026.01 | U115: 刘玉升
A116: Qwen3-32B | B116: K100_AI | C116: 4 | D116: float16 | E116: 0.9.2 | F116: V0 | G116: 否 | H116: 4096 | I116: 1024 | J116: 2 | K116: 2146.21 | L116: 92.09 | M116: 21.25 | N116: 106.27 | O116: 96.36 | P116: 10.625 | Q116: 10.85894234 | T116: 2026.01 | U116: 刘玉升
A117: Qwen3-32B | B117: K100_AI | C117: 4 | D117: float16 | E117: 0.9.2 | F117: V0 | G117: 否 | H117: 4096 | I117: 1024 | J117: 4 | K117: 4022.39 | L117: 94.5 | M117: 40.68 | N117: 203.31 | O117: 100.69 | P117: 10.17 | Q117: 10.58201058 | T117: 2026.01 | U117: 刘玉升
A118: Qwen3-32B | B118: K100_AI | C118: 4 | D118: float16 | E118: 0.9.2 | F118: V0 | G118: 否 | H118: 4096 | I118: 1024 | J118: 8 | K118: 6430.83 | L118: 105.62 | M118: 71.55 | N118: 357.7 | O118: 114.49 | P118: 8.94375 | Q118: 9.467903806 | T118: 2026.01 | U118: 刘玉升
A119: Qwen3-32B | B119: K100_AI | C119: 4 | D119: float16 | E119: 0.9.2 | F119: V0 | G119: 否 | H119: 4096 | I119: 1024 | J119: 16 | K119: 13333.89 | L119: 563.81 | M119: 27.76 | N119: 138.56 | O119: 590.12 | P119: 1.735 | Q119: 1.773647151 | T119: 2026.01 | U119: 刘玉升
A120: Qwen3-32B | B120: K100_AI | C120: 4 | D120: float16 | E120: 0.9.2 | F120: V0 | G120: 否 | H120: 4096 | I120: 1024 | J120: 64 | P120: 0 | T120: 2026.01 | U120: 刘玉升
A121: Qwen3-32B | B121: K100_AI | C121: 4 | D121: float16 | E121: 0.9.2 | F121: V0 | G121: 否 | H121: 16384 | I121: 1024 | J121: 1 | P121: 0 | T121: 2026.01 | U121: 刘玉升
A122: Qwen3-32B | B122: K100_AI | C122: 4 | D122: float16 | E122: 0.9.2 | F122: V0 | G122: 否 | H122: 16384 | I122: 1024 | J122: 2 | P122: 0 | T122: 2026.01 | U122: 刘玉升
A123: Qwen3-32B | B123: K100_AI | C123: 4 | D123: float16 | E123: 0.9.2 | F123: V0 | G123: 否 | H123: 16384 | I123: 1024 | J123: 4 | P123: 0 | T123: 2026.01 | U123: 刘玉升
A124: Qwen3-32B | B124: K100_AI | C124: 4 | D124: float16 | E124: 0.9.2 | F124: V0 | G124: 否 | H124: 16384 | I124: 1024 | J124: 8 | P124: 0 | T124: 2026.01 | U124: 刘玉升
A125: Qwen3-32B | B125: K100_AI | C125: 4 | D125: float16 | E125: 0.9.2 | F125: V0 | G125: 否 | H125: 16384 | I125: 1024 | J125: 16 | P125: 0 | T125: 2026.01 | U125: 刘玉升
A126: Qwen3-32B | B126: K100_AI | C126: 4 | D126: float16 | E126: 0.9.2 | F126: V0 | G126: 否 | H126: 16384 | I126: 1024 | J126: 64 | P126: 0 | T126: 2026.01 | U126: 刘玉升
A127: Qwen3-30B-A3B | B127: K100_AI | C127: 2 | D127: float16 | E127: 0.9.2 | F127: V0 | G127: 否 | H127: 512 | I127: 512 | J127: 1 | K127: 185.6 | L127: 49.91 | M127: 19.93 | N127: 39.86 | O127: 25.69 | P127: 19.93 | Q127: 20.03606492 | R127: vllm:0.9.2-ubuntu22.04-dtk25.04.2-1226-das1.7-py3.10-20251226 | S127: Hygon C86 7490 64-core Processor*2 /DDR5 4800 32G*24 /480G 2.5 SATA 6Gb R SSD*2 / 960G 2.5 SATA 6Gb R SSD*4 / BCM 8560-8i 4G MR*1/板载双口1G RJ45网卡x1/DCU K100-AI x8(120CU)/2200W电源模块*4 | T127: 2026.01 | U127: 刘玉升
A128: Qwen3-30B-A3B | B128: K100_AI | C128: 2 | D128: float16 | E128: 0.9.2 | F128: V0 | G128: 否 | H128: 512 | I128: 512 | J128: 2 | K128: 2061.43 | L128: 53.2 | M128: 35.01 | N128: 70.02 | O128: 29.25 | P128: 17.505 | Q128: 18.79699248 | T128: 2026.01 | U128: 刘玉升
A129: Qwen3-30B-A3B | B129: K100_AI | C129: 2 | D129: float16 | E129: 0.9.2 | F129: V0 | G129: 否 | H129: 512 | I129: 512 | J129: 4 | K129: 1706.03 | L129: 57.77 | M129: 65.59 | N129: 131.17 | O129: 31.23 | P129: 16.3975 | Q129: 17.3100225 | T129: 2026.01 | U129: 刘玉升
A130: Qwen3-30B-A3B | B130: K100_AI | C130: 2 | D130: float16 | E130: 0.9.2 | F130: V0 | G130: 否 | H130: 512 | I130: 512 | J130: 8 | K130: 3097.18 | L130: 65.45 | M130: 112.08 | N130: 224.13 | O130: 36.55 | P130: =M130/J130 -> 14.01 | Q130: =1000/L130 -> 15.27883881 | T130: 2026.01 | U130: 刘玉升
A131: Qwen3-30B-A3B | B131: K100_AI | C131: 2 | D131: float16 | E131: 0.9.2 | F131: V0 | G131: 否 | H131: 512 | I131: 512 | J131: 16 | K131: 892.24 | L131: 75.58 | M131: 207.3 | N131: 414.56 | O131: 39.52 | P131: 12.95625 | Q131: 13.2310135 | T131: 2026.01 | U131: 刘玉升
A132: Qwen3-30B-A3B | B132: K100_AI | C132: 2 | D132: float16 | E132: 0.9.2 | F132: V0 | G132: 否 | H132: 512 | I132: 512 | J132: 64 | K132: 3258.29 | L132: 112.21 | M132: 540.61 | N132: 1081.2 | O132: 60.61 | P132: 8.44703125 | Q132: 8.911861688 | T132: 2026.01 | U132: 刘玉升
A133: Qwen3-30B-A3B | B133: K100_AI | C133: 2 | D133: float16 | E133: 0.9.2 | F133: V0 | G133: 否 | H133: 1024 | I133: 1024 | J133: 1 | K133: 240.67 | L133: 50.4 | M133: 19.77 | N133: 39.53 | O133: 51.81 | P133: 19.77 | Q133: 19.84126984 | T133: 2026.01 | U133: 刘玉升
A134: Qwen3-30B-A3B | B134: K100_AI | C134: 2 | D134: float16 | E134: 0.9.2 | F134: V0 | G134: 否 | H134: 1024 | I134: 1024 | J134: 2 | K134: 335.73 | L134: 53.13 | M134: 37.45 | N134: 74.9 | O134: 54.69 | P134: 18.725 | Q134: 18.82175795 | T134: 2026.01 | U134: 刘玉升
A135: Qwen3-30B-A3B | B135: K100_AI | C135: 2 | D135: float16 | E135: 0.9.2 | F135: V0 | G135: 否 | H135: 1024 | I135: 1024 | J135: 4 | K135: 503.92 | L135: 58.06 | M135: 68.38 | N135: 136.76 | O135: 59.9 | P135: 17.095 | Q135: 17.22356183 | T135: 2026.01 | U135: 刘玉升
A136: Qwen3-30B-A3B | B136: K100_AI | C136: 2 | D136: float16 | E136: 0.9.2 | F136: V0 | G136: 否 | H136: 1024 | I136: 1024 | J136: 8 | K136: 861.67 | L136: 63.72 | M136: 124.02 | N136: 248.03 | O136: 66.05 | P136: 15.5025 | Q136: 15.69365976 | T136: 2026.01 | U136: 刘玉升
A137: Qwen3-30B-A3B | B137: K100_AI | C137: 2 | D137: float16 | E137: 0.9.2 | F137: V0 | G137: 否 | H137: 1024 | I137: 1024 | J137: 16 | K137: 1314.66 | L137: 79.06 | M137: 199.34 | N137: 398.43 | O137: 82.19 | P137: 12.45875 | Q137: 12.6486213 | T137: 2026.01 | U137: 刘玉升
A138: Qwen3-30B-A3B | B138: K100_AI | C138: 2 | D138: float16 | E138: 0.9.2 | F138: V0 | G138: 否 | H138: 1024 | I138: 1024 | J138: 64 | K138: 4910.86 | L138: 120.6 | M138: 510.82 | N138: 1019.89 | O138: 128.3 | P138: 7.9815625 | Q138: 8.291873964 | T138: 2026.01 | U138: 刘玉升
A139: Qwen3-30B-A3B | B139: K100_AI | C139: 2 | D139: float16 | E139: 0.9.2 | F139: V0 | G139: 否 | H139: 2048 | I139: 2048 | J139: 1 | K139: 340.43 | L139: 50.03 | M139: 19.93 | N139: 39.86 | O139: 102.75 | P139: 19.93 | Q139: 19.9880072 | T139: 2026.01 | U139: 刘玉升
A140: Qwen3-30B-A3B | B140: K100_AI | C140: 2 | D140: float16 | E140: 0.9.2 | F140: V0 | G140: 否 | H140: 2048 | I140: 2048 | J140: 2 | K140: 511 | L140: 53.08 | M140: 37.52 | N140: 75.04 | O140: 109.17 | P140: 18.76 | Q140: 18.83948757 | T140: 2026.01 | U140: 刘玉升
A141: Qwen3-30B-A3B | B141: K100_AI | C141: 2 | D141: float16 | E141: 0.9.2 | F141: V0 | G141: 否 | H141: 2048 | I141: 2048 | J141: 4 | K141: 881.75 | L141: 56.88 | M141: 69.83 | N141: 139.67 | O141: 117.31 | P141: 17.4575 | Q141: 17.58087201 | T141: 2026.01 | U141: 刘玉升
A142: Qwen3-30B-A3B | B142: K100_AI | C142: 2 | D142: float16 | E142: 0.9.2 | F142: V0 | G142: 否 | H142: 2048 | I142: 2048 | J142: 8 | K142: 1346.04 | L142: 64.48 | M142: 122.88 | N142: 245.38 | O142: 133.34 | P142: 15.36 | Q142: 15.50868486 | T142: 2026.01 | U142: 刘玉升
A143: Qwen3-30B-A3B | B143: K100_AI | C143: 2 | D143: float16 | E143: 0.9.2 | F143: V0 | G143: 否 | H143: 2048 | I143: 2048 | J143: 16 | K143: 2760.76 | L143: 77.68 | M143: 202.54 | N143: 403.73 | O143: 161.79 | P143: 12.65875 | Q143: 12.87332647 | T143: 2026.01 | U143: 刘玉升
A144: Qwen3-30B-A3B | B144: K100_AI | C144: 2 | D144: float16 | E144: 0.9.2 | F144: V0 | G144: 否 | H144: 2048 | I144: 2048 | J144: 64 | K144: 8305.04 | L144: 131.28 | M144: 473.12 | N144: 944.18 | O144: 277.04 | P144: 7.3925 | Q144: 7.61730652 | T144: 2026.01 | U144: 刘玉升
A145: Qwen3-30B-A3B | B145: K100_AI | C145: 2 | D145: float16 | E145: 0.9.2 | F145: V0 | G145: 否 | H145: 4096 | I145: 1024 | J145: 1 | K145: 538.22 | L145: 51.25 | M145: 19.33 | N145: 96.66 | O145: 52.97 | P145: 19.33 | Q145: 19.51219512 | T145: 2026.01 | U145: 刘玉升
A146: Qwen3-30B-A3B | B146: K100_AI | C146: 2 | D146: float16 | E146: 0.9.2 | F146: V0 | G146: 否 | H146: 4096 | I146: 1024 | J146: 2 | K146: 911.83 | L146: 54.66 | M146: 36.03 | N146: 180.17 | O146: 56.83 | P146: 18.015 | Q146: 18.29491401 | T146: 2026.01 | U146: 刘玉升
A147: Qwen3-30B-A3B | B147: K100_AI | C147: 2 | D147: float16 | E147: 0.9.2 | F147: V0 | G147: 否 | H147: 4096 | I147: 1024 | J147: 4 | K147: 1382.04 | L147: 60.11 | M147: 65.15 | N147: 325.61 | O147: 62.87 | P147: 16.2875 | Q147: 16.63616703 | T147: 2026.01 | U147: 刘玉升
A148: Qwen3-30B-A3B | B148: K100_AI | C148: 2 | D148: float16 | E148: 0.9.2 | F148: V0 | G148: 否 | H148: 4096 | I148: 1024 | J148: 8 | K148: 2779.98 | L148: 67.36 | M148: 114.27 | N148: 571.25 | O148: 71.69 | P148: 14.28375 | Q148: 14.8456057 | T148: 2026.01 | U148: 刘玉升
A149: Qwen3-30B-A3B | B149: K100_AI | C149: 2 | D149: float16 | E149: 0.9.2 | F149: V0 | G149: 否 | H149: 4096 | I149: 1024 | J149: 16 | K149: 4796.81 | L149: 85.89 | M149: 176.81 | N149: 882.39 | O149: 92.67 | P149: 11.050625 | Q149: 11.64279893 | T149: 2026.01 | U149: 刘玉升
A150: Qwen3-30B-A3B | B150: K100_AI | C150: 2 | D150: float16 | E150: 0.9.2 | F150: V0 | G150: 否 | H150: 4096 | I150: 1024 | J150: 64 | K150: 15302.17 | L150: 162.84 | M150: 360.28 | N150: 1799.04 | O150: 181.91 | P150: 5.629375 | Q150: 6.140997298 | T150: 2026.01 | U150: 刘玉升
A151: Qwen3-30B-A3B | B151: K100_AI | C151: 2 | D151: float16 | E151: 0.9.2 | F151: V0 | G151: 否 | H151: 16384 | I151: 1024 | J151: 1 | K151: 2361.6 | L151: 53.81 | M151: 17.84 | N151: 303.24 | O151: 57.41 | P151: 17.84 | Q151: 18.58390634 | T151: 2026.01 | U151: 刘玉升
A152: Qwen3-30B-A3B | B152: K100_AI | C152: 2 | D152: float16 | E152: 0.9.2 | F152: V0 | G152: 否 | H152: 16384 | I152: 1024 | J152: 2 | K152: 3527.76 | L152: 61.36 | M152: 30.89 | N152: 525.13 | O152: 66.3 | P152: 15.445 | Q152: 16.29726206 | T152: 2026.01 | U152: 刘玉升
A153: Qwen3-30B-A3B | B153: K100_AI | C153: 2 | D153: float16 | E153: 0.9.2 | F153: V0 | G153: 否 | H153: 16384 | I153: 1024 | J153: 4 | K153: 6561.39 | L153: 74.1 | M153: 49.73 | N153: 845.36 | O153: 82.37 | P153: 12.4325 | Q153: 13.49527665 | T153: 2026.01 | U153: 刘玉升
A154: Qwen3-30B-A3B | B154: K100_AI | C154: 2 | D154: float16 | E154: 0.9.2 | F154: V0 | G154: 否 | H154: 16384 | I154: 1024 | J154: 8 | K154: 11715.97 | L154: 99.32 | M154: 72.29 | N154: 1228.92 | O154: 113.32 | P154: 9.03625 | Q154: 10.06846557 | T154: 2026.01 | U154: 刘玉升
A155: Qwen3-30B-A3B | B155: K100_AI | C155: 2 | D155: float16 | E155: 0.9.2 | F155: V0 | G155: 否 | H155: 16384 | I155: 1024 | J155: 16 | K155: 21725.42 | L155: 150.88 | M155: 93.04 | N155: 1581.76 | O155: 176.09 | P155: 5.815 | Q155: 6.627783669 | T155: 2026.01 | U155: 刘玉升
A156: Qwen3-30B-A3B | B156: K100_AI | C156: 2 | D156: float16 | E156: 0.9.2 | F156: V0 | G156: 否 | H156: 16384 | I156: 1024 | J156: 64 | K156: 171220.27 | L156: 249.64 | M156: 114.28 | N156: 1942.79 | O156: 573.46 | P156: 1.785625 | Q156: 4.005768306 | T156: 2026.01 | U156: 刘玉升
A157: Qwen3-30B-A3B | B157: K100_AI | C157: 4 | D157: float16 | E157: 0.9.2 | F157: V0 | G157: 否 | H157: 512 | I157: 512 | J157: 1 | K157: 171.7 | L157: 50.38 | M157: 19.76 | N157: 39.51 | O157: 25.92 | P157: 19.76 | Q157: 19.84914649 | T157: 2026.01 | U157: 刘玉升
A158: Qwen3-30B-A3B | B158: K100_AI | C158: 4 | D158: float16 | E158: 0.9.2 | F158: V0 | G158: 否 | H158: 512 | I158: 512 | J158: 2 | K158: 2036.88 | L158: 53.27 | M158: 35 | N158: 70 | O158: 29.26 | P158: 17.5 | Q158: 18.7722921 | T158: 2026.01 | U158: 刘玉升
A159: Qwen3-30B-A3B | B159: K100_AI | C159: 4 | D159: float16 | E159: 0.9.2 | F159: V0 | G159: 否 | H159: 512 | I159: 512 | J159: 4 | K159: 3281.45 | L159: 56.57 | M159: 63.62 | N159: 127.25 | O159: 32.19 | P159: 15.905 | Q159: 17.67721407 | T159: 2026.01 | U159: 刘玉升
A160: Qwen3-30B-A3B | B160: K100_AI | C160: 4 | D160: float16 | E160: 0.9.2 | F160: V0 | G160: 否 | H160: 512 | I160: 512 | J160: 8 | K160: 3069.48 | L160: 60.67 | M160: 120.21 | N160: 240.39 | O160: 34.07 | P160: 15.02625 | Q160: 16.48261085 | T160: 2026.01 | U160: 刘玉升
A161: Qwen3-30B-A3B | B161: K100_AI | C161: 4 | D161: float16 | E161: 0.9.2 | F161: V0 | G161: 否 | H161: 512 | I161: 512 | J161: 16 | K161: 765.17 | L161: 64.62 | M161: 242.45 | N161: 484.84 | O161: 33.79 | P161: 15.153125 | Q161: 15.47508511 | T161: 2026.01 | U161: 刘玉升
A162: Qwen3-30B-A3B | B162: K100_AI | C162: 4 | D162: float16 | E162: 0.9.2 | F162: V0 | G162: 否 | H162: 512 | I162: 512 | J162: 64 | K162: 2822.32 | L162: 91.16 | M162: 663.1 | N162: 1326.16 | O162: 49.42 | P162: 10.3609375 | Q162: 10.96972356 | T162: 2026.01 | U162: 刘玉升
A163: Qwen3-30B-A3B | B163: K100_AI | C163: 4 | D163: float16 | E163: 0.9.2 | F163: V0 | G163: 否 | H163: 1024 | I163: 1024 | J163: 1 | K163: 203.56 | L163: 50.99 | M163: 19.56 | N163: 39.11 | O163: 52.36 | P163: 19.56 | Q163: 19.61168857 | T163: 2026.01 | U163: 刘玉升
A164: Qwen3-30B-A3B | B164: K100_AI | C164: 4 | D164: float16 | E164: 0.9.2 | F164: V0 | G164: 否 | H164: 1024 | I164: 1024 | J164: 2 | K164: 302.14 | L164: 53.39 | M164: 37.29 | N164: 74.58 | O164: 54.92 | P164: 18.645 | Q164: 18.73009927 | T164: 2026.01 | U164: 刘玉升
A165: Qwen3-30B-A3B | B165: K100_AI | C165: 4 | D165: float16 | E165: 0.9.2 | F165: V0 | G165: 否 | H165: 1024 | I165: 1024 | J165: 4 | K165: 432.13 | L165: 55.94 | M165: 71.04 | N165: 142.08 | O165: 57.66 | P165: 17.76 | Q165: 17.87629603 | T165: 2026.01 | U165: 刘玉升
A166: Qwen3-30B-A3B | B166: K100_AI | C166: 4 | D166: float16 | E166: 0.9.2 | F166: V0 | G166: 否 | H166: 1024 | I166: 1024 | J166: 8 | K166: 739.2 | L166: 60.28 | M166: 131.26 | N166: 262.5 | O166: 62.41 | P166: 16.4075 | Q166: 16.58925017 | T166: 2026.01 | U166: 刘玉升
A167: Qwen3-30B-A3B | B167: K100_AI | C167: 4 | D167: float16 | E167: 0.9.2 | F167: V0 | G167: 否 | H167: 1024 | I167: 1024 | J167: 16 | K167: 1124.02 | L167: 65.98 | M167: 238.73 | N167: 477.16 | O167: 68.63 | P167: 14.920625 | Q167: 15.15610791 | T167: 2026.01 | U167: 刘玉升
A168: Qwen3-30B-A3B | B168: K100_AI | C168: 4 | D168: float16 | E168: 0.9.2 | F168: V0 | G168: 否 | H168: 1024 | I168: 1024 | J168: 64 | K168: 4273.55 | L168: 94.71 | M168: 647.73 | N168: 1293.26 | O168: 101.18 | P168: 10.12078125 | Q168: 10.55854714 | T168: 2026.01 | U168: 刘玉升
A169: Qwen3-30B-A3B | B169: K100_AI | C169: 4 | D169: float16 | E169: 0.9.2 | F169: V0 | G169: 否 | H169: 2048 | I169: 2048 | J169: 1 | K169: 303.86 | L169: 51.08 | M169: 19.53 | N169: 39.06 | O169: 104.87 | P169: 19.53 | Q169: 19.57713391 | T169: 2026.01 | U169: 刘玉升
A170: Qwen3-30B-A3B | B170: K100_AI | C170: 4 | D170: float16 | E170: 0.9.2 | F170: V0 | G170: 否 | H170: 2048 | I170: 2048 | J170: 2 | K170: 436.66 | L170: 53.59 | M170: 37.19 | N170: 74.38 | O170: 110.14 | P170: 18.595 | Q170: 18.6601978 | T170: 2026.01 | U170: 刘玉升
A171: Qwen3-30B-A3B | B171: K100_AI | C171: 4 | D171: float16 | E171: 0.9.2 | F171: V0 | G171: 否 | H171: 2048 | I171: 2048 | J171: 4 | K171: 748.2 | L171: 55.68 | M171: 71.41 | N171: 142.81 | O171: 114.72 | P171: 17.8525 | Q171: 17.95977011 | T171: 2026.01 | U171: 刘玉升
A172: Qwen3-30B-A3B | B172: K100_AI | C172: 4 | D172: float16 | E172: 0.9.2 | F172: V0 | G172: 否 | H172: 2048 | I172: 2048 | J172: 8 | K172: 1126.98 | L172: 60.13 | M172: 131.91 | N172: 263.42 | O172: 124.21 | P172: 16.48875 | Q172: 16.63063363 | T172: 2026.01 | U172: 刘玉升
A173: Qwen3-30B-A3B | B173: K100_AI | C173: 4 | D173: float16 | E173: 0.9.2 | F173: V0 | G173: 否 | H173: 2048 | I173: 2048 | J173: 16 | K173: 2844.28 | L173: 63.92 | M173: 245.12 | N173: 488.6 | O173: 133.68 | P173: 15.32 | Q173: 15.64455569 | T173: 2026.01 | U173: 刘玉升
A174: Qwen3-30B-A3B | B174: K100_AI | C174: 4 | D174: float16 | E174: 0.9.2 | F174: V0 | G174: 否 | H174: 2048 | I174: 2048 | J174: 64 | K174: 6990.71 | L174: 99.54 | M174: 621.87 | N174: 1241.03 | O174: 210.77 | P174: 9.71671875 | Q174: 10.04621258 | T174: 2026.01 | U174: 刘玉升
A175: Qwen3-30B-A3B | B175: K100_AI | C175: 4 | D175: float16 | E175: 0.9.2 | F175: V0 | G175: 否 | H175: 4096 | I175: 1024 | J175: 1 | K175: 459.47 | L175: 51.78 | M175: 19.16 | N175: 95.82 | O175: 53.43 | P175: 19.16 | Q175: 19.31247586 | T175: 2026.01 | U175: 刘玉升
A176: Qwen3-30B-A3B | B176: K100_AI | C176: 4 | D176: float16 | E176: 0.9.2 | F176: V0 | G176: 否 | H176: 4096 | I176: 1024 | J176: 2 | K176: 774.94 | L176: 53.74 | M176: 36.73 | N176: 183.67 | O176: 55.75 | P176: 18.365 | Q176: 18.60811314 | T176: 2026.01 | U176: 刘玉升
A177: Qwen3-30B-A3B | B177: K100_AI | C177: 4 | D177: float16 | E177: 0.9.2 | F177: V0 | G177: 否 | H177: 4096 | I177: 1024 | J177: 4 | K177: 1168.56 | L177: 57.08 | M177: 68.76 | N177: 343.68 | O177: 59.57 | P177: 17.19 | Q177: 17.5192712 | T177: 2026.01 | U177: 刘玉升
A178: Qwen3-30B-A3B | B178: K100_AI | C178: 4 | D178: float16 | E178: 0.9.2 | F178: V0 | G178: 否 | H178: 4096 | I178: 1024 | J178: 8 | K178: 2347.05 | L178: 60.44 | M178: 127.65 | N178: 638.1 | O178: 64.18 | P178: 15.95625 | Q178: 16.54533422 | T178: 2026.01 | U178: 刘玉升
A179: Qwen3-30B-A3B | B179: K100_AI | C179: 4 | D179: float16 | E179: 0.9.2 | F179: V0 | G179: 否 | H179: 4096 | I179: 1024 | J179: 16 | K179: 4200.03 | L179: 69.01 | M179: 219.02 | N179: 1093.07 | O179: 74.81 | P179: 13.68875 | Q179: 14.49065353 | T179: 2026.01 | U179: 刘玉升
A180: Qwen3-30B-A3B | B180: K100_AI | C180: 4 | D180: float16 | E180: 0.9.2 | F180: V0 | G180: 否 | H180: 4096 | I180: 1024 | J180: 64 | K180: 12738.95 | L180: 118.91 | M180: 487.63 | N180: 2434.97 | O180: 134.4 | P180: 7.61921875 | Q180: 8.409721638 | T180: 2026.01 | U180: 刘玉升
A181: Qwen3-30B-A3B | B181: K100_AI | C181: 4 | D181: float16 | E181: 0.9.2 | F181: V0 | G181: 否 | H181: 16384 | I181: 1024 | J181: 1 | K181: 1711.3 | L181: 51.98 | M181: 18.66 | N181: 317.15 | O181: 54.89 | P181: 18.66 | Q181: 19.23816853 | T181: 2026.01 | U181: 刘玉升
A182: Qwen3-30B-A3B | B182: K100_AI | C182: 4 | D182: float16 | E182: 0.9.2 | F182: V0 | G182: 否 | H182: 16384 | I182: 1024 | J182: 2 | K182: 2538.57 | L182: 56.42 | M182: 33.99 | N182: 577.75 | O182: 60.26 | P182: 16.995 | Q182: 17.72421127 | T182: 2026.01 | U182: 刘玉升
A183: Qwen3-30B-A3B | B183: K100_AI | C183: 4 | D183: float16 | E183: 0.9.2 | F183: V0 | G183: 否 | H183: 16384 | I183: 1024 | J183: 4 | K183: 4520.86 | L183: 62.19 | M183: 60.11 | N183: 1021.83 | O183: 68.14 | P183: 15.0275 | Q183: 16.07975559 | T183: 2026.01 | U183: 刘玉升
A184: Qwen3-30B-A3B | B184: K100_AI | C184: 4 | D184: float16 | E184: 0.9.2 | F184: V0 | G184: 否 | H184: 16384 | I184: 1024 | J184: 8 | K184: 7920.6 | L184: 76.38 | M184: 95.19 | N184: 1618.21 | O184: 86.06 | P184: 11.89875 | Q184: 13.09243257 | T184: 2026.01 | U184: 刘玉升
A185: Qwen3-30B-A3B | B185: K100_AI | C185: 4 | D185: float16 | E185: 0.9.2 | F185: V0 | G185: 否 | H185: 16384 | I185: 1024 | J185: 16 | K185: 14409.59 | L185: 102.29 | M185: 137.62 | N185: 2339.47 | O185: 119.06 | P185: 8.60125 | Q185: 9.776126699 | T185: 2026.01 | U185: 刘玉升
A186: Qwen3-30B-A3B | B186: K100_AI | C186: 4 | D186: float16 | E186: 0.9.2 | F186: V0 | G186: 否 | H186: 16384 | I186: 1024 | J186: 64 | K186: 53209.41 | L186: 242.11 | M186: 217.79 | N186: 3702.38 | O186: 300.92 | P186: 3.40296875 | Q186: 4.130353971 | T186: 2026.01 | U186: 刘玉升
A187: Qwen3-235B-A22B | B187: K100_AI | C187: 8 | D187: float16 | E187: 0.9.2 | F187: V0 | G187: 否 | H187: 512 | I187: 512 | J187: 1 | K187: 477.76 | L187: 106.7 | M187: 9.31 | N187: 18.62 | O187: 55 | P187: 9.31 | Q187: 9.372071228 | T187: 2026.01 | U187: 刘玉升
A188: Qwen3-235B-A22B | B188: K100_AI | C188: 8 | D188: float16 | E188: 0.9.2 | F188: V0 | G188: 否 | H188: 512 | I188: 512 | J188: 2 | K188: 2393.93 | L188: 115.86 | M188: 16.62 | N188: 33.25 | O188: 61.6 | P188: 8.31 | Q188: 8.631106508 | T188: 2026.01 | U188: 刘玉升
A189: Qwen3-235B-A22B | B189: K100_AI | C189: 8 | D189: float16 | E189: 0.9.2 | F189: V0 | G189: 否 | H189: 512 | I189: 512 | J189: 4 | K189: 3946.39 | L189: 130.2 | M189: 29.06 | N189: 58.12 | O189: 70.48 | P189: 7.265 | Q189: 7.680491551 | T189: 2026.01 | U189: 刘玉升
A190: Qwen3-235B-A22B | B190: K100_AI | C190: 8 | D190: float16 | E190: 0.9.2 | F190: V0 | G190: 否 | H190: 512 | I190: 512 | J190: 8 | K190: 4163.1 | L190: 154.96 | M190: 49.14 | N190: 98.27 | O190: 83.35 | P190: 6.1425 | Q190: 6.453278265 | T190: 2026.01 | U190: 刘玉升
A191: Qwen3-235B-A22B | B191: K100_AI | C191: 8 | D191: float16 | E191: 0.9.2 | F191: V0 | G191: 否 | H191: 512 | I191: 512 | J191: 16 | K191: 2658.97 | L191: 174.34 | M191: 89.28 | N191: 178.55 | O191: 91.75 | P191: 5.58 | Q191: 5.735918321 | T191: 2026.01 | U191: 刘玉升
A192: Qwen3-235B-A22B | B192: K100_AI | C192: 8 | D192: float16 | E192: 0.9.2 | F192: V0 | G192: 否 | H192: 512 | I192: 512 | J192: 64 | K192: 10387.95 | L192: 310.04 | M192: 136.7 | N192: 273.4 | O192: 239.7 | P192: 2.1359375 | Q192: 3.225390272 | T192: 2026.01 | U192: 刘玉升
A193: Qwen3-235B-A22B | B193: K100_AI | C193: 8 | D193: float16 | E193: 0.9.2 | F193: V0 | G193: 否 | H193: 1024 | I193: 1024 | J193: 1 | K193: 613.96 | L193: 107.14 | M193: 9.29 | N193: 18.58 | O193: 110.22 | P193: 9.29 | Q193: 9.333582229 | T193: 2026.01 | U193: 刘玉升
A194: Qwen3-235B-A22B | B194: K100_AI | C194: 8 | D194: float16 | E194: 0.9.2 | F194: V0 | G194: 否 | H194: 1024 | I194: 1024 | J194: 2 | K194: 975.72 | L194: 114.37 | M194: 17.36 | N194: 34.72 | O194: 117.98 | P194: =M194/J194 -> 8.68 | Q194: =1000/L194 -> 8.743551631 | T194: 2026.01 | U194: 刘玉升
A195: Qwen3-235B-A22B | B195: K100_AI | C195: 8 | D195: float16 | E195: 0.9.2 | F195: V0 | G195: 否 | H195: 1024 | I195: 1024 | J195: 4 | K195: 1494.91 | L195: 131.3 | M195: 30.16 | N195: 60.31 | O195: 135.82 | P195: 7.54 | Q195: 7.61614623 | T195: 2026.01 | U195: 刘玉升
A196: Qwen3-235B-A22B | B196: K100_AI | C196: 8 | D196: float16 | E196: 0.9.2 | F196: V0 | G196: 否 | H196: 1024 | I196: 1024 | J196: 8 | K196: 2639.23 | L196: 157.91 | M196: 49.9 | N196: 99.78 | O196: 164.18 | P196: 6.2375 | Q196: 6.33272117 | T196: 2026.01 | U196: 刘玉升
A197: Qwen3-235B-A22B | B197: K100_AI | C197: 8 | D197: float16 | E197: 0.9.2 | F197: V0 | G197: 否 | H197: 1024 | I197: 1024 | J197: 16 | K197: 5016.76 | L197: 179.74 | M197: 86.74 | N197: 173.36 | O197: 188.9 | P197: 5.42125 | Q197: 5.563591855 | T197: 2026.01 | U197: 刘玉升
A198: Qwen3-235B-A22B | B198: K100_AI | C198: 8 | D198: float16 | E198: 0.9.2 | F198: V0 | G198: 否 | H198: 1024 | I198: 1024 | J198: 64 | K198: 186746.23 | L198: 265.58 | M198: 93.59 | N198: 186.87 | O198: 700.23 | P198: 1.46234375 | Q198: 3.765343776 | T198: 2026.01 | U198: 刘玉升
A199: Qwen3-235B-A22B | B199: K100_AI | C199: 8 | D199: float16 | E199: 0.9.2 | F199: V0 | G199: 否 | H199: 2048 | I199: 2048 | J199: 1 | K199: 970.37 | L199: 108.17 | M199: 9.21 | N199: 18.42 | O199: 222.4 | P199: 9.21 | Q199: 9.244707405 | T199: 2026.01 | U199: 刘玉升
A200: Qwen3-235B-A22B | B200: K100_AI | C200: 8 | D200: float16 | E200: 0.9.2 | F200: V0 | G200: 否 | H200: 2048 | I200: 2048 | J200: 2 | K200: 1480.45 | L200: 115.94 | M200: 17.15 | N200: 34.3 | O200: 238.8 | P200: 8.575 | Q200: 8.62515094 | T200: 2026.01 | U200: 刘玉升
... 160 more rows

Sheet Qwen3.5系列
A1: 模型 | B1: 卡类型 | C1: 卡数 | D1: 数据类型 | E1: vLLM版本 | F1: V0/V1 Engine | G1: Prefix Caching开启 | H1: 输入长度 (tokens) | I1: 输出长度 (tokens) | J1: 并发数 | K1: 平均首字延时 TTFT(ms) | L1: 平均生成时间 TPOT(ms) | M1: 生成吞吐量 (tokens/s) | N1: 总吞吐量(tokens/s) | O1: 总耗时 （s) | P1: 单并发Output吞吐 (tokens/s） | Q1: 单并发Decode吞吐（tokens/s) | R1: 镜像 | S1: 硬件平台 | T1: 数据日期 | U1: 数据提供者 | V1: 备注
A2: Qwen3.5-35B-A3B | B2: 128CU K100_AI | C2: 4 | D2: bfloat16 | E2: 0.15.1 | F2: V1 | G2: 否 | H2: 4096 | I2: 1024 | J2: 260 | K2: 69970.23 | L2: 257.77 | M2: 732.42 | O2: 363.51 | P2: 2.82 | Q2: 3.88 | R2: image.sourcefind.cn:5000/dcu/admin/base/custom:pytorch2.9.1-ubuntu22.04-dtk26.04-0130-py3.10-20260204-qwen3_5 | S2: Hygon CPU7490 * 2 /DDR5 5600 64G*24 /480G 2.5 SATA 6Gb R SSD*2 /960G 2.5 SATA 6Gb R SSD*4/7.68T*4/BCM 9560-8i Tri-Mode RAID x1/双口1G RJ45网卡x1/DCU K100-AI （128CU）x8/3200W电源模块*4 | T2: 2026.03 | U2: 张梓恒 汪亚军 | V2: # 海光CPU绑定核 export VLLM_NUMA_BIND=1 export VLLM_RANK0_NUMA=0 export VLLM_RANK1_NUMA=0 export VLLM_RANK2_NUMA=0 export VLLM_RANK3_NUMA=0 export VLLM_RANK4_NUMA=0 export VLLM_RANK5_NUMA=0 export VLLM_RANK6_NUMA=0 export VLLM_RANK7_NUMA=0 export VLLM_ENFORCE_EAGER_BS_THRESHOLD=44 export ALLREDUCE_STREAM_WITH_COMPUTE=1 unset NCCL_ALGO export HSA_FORCE_FINE_GRAIN_PCIE=1 export NCCL_MIN_NCHANNELS=16 export NCCL_MAX_NCHANNELS=16 export NCCL_P2P_LEVEL=SYS export NCCL_LAUNCH_MODE=GROUP export VLLM_ZERO_OVERHEAD=1 export VLLM_ZERO_OPT_ZEROS=1 export VLLM_USE_FUSED_RMS_ROPE=1 export VLLM_USE_MARLIN_W16A16_MOE=1 export NCCL_NET_GDR_READ=1 export HIP_VISIBLE_DEVICES=0,1,2,3,4,5,6,7 export VLLM_SPEC_DECODE_EAGER=1 export VLLM_MLA_DISABLE=0 export VLLM_USE_FLASH_MLA=1 export VLLM_RPC_TIMEOUT=1800000
A3: Qwen3.5-35B-A3B | B3: 128CU K100_AI | C3: 4 | D3: bfloat16 | E3: 0.15.1 | F3: V1 | G3: 否 | H3: 4096 | I3: 1024 | J3: 1 | K3: 439.68 | L3: 25.75 | M3: 38.24 | O3: 26.78 | P3: 38.24 | Q3: 38.83 | T3: 2026.03 | U3: 张梓恒 汪亚军
A4: Qwen3.5-35B-A3B | B4: 128CU K100_AI | C4: 4 | D4: bfloat16 | E4: 0.15.1 | F4: V1 | G4: 否 | H4: 4096 | I4: 1024 | J4: 4 | K4: 1190.66 | L4: 29.32 | M4: 131.23 | O4: 31.21 | P4: 32.81 | Q4: 34.11 | T4: 2026.03 | U4: 张梓恒 汪亚军
A5: Qwen3.5-35B-A3B | B5: 128CU K100_AI | C5: 4 | D5: bfloat16 | E5: 0.15.1 | F5: V1 | G5: 否 | H5: 4096 | I5: 1024 | J5: 8 | K5: 2062 | L5: 36.4 | M5: 208.29 | O5: 39.33 | P5: 26.04 | Q5: 27.47 | T5: 2026.03 | U5: 张梓恒 汪亚军
A6: Qwen3.5-35B-A3B | B6: 128CU K100_AI | C6: 4 | D6: bfloat16 | E6: 0.15.1 | F6: V1 | G6: 否 | H6: 4096 | I6: 1024 | J6: 16 | K6: 4126.23 | L6: 55.83 | M6: 267.32 | O6: 61.29 | P6: 16.71 | Q6: 17.91 | T6: 2026.03 | U6: 张梓恒 汪亚军
A7: Qwen3.5-35B-A3B | B7: 128CU K100_AI | C7: 4 | D7: bfloat16 | E7: 0.15.1 | F7: V1 | G7: 否 | H7: 4096 | I7: 1024 | J7: 32 | K7: 7282.5 | L7: 66.63 | M7: 433.89 | O7: 75.52 | P7: 13.56 | Q7: 15.01 | T7: 2026.03 | U7: 张梓恒 汪亚军
A8: Qwen3.5-35B-A3B | B8: 128CU K100_AI | C8: 4 | D8: bfloat16 | E8: 0.15.1 | F8: V1 | G8: 否 | H8: 4096 | I8: 1024 | J8: 64 | K8: 14045.49 | L8: 91.37 | M8: 608.66 | O8: 107.67 | P8: 9.51 | Q8: 10.94 | T8: 2026.03 | U8: 张梓恒 汪亚军
A9: Qwen3.5-35B-A3B | B9: 128CU K100_AI | C9: 4 | D9: bfloat16 | E9: 0.15.1 | F9: V1 | G9: 否 | H9: 4096 | I9: 1024 | J9: 128 | K9: 27606.31 | L9: 139.76 | M9: 766.9 | O9: 170.91 | P9: 5.99 | Q9: 7.16 | T9: 2026.03 | U9: 张梓恒 汪亚军
A10: Qwen3.5-35B-A3B | B10: 128CU K100_AI | C10: 4 | D10: bfloat16 | E10: 0.15.1 | F10: V1 | G10: 否 | H10: 4096 | I10: 1024 | J10: 256 | K10: 34801.67 | L10: 221.5 | M10: 815.75 | O10: 331.45 | P10: 3.09 | Q10: 3.87 | T10: 2026.03 | U10: 张梓恒 汪亚军
A11: Qwen3.5-35B-A3B | B11: 128CU K100_AI | C11: 4 | D11: bfloat16 | E11: 0.15.1 | F11: V1 | G11: 否 | H11: 2048 | I11: 512 | J11: 260 | K11: 250.27 | L11: 25.19 | M11: 39.02 | O11: 163.19 | P11: 3.14 | Q11: 4.51 | T11: 2026.03 | U11: 张梓恒 汪亚军
A12: Qwen3.5-35B-A3B | B12: 128CU K100_AI | C12: 4 | D12: bfloat16 | E12: 0.15.1 | F12: V1 | G12: 否 | H12: 2048 | I12: 512 | J12: 1 | K12: 658.82 | L12: 29.41 | M12: 130.51 | O12: 13.12 | P12: 39.02 | Q12: 39.7 | T12: 2026.03 | U12: 张梓恒 汪亚军
A13: Qwen3.5-35B-A3B | B13: 128CU K100_AI | C13: 4 | D13: bfloat16 | E13: 0.15.1 | F13: V1 | G13: 否 | H13: 2048 | I13: 512 | J13: 4 | K13: 1092.79 | L13: 34.76 | M13: 217.19 | O13: 15.69 | P13: 32.63 | Q13: 34 | T13: 2026.03 | U13: 张梓恒 汪亚军
A14: Qwen3.5-35B-A3B | B14: 128CU K100_AI | C14: 4 | D14: bfloat16 | E14: 0.15.1 | F14: V1 | G14: 否 | H14: 2048 | I14: 512 | J14: 8 | K14: 1841.34 | L14: 48.78 | M14: 305.95 | O14: 18.86 | P14: 27.15 | Q14: 28.77 | T14: 2026.03 | U14: 张梓恒 汪亚军
A15: Qwen3.5-35B-A3B | B15: 128CU K100_AI | C15: 4 | D15: bfloat16 | E15: 0.15.1 | F15: V1 | G15: 否 | H15: 2048 | I15: 512 | J15: 16 | K15: 3165.54 | L15: 63.28 | M15: 461.37 | O15: 26.78 | P15: 19.12 | Q15: 20.5 | T15: 2026.03 | U15: 张梓恒 汪亚军
A16: Qwen3.5-35B-A3B | B16: 128CU K100_AI | C16: 4 | D16: bfloat16 | E16: 0.15.1 | F16: V1 | G16: 否 | H16: 2048 | I16: 512 | J16: 32 | K16: 5886.44 | L16: 86.74 | M16: 652.43 | O16: 35.51 | P16: 14.42 | Q16: 15.8 | T16: 2026.03 | U16: 张梓恒 汪亚军
A17: Qwen3.5-35B-A3B | B17: 128CU K100_AI | C17: 4 | D17: bfloat16 | E17: 0.15.1 | F17: V1 | G17: 否 | H17: 2048 | I17: 512 | J17: 64 | K17: 11178.57 | L17: 130.09 | M17: 843.69 | O17: 50.22 | P17: 10.19 | Q17: 11.53 | T17: 2026.03 | U17: 张梓恒 汪亚军
A18: Qwen3.5-35B-A3B | B18: 128CU K100_AI | C18: 4 | D18: bfloat16 | E18: 0.15.1 | F18: V1 | G18: 否 | H18: 2048 | I18: 512 | J18: 128 | K18: 21819.71 | L18: 224.97 | M18: 957.97 | O18: 77.68 | P18: 6.59 | Q18: 7.69 | T18: 2026.03 | U18: 张梓恒 汪亚军
A19: Qwen3.5-35B-A3B | B19: 128CU K100_AI | C19: 4 | D19: bfloat16 | E19: 0.15.1 | F19: V1 | G19: 否 | H19: 2048 | I19: 512 | J19: 256 | K19: 12314.34 | L19: 123.92 | M19: 1731.38 | O19: 136.82 | P19: 3.74 | Q19: 4.45 | T19: 2026.03 | U19: 张梓恒 汪亚军
A20: Qwen3.5-35B-A3B | B20: 128CU K100_AI | C20: 4 | D20: bfloat16 | E20: 0.15.1 | F20: V1 | G20: 否 | H20: 512 | I20: 512 | J20: 260 | K20: 17874.89 | L20: 170.21 | M20: 1113.41 | O20: 119.56 | P20: 4.28 | Q20: 5.88 | T20: 2026.03 | U20: 张梓恒 汪亚军
A21: Qwen3.5-35B-A3B | B21: 128CU K100_AI | C21: 4 | D21: bfloat16 | E21: 0.15.1 | F21: V1 | G21: 否 | H21: 512 | I21: 512 | J21: 1 | K21: 125.87 | L21: 25.18 | M21: 39.41 | O21: 12.99 | P21: 39.41 | Q21: 39.71 | T21: 2026.03 | U21: 张梓恒 汪亚军
A22: Qwen3.5-35B-A3B | B22: 128CU K100_AI | C22: 4 | D22: bfloat16 | E22: 0.15.1 | F22: V1 | G22: 否 | H22: 512 | I22: 512 | J22: 4 | K22: 279.6 | L22: 28.86 | M22: 136.23 | O22: 15.03 | P22: 34.06 | Q22: 34.65 | T22: 2026.03 | U22: 张梓恒 汪亚军
A23: Qwen3.5-35B-A3B | B23: 128CU K100_AI | C23: 4 | D23: bfloat16 | E23: 0.15.1 | F23: V1 | G23: 否 | H23: 512 | I23: 512 | J23: 8 | K23: 418.4 | L23: 33.86 | M23: 231.07 | O23: 17.73 | P23: 28.88 | Q23: 29.53 | T23: 2026.03 | U23: 张梓恒 汪亚军
A24: Qwen3.5-35B-A3B | B24: 128CU K100_AI | C24: 4 | D24: bfloat16 | E24: 0.15.1 | F24: V1 | G24: 否 | H24: 512 | I24: 512 | J24: 16 | K24: 703.85 | L24: 48.84 | M24: 319.14 | O24: 25.67 | P24: 19.95 | Q24: 20.48 | T24: 2026.03 | U24: 张梓恒 汪亚军
A25: Qwen3.5-35B-A3B | B25: 128CU K100_AI | C25: 4 | D25: bfloat16 | E25: 0.15.1 | F25: V1 | G25: 否 | H25: 512 | I25: 512 | J25: 32 | K25: 1058.09 | L25: 59.32 | M25: 522.13 | O25: 31.38 | P25: 16.32 | Q25: 16.86 | T25: 2026.03 | U25: 张梓恒 汪亚军
A26: Qwen3.5-35B-A3B | B26: 128CU K100_AI | C26: 4 | D26: bfloat16 | E26: 0.15.1 | F26: V1 | G26: 否 | H26: 512 | I26: 512 | J26: 64 | K26: 1763.01 | L26: 77.85 | M26: 788.53 | O26: 41.56 | P26: 12.32 | Q26: 12.85 | T26: 2026.03 | U26: 张梓恒 汪亚军
A27: Qwen3.5-35B-A3B | B27: 128CU K100_AI | C27: 4 | D27: bfloat16 | E27: 0.15.1 | F27: V1 | G27: 否 | H27: 512 | I27: 512 | J27: 128 | K27: 3001.23 | L27: 112.46 | M27: 1083.45 | O27: 60.49 | P27: 8.46 | Q27: 8.89 | T27: 2026.03 | U27: 张梓恒 汪亚军
A28: Qwen3.5-35B-A3B | B28: 128CU K100_AI | C28: 4 | D28: bfloat16 | E28: 0.15.1 | F28: V1 | G28: 否 | H28: 512 | I28: 512 | J28: 256 | K28: 5551.18 | L28: 171.79 | M28: 1403.71 | O28: 93.38 | P28: 5.48 | Q28: 5.82 | T28: 2026.03 | U28: 张梓恒 汪亚军
A29: Qwen3.5-35B-A3B | B29: 128CU K100_AI | C29: 4 | D29: bfloat16 | E29: 0.15.1 | F29: V1 | G29: 是 | H29: 4096 | I29: 1024 | J29: 260 | K29: 119065.78 | L29: 226.21 | M29: 697.22 | O29: 381.86 | P29: 2.68 | Q29: 4.42 | T29: 2026.03 | U29: 张梓恒 汪亚军
A30: Qwen3.5-35B-A3B | B30: 128CU K100_AI | C30: 4 | D30: bfloat16 | E30: 0.15.1 | F30: V1 | G30: 是 | H30: 4096 | I30: 1024 | J30: 1 | K30: 102.22 | L30: 27.12 | M30: 36.77 | O30: 27.85 | P30: 36.77 | Q30: 36.87 | T30: 2026.03 | U30: 张梓恒 汪亚军
A31: Qwen3.5-35B-A3B | B31: 128CU K100_AI | C31: 4 | D31: bfloat16 | E31: 0.15.1 | F31: V1 | G31: 是 | H31: 4096 | I31: 1024 | J31: 4 | K31: 190.75 | L31: 29.82 | M31: 133.4 | O31: 30.7 | P31: 33.35 | Q31: 33.53 | T31: 2026.03 | U31: 张梓恒 汪亚军
A32: Qwen3.5-35B-A3B | B32: 128CU K100_AI | C32: 4 | D32: bfloat16 | E32: 0.15.1 | F32: V1 | G32: 是 | H32: 4096 | I32: 1024 | J32: 8 | K32: 210.75 | L32: 35.3 | M32: 225.52 | O32: 36.33 | P32: 28.19 | Q32: 28.33 | T32: 2026.03 | U32: 张梓恒 汪亚军
A33: Qwen3.5-35B-A3B | B33: 128CU K100_AI | C33: 4 | D33: bfloat16 | E33: 0.15.1 | F33: V1 | G33: 是 | H33: 4096 | I33: 1024 | J33: 16 | K33: 291.54 | L33: 49.51 | M33: 321.57 | O33: 50.95 | P33: 20.1 | Q33: 20.2 | T33: 2026.03 | U33: 张梓恒 汪亚军
A34: Qwen3.5-35B-A3B | B34: 128CU K100_AI | C34: 4 | D34: bfloat16 | E34: 0.15.1 | F34: V1 | G34: 是 | H34: 4096 | I34: 1024 | J34: 32 | K34: 23236.42 | L34: 63.87 | M34: 369.92 | O34: 88.58 | P34: 11.56 | Q34: 15.66 | T34: 2026.03 | U34: 张梓恒 汪亚军
A35: Qwen3.5-35B-A3B | B35: 128CU K100_AI | C35: 4 | D35: bfloat16 | E35: 0.15.1 | F35: V1 | G35: 是 | H35: 4096 | I35: 1024 | J35: 64 | K35: 930.59 | L35: 83.69 | M35: 756.71 | O35: 86.61 | P35: 11.82 | Q35: 11.95 | T35: 2026.03 | U35: 张梓恒 汪亚军
A36: Qwen3.5-35B-A3B | B36: 128CU K100_AI | C36: 4 | D36: bfloat16 | E36: 0.15.1 | F36: V1 | G36: 是 | H36: 4096 | I36: 1024 | J36: 128 | K36: 1765.27 | L36: 120.23 | M36: 1049.69 | O36: 124.87 | P36: 8.2 | Q36: 8.32 | T36: 2026.03 | U36: 张梓恒 汪亚军
A37: Qwen3.5-35B-A3B | B37: 128CU K100_AI | C37: 4 | D37: bfloat16 | E37: 0.15.1 | F37: V1 | G37: 是 | H37: 4096 | I37: 1024 | J37: 256 | K37: 2480.45 | L37: 218.39 | M37: 1086.86 | O37: 59.92 | P37: 4.25 | Q37: 4.58 | T37: 2026.03 | U37: 张梓恒 汪亚军
A38: Qwen3.5-35B-A3B | B38: 128CU K100_AI | C38: 4 | D38: bfloat16 | E38: 0.15.1 | F38: V1 | G38: 是 | H38: 2048 | I38: 512 | J38: 260 | K38: 52108.22 | L38: 190.81 | M38: 809.22 | O38: 164.5 | P38: 3.11 | Q38: 5.24 | T38: 2026.03 | U38: 张梓恒 汪亚军
A39: Qwen3.5-35B-A3B | B39: 128CU K100_AI | C39: 4 | D39: bfloat16 | E39: 0.15.1 | F39: V1 | G39: 是 | H39: 2048 | I39: 512 | J39: 1 | K39: 126.7 | L39: 26.21 | M39: 37.87 | O39: 13.52 | P39: 37.87 | Q39: 38.15 | T39: 2026.03 | U39: 张梓恒 汪亚军
A40: Qwen3.5-35B-A3B | B40: 128CU K100_AI | C40: 4 | D40: bfloat16 | E40: 0.15.1 | F40: V1 | G40: 是 | H40: 2048 | I40: 512 | J40: 4 | K40: 206.82 | L40: 28.85 | M40: 136.92 | O40: 14.96 | P40: 34.23 | Q40: 34.66 | T40: 2026.03 | U40: 张梓恒 汪亚军
A41: Qwen3.5-35B-A3B | B41: 128CU K100_AI | C41: 4 | D41: bfloat16 | E41: 0.15.1 | F41: V1 | G41: 是 | H41: 2048 | I41: 512 | J41: 8 | K41: 286.93 | L41: 34.62 | M41: 227.73 | O41: 17.99 | P41: 28.47 | Q41: 28.89 | T41: 2026.03 | U41: 张梓恒 汪亚军
A42: Qwen3.5-35B-A3B | B42: 128CU K100_AI | C42: 4 | D42: bfloat16 | E42: 0.15.1 | F42: V1 | G42: 是 | H42: 2048 | I42: 512 | J42: 16 | K42: 389.83 | L42: 48.65 | M42: 324.34 | O42: 25.26 | P42: 20.27 | Q42: 20.55 | T42: 2026.03 | U42: 张梓恒 汪亚军
A43: Qwen3.5-35B-A3B | B43: 128CU K100_AI | C43: 4 | D43: bfloat16 | E43: 0.15.1 | F43: V1 | G43: 是 | H43: 2048 | I43: 512 | J43: 32 | K43: 535.77 | L43: 59.86 | M43: 526.24 | O43: 31.13 | P43: 16.45 | Q43: 16.71 | T43: 2026.03 | U43: 张梓恒 汪亚军
A44: Qwen3.5-35B-A3B | B44: 128CU K100_AI | C44: 4 | D44: bfloat16 | E44: 0.15.1 | F44: V1 | G44: 是 | H44: 2048 | I44: 512 | J44: 64 | K44: 895.74 | L44: 78.75 | M44: 796.07 | O44: 41.16 | P44: 12.44 | Q44: 12.7 | T44: 2026.03 | U44: 张梓恒 汪亚军
A45: Qwen3.5-35B-A3B | B45: 128CU K100_AI | C45: 4 | D45: bfloat16 | E45: 0.15.1 | F45: V1 | G45: 是 | H45: 2048 | I45: 512 | J45: 128 | K45: 1679.18 | L45: 113.32 | M45: 1099.33 | O45: 59.61 | P45: 8.59 | Q45: 8.82 | T45: 2026.03 | U45: 张梓恒 汪亚军
A46: Qwen3.5-35B-A3B | B46: 128CU K100_AI | C46: 4 | D46: bfloat16 | E46: 0.15.1 | F46: V1 | G46: 是 | H46: 2048 | I46: 512 | J46: 256 | K46: 2985.43 | L46: 188.31 | M46: 1320.13 | O46: 99.29 | P46: 5.16 | Q46: 5.31 | T46: 2026.03 | U46: 张梓恒 汪亚军
A47: Qwen3.5-35B-A3B | B47: 128CU K100_AI | C47: 4 | D47: bfloat16 | E47: 0.15.1 | F47: V1 | G47: 是 | H47: 512 | I47: 512 | J47: 260 | K47: 20766.33 | L47: 166.16 | M47: 1104.8 | O47: 120.49 | P47: 4.25 | Q47: 6.02 | T47: 2026.03 | U47: 张梓恒 汪亚军
A48: Qwen3.5-35B-A3B | B48: 128CU K100_AI | C48: 4 | D48: bfloat16 | E48: 0.15.1 | F48: V1 | G48: 是 | H48: 512 | I48: 512 | J48: 1 | K48: 99.71 | L48: 25.73 | M48: 38.65 | O48: 13.25 | P48: 38.65 | Q48: 38.87 | T48: 2026.03 | U48: 张梓恒 汪亚军
A49: Qwen3.5-35B-A3B | B49: 128CU K100_AI | C49: 4 | D49: bfloat16 | E49: 0.15.1 | F49: V1 | G49: 是 | H49: 512 | I49: 512 | J49: 4 | K49: 220.83 | L49: 29.2 | M49: 135.2 | O49: 15.15 | P49: 33.8 | Q49: 34.25 | T49: 2026.03 | U49: 张梓恒 汪亚军
A50: Qwen3.5-35B-A3B | B50: 128CU K100_AI | C50: 4 | D50: bfloat16 | E50: 0.15.1 | F50: V1 | G50: 是 | H50: 512 | I50: 512 | J50: 8 | K50: 297.54 | L50: 34.07 | M50: 231.27 | O50: 17.71 | P50: 28.91 | Q50: 29.35 | T50: 2026.03 | U50: 张梓恒 汪亚军
A51: Qwen3.5-35B-A3B | B51: 128CU K100_AI | C51: 4 | D51: bfloat16 | E51: 0.15.1 | F51: V1 | G51: 是 | H51: 512 | I51: 512 | J51: 16 | K51: 441.15 | L51: 48.04 | M51: 327.73 | O51: 25 | P51: 20.48 | Q51: 20.82 | T51: 2026.03 | U51: 张梓恒 汪亚军
A52: Qwen3.5-35B-A3B | B52: 128CU K100_AI | C52: 4 | D52: bfloat16 | E52: 0.15.1 | F52: V1 | G52: 是 | H52: 512 | I52: 512 | J52: 32 | K52: 722.1 | L52: 58.99 | M52: 530.71 | O52: 30.87 | P52: 16.58 | Q52: 16.95 | T52: 2026.03 | U52: 张梓恒 汪亚军
A53: Qwen3.5-35B-A3B | B53: 128CU K100_AI | C53: 4 | D53: bfloat16 | E53: 0.15.1 | F53: V1 | G53: 是 | H53: 512 | I53: 512 | J53: 64 | K53: 1131.97 | L53: 77.51 | M53: 803.94 | O53: 40.76 | P53: 12.56 | Q53: 12.9 | T53: 2026.03 | U53: 张梓恒 汪亚军
A54: Qwen3.5-35B-A3B | B54: 128CU K100_AI | C54: 4 | D54: bfloat16 | E54: 0.15.1 | F54: V1 | G54: 是 | H54: 512 | I54: 512 | J54: 128 | K54: 1823.84 | L54: 110.92 | M54: 1119.74 | O54: 58.53 | P54: 8.75 | Q54: 9.02 | T54: 2026.03 | U54: 张梓恒 汪亚军
A55: Qwen3.5-35B-A3B | B55: 128CU K100_AI | C55: 4 | D55: bfloat16 | E55: 0.15.1 | F55: V1 | G55: 是 | H55: 512 | I55: 512 | J55: 256 | K55: 3242.58 | L55: 167.74 | M55: 1472.39 | O55: 89.02 | P55: 5.75 | Q55: 5.96 | T55: 2026.03 | U55: 张梓恒 汪亚军
A56: Qwen3.5-27B | B56: 128CU K100_AI | C56: 4 | D56: bfloat16 | E56: 0.15.1 | F56: V1 | G56: 否 | H56: 4096 | I56: 1024 | J56: 260 | K56: 205601.19 | L56: 414.6 | M56: 392.81 | O56: 677.78 | P56: 1.51 | Q56: 2.41 | R56: image.sourcefind.cn:5000/dcu/admin/base/custom:pytorch2.9.1-ubuntu22.04-dtk26.04-0130-py3.10-20260204-qwen3_5 | S56: Hygon CPU7490 * 2 /DDR5 5600 64G*24 /480G 2.5 SATA 6Gb R SSD*2 /960G 2.5 SATA 6Gb R SSD*4/7.68T*4/BCM 9560-8i Tri-Mode RAID x1/双口1G RJ45网卡x1/DCU K100-AI （128CU）x8/3200W电源模块*4 | T56: 2026.03 | U56: 张梓恒 | V56: # 海光CPU绑定核 export VLLM_NUMA_BIND=1 export VLLM_RANK0_NUMA=0 export VLLM_RANK1_NUMA=0 export VLLM_RANK2_NUMA=0 export VLLM_RANK3_NUMA=0 export VLLM_RANK4_NUMA=0 export VLLM_RANK5_NUMA=0 export VLLM_RANK6_NUMA=0 export VLLM_RANK7_NUMA=0 export VLLM_ENFORCE_EAGER_BS_THRESHOLD=44 export ALLREDUCE_STREAM_WITH_COMPUTE=1 unset NCCL_ALGO export HSA_FORCE_FINE_GRAIN_PCIE=1 export NCCL_MIN_NCHANNELS=16 export NCCL_MAX_NCHANNELS=16 export NCCL_P2P_LEVEL=SYS export NCCL_LAUNCH_MODE=GROUP export VLLM_ZERO_OVERHEAD=1 export VLLM_ZERO_OPT_ZEROS=1 export NCCL_NET_GDR_READ=1 export HIP_VISIBLE_DEVICES=0,1,2,3,4,5,6,7 export VLLM_SPEC_DECODE_EAGER=1 export VLLM_MLA_DISABLE=0 export VLLM_USE_FLASH_MLA=1 export VLLM_RPC_TIMEOUT=1800000
A57: Qwen3.5-27B | B57: 128CU K100_AI | C57: 4 | D57: bfloat16 | E57: 0.15.1 | F57: V1 | G57: 否 | H57: 4096 | I57: 1024 | J57: 1 | K57: 1277.8 | L57: 48.52 | M57: 20.11 | O57: 50.91 | P57: 20.11 | Q57: 20.61 | T57: 2026.03 | U57: 张梓恒
A58: Qwen3.5-27B | B58: 128CU K100_AI | C58: 4 | D58: bfloat16 | E58: 0.15.1 | F58: V1 | G58: 否 | H58: 4096 | I58: 1024 | J58: 4 | K58: 3663.59 | L58: 47.29 | M58: 78.63 | O58: 52.09 | P58: 19.66 | Q58: 21.15 | T58: 2026.03 | U58: 张梓恒
A59: Qwen3.5-27B | B59: 128CU K100_AI | C59: 4 | D59: bfloat16 | E59: 0.15.1 | F59: V1 | G59: 否 | H59: 4096 | I59: 1024 | J59: 8 | K59: 6414.27 | L59: 52.86 | M59: 135.31 | O59: 60.54 | P59: 16.91 | Q59: 18.92 | T59: 2026.03 | U59: 张梓恒
A60: Qwen3.5-27B | B60: 128CU K100_AI | C60: 4 | D60: bfloat16 | E60: 0.15.1 | F60: V1 | G60: 否 | H60: 4096 | I60: 1024 | J60: 16 | K60: 13633.32 | L60: 86.04 | M60: 161.04 | O60: 101.74 | P60: 10.06 | Q60: 11.62 | T60: 2026.03 | U60: 张梓恒
A61: Qwen3.5-27B | B61: 128CU K100_AI | C61: 4 | D61: bfloat16 | E61: 0.15.1 | F61: V1 | G61: 否 | H61: 4096 | I61: 1024 | J61: 32 | K61: 23047.96 | L61: 91.51 | M61: 280.6 | O61: 116.78 | P61: 8.77 | Q61: 10.93 | T61: 2026.03 | U61: 张梓恒
A62: Qwen3.5-27B | B62: 128CU K100_AI | C62: 4 | D62: bfloat16 | E62: 0.15.1 | F62: V1 | G62: 否 | H62: 4096 | I62: 1024 | J62: 64 | K62: 44677.98 | L62: 124.98 | M62: 379.43 | O62: 172.72 | P62: 5.93 | Q62: 8 | T62: 2026.03 | U62: 张梓恒
A63: Qwen3.5-27B | B63: 128CU K100_AI | C63: 4 | D63: bfloat16 | E63: 0.15.1 | F63: V1 | G63: 否 | H63: 4096 | I63: 1024 | J63: 128 | K63: 87908.04 | L63: 197.56 | M63: 451.33 | O63: 290.41 | P63: 3.53 | Q63: 5.06 | T63: 2026.03 | U63: 张梓恒
A64: Qwen3.5-27B | B64: 128CU K100_AI | C64: 4 | D64: bfloat16 | E64: 0.15.1 | F64: V1 | G64: 否 | H64: 4096 | I64: 1024 | J64: 256 | K64: 174378.62 | L64: 417.82 | M64: 434.75 | O64: 602.98 | P64: 1.7 | Q64: 2.39 | T64: 2026.03 | U64: 张梓恒
A65: Qwen3.5-27B | B65: 128CU K100_AI | C65: 4 | D65: bfloat16 | E65: 0.15.1 | F65: V1 | G65: 否 | H65: 2048 | I65: 512 | J65: 260 | K65: 95715.64 | L65: 364.44 | M65: 433.21 | O65: 307.29 | P65: 1.67 | Q65: 2.74 | T65: 2026.03 | U65: 张梓恒
A66: Qwen3.5-27B | B66: 128CU K100_AI | C66: 4 | D66: bfloat16 | E66: 0.15.1 | F66: V1 | G66: 否 | H66: 2048 | I66: 512 | J66: 1 | K66: 628.76 | L66: 48.27 | M66: 20.24 | O66: 25.29 | P66: 20.24 | Q66: 20.72 | T66: 2026.03 | U66: 张梓恒
A67: Qwen3.5-27B | B67: 128CU K100_AI | C67: 4 | D67: bfloat16 | E67: 0.15.1 | F67: V1 | G67: 否 | H67: 2048 | I67: 512 | J67: 4 | K67: 1919.02 | L67: 46.99 | M67: 78.93 | O67: 25.95 | P67: 19.73 | Q67: 21.28 | T67: 2026.03 | U67: 张梓恒
A68: Qwen3.5-27B | B68: 128CU K100_AI | C68: 4 | D68: bfloat16 | E68: 0.15.1 | F68: V1 | G68: 否 | H68: 2048 | I68: 512 | J68: 8 | K68: 3257 | L68: 51.22 | M68: 139.13 | O68: 29.44 | P68: 17.39 | Q68: 19.52 | T68: 2026.03 | U68: 张梓恒
A69: Qwen3.5-27B | B69: 128CU K100_AI | C69: 4 | D69: bfloat16 | E69: 0.15.1 | F69: V1 | G69: 否 | H69: 2048 | I69: 512 | J69: 16 | K69: 5623.72 | L69: 62.51 | M69: 218.01 | O69: 37.58 | P69: 13.63 | Q69: 16 | T69: 2026.03 | U69: 张梓恒
A70: Qwen3.5-27B | B70: 128CU K100_AI | C70: 4 | D70: bfloat16 | E70: 0.15.1 | F70: V1 | G70: 否 | H70: 2048 | I70: 512 | J70: 32 | K70: 9865.35 | L70: 89.38 | M70: 294.95 | O70: 55.55 | P70: 9.22 | Q70: 11.19 | T70: 2026.03 | U70: 张梓恒
A71: Qwen3.5-27B | B71: 128CU K100_AI | C71: 4 | D71: bfloat16 | E71: 0.15.1 | F71: V1 | G71: 否 | H71: 2048 | I71: 512 | J71: 64 | K71: 18416.29 | L71: 121.81 | M71: 406.17 | O71: 80.68 | P71: 6.35 | Q71: 8.21 | T71: 2026.03 | U71: 张梓恒
A72: Qwen3.5-27B | B72: 128CU K100_AI | C72: 4 | D72: bfloat16 | E72: 0.15.1 | F72: V1 | G72: 否 | H72: 2048 | I72: 512 | J72: 128 | K72: 35467.67 | L72: 191.19 | M72: 492.06 | O72: 133.19 | P72: 3.84 | Q72: 5.23 | T72: 2026.03 | U72: 张梓恒
A73: Qwen3.5-27B | B73: 128CU K100_AI | C73: 4 | D73: bfloat16 | E73: 0.15.1 | F73: V1 | G73: 否 | H73: 2048 | I73: 512 | J73: 256 | K73: 69165.77 | L73: 370.52 | M73: 506.95 | O73: 258.55 | P73: 1.98 | Q73: 2.7 | T73: 2026.03 | U73: 张梓恒
A74: Qwen3.5-27B | B74: 128CU K100_AI | C74: 4 | D74: bfloat16 | E74: 0.15.1 | F74: V1 | G74: 否 | H74: 512 | I74: 512 | J74: 260 | K74: 44204.83 | L74: 239.19 | M74: 694.53 | O74: 191.67 | P74: 2.67 | Q74: 4.18 | T74: 2026.03 | U74: 张梓恒
A75: Qwen3.5-27B | B75: 128CU K100_AI | C75: 4 | D75: bfloat16 | E75: 0.15.1 | F75: V1 | G75: 否 | H75: 512 | I75: 512 | J75: 1 | K75: 227.78 | L75: 48.14 | M75: 20.62 | O75: 24.83 | P75: 20.62 | Q75: 20.77 | T75: 2026.03 | U75: 张梓恒
A76: Qwen3.5-27B | B76: 128CU K100_AI | C76: 4 | D76: bfloat16 | E76: 0.15.1 | F76: V1 | G76: 否 | H76: 512 | I76: 512 | J76: 4 | K76: 475.37 | L76: 46.45 | M76: 63.39 | O76: 24.23 | P76: 15.85 | Q76: 21.53 | T76: 2026.03 | U76: 张梓恒
A77: Qwen3.5-27B | B77: 128CU K100_AI | C77: 4 | D77: bfloat16 | E77: 0.15.1 | F77: V1 | G77: 否 | H77: 512 | I77: 512 | J77: 8 | K77: 716.46 | L77: 46.95 | M77: 103.55 | O77: 24.72 | P77: 12.94 | Q77: 21.3 | T77: 2026.03 | U77: 张梓恒
A78: Qwen3.5-27B | B78: 128CU K100_AI | C78: 4 | D78: bfloat16 | E78: 0.15.1 | F78: V1 | G78: 否 | H78: 512 | I78: 512 | J78: 16 | K78: 930.38 | L78: 47.94 | M78: 140.89 | O78: 25.44 | P78: 8.81 | Q78: 20.86 | T78: 2026.03 | U78: 张梓恒
A79: Qwen3.5-27B | B79: 128CU K100_AI | C79: 4 | D79: bfloat16 | E79: 0.15.1 | F79: V1 | G79: 否 | H79: 512 | I79: 512 | J79: 32 | K79: 2604.74 | L79: 65.55 | M79: 297.78 | O79: 36.11 | P79: 9.31 | Q79: 15.26 | T79: 2026.03 | U79: 张梓恒
A80: Qwen3.5-27B | B80: 128CU K100_AI | C80: 4 | D80: bfloat16 | E80: 0.15.1 | F80: V1 | G80: 否 | H80: 512 | I80: 512 | J80: 64 | K80: 3183.83 | L80: 76.87 | M80: 385.73 | O80: 42.47 | P80: 6.03 | Q80: 13.01 | T80: 2026.03 | U80: 张梓恒
A81: Qwen3.5-27B | B81: 128CU K100_AI | C81: 4 | D81: bfloat16 | E81: 0.15.1 | F81: V1 | G81: 否 | H81: 512 | I81: 512 | J81: 128 | K81: 9211.04 | L81: 137.82 | M81: 822.71 | O81: 79.66 | P81: 6.43 | Q81: 7.26 | T81: 2026.03 | U81: 张梓恒
A82: Qwen3.5-27B | B82: 128CU K100_AI | C82: 4 | D82: bfloat16 | E82: 0.15.1 | F82: V1 | G82: 否 | H82: 512 | I82: 512 | J82: 256 | K82: 17134.66 | L82: 241.7 | M82: 931.69 | O82: 140.68 | P82: 3.64 | Q82: 4.14 | T82: 2026.03 | U82: 张梓恒
A83: Qwen3.5-27B | B83: 128CU K100_AI | C83: 4 | D83: bfloat16 | E83: 0.15.1 | F83: V1 | G83: 是 | H83: 4096 | I83: 1024 | J83: 260 | K83: 303008.93 | L83: 323.29 | M83: 390.64 | O83: 681.55 | P83: 1.5 | Q83: 3.09 | T83: 2026.03 | U83: 张梓恒
A84: Qwen3.5-27B | B84: 128CU K100_AI | C84: 4 | D84: bfloat16 | E84: 0.15.1 | F84: V1 | G84: 是 | H84: 4096 | I84: 1024 | J84: 1 | K84: 162.13 | L84: 49.04 | M84: 20.35 | O84: 50.33 | P84: 20.35 | Q84: 20.39 | T84: 2026.03 | U84: 张梓恒
A85: Qwen3.5-27B | B85: 128CU K100_AI | C85: 4 | D85: bfloat16 | E85: 0.15.1 | F85: V1 | G85: 是 | H85: 4096 | I85: 1024 | J85: 4 | K85: 331.92 | L85: 46.25 | M85: 85.93 | O85: 47.66 | P85: 21.48 | Q85: 21.62 | T85: 2026.03 | U85: 张梓恒
A86: Qwen3.5-27B | B86: 128CU K100_AI | C86: 4 | D86: bfloat16 | E86: 0.15.1 | F86: V1 | G86: 是 | H86: 4096 | I86: 1024 | J86: 8 | K86: 466.77 | L86: 49.75 | M86: 159.47 | O86: 51.37 | P86: 19.93 | Q86: 20.1 | T86: 2026.03 | U86: 张梓恒
A87: Qwen3.5-27B | B87: 128CU K100_AI | C87: 4 | D87: bfloat16 | E87: 0.15.1 | F87: V1 | G87: 是 | H87: 4096 | I87: 1024 | J87: 16 | K87: 740.7 | L87: 58.4 | M87: 270.86 | O87: 60.49 | P87: 16.93 | Q87: 17.12 | T87: 2026.03 | U87: 张梓恒
A88: Qwen3.5-27B | B88: 128CU K100_AI | C88: 4 | D88: bfloat16 | E88: 0.15.1 | F88: V1 | G88: 是 | H88: 4096 | I88: 1024 | J88: 32 | K88: 1305.67 | L88: 77.32 | M88: 407.49 | O88: 80.41 | P88: 12.73 | Q88: 12.93 | T88: 2026.03 | U88: 张梓恒
A89: Qwen3.5-27B | B89: 128CU K100_AI | C89: 4 | D89: bfloat16 | E89: 0.15.1 | F89: V1 | G89: 是 | H89: 4096 | I89: 1024 | J89: 64 | K89: 19458.71 | L89: 116.28 | M89: 472.85 | O89: 138.6 | P89: 7.39 | Q89: 8.6 | T89: 2026.03 | U89: 张梓恒
A90: Qwen3.5-27B | B90: 128CU K100_AI | C90: 4 | D90: bfloat16 | E90: 0.15.1 | F90: V1 | G90: 是 | H90: 4096 | I90: 1024 | J90: 128 | K90: 39166.27 | L90: 176.31 | M90: 596.15 | O90: 219.86 | P90: 4.66 | Q90: 5.67 | T90: 2026.03 | U90: 张梓恒
A91: Qwen3.5-27B | B91: 128CU K100_AI | C91: 4 | D91: bfloat16 | E91: 0.15.1 | F91: V1 | G91: 是 | H91: 4096 | I91: 1024 | J91: 256 | K91: 75634.3 | L91: 375.45 | M91: 569.19 | O91: 460.55 | P91: 2.22 | Q91: 2.66 | T91: 2026.03 | U91: 张梓恒
A92: Qwen3.5-27B | B92: 128CU K100_AI | C92: 4 | D92: bfloat16 | E92: 0.15.1 | F92: V1 | G92: 是 | H92: 2048 | I92: 512 | J92: 260 | K92: 161792.88 | L92: 240.93 | M92: 430.11 | O92: 309.5 | P92: 1.65 | Q92: 4.15 | T92: 2026.03 | U92: 张梓恒
A93: Qwen3.5-27B | B93: 128CU K100_AI | C93: 4 | D93: bfloat16 | E93: 0.15.1 | F93: V1 | G93: 是 | H93: 2048 | I93: 512 | J93: 1 | K93: 124.23 | L93: 47.8 | M93: 20.85 | O93: 24.55 | P93: 20.85 | Q93: 20.92 | T93: 2026.03 | U93: 张梓恒
A94: Qwen3.5-27B | B94: 128CU K100_AI | C94: 4 | D94: bfloat16 | E94: 0.15.1 | F94: V1 | G94: 是 | H94: 2048 | I94: 512 | J94: 4 | K94: 230.14 | L94: 46.19 | M94: 85.89 | O94: 23.84 | P94: 21.47 | Q94: 21.65 | T94: 2026.03 | U94: 张梓恒
A95: Qwen3.5-27B | B95: 128CU K100_AI | C95: 4 | D95: bfloat16 | E95: 0.15.1 | F95: V1 | G95: 是 | H95: 2048 | I95: 512 | J95: 8 | K95: 328.02 | L95: 48.53 | M95: 162.96 | O95: 25.13 | P95: 20.37 | Q95: 20.61 | T95: 2026.03 | U95: 张梓恒
A96: Qwen3.5-27B | B96: 128CU K100_AI | C96: 4 | D96: bfloat16 | E96: 0.15.1 | F96: V1 | G96: 是 | H96: 2048 | I96: 512 | J96: 16 | K96: 441.09 | L96: 55.33 | M96: 285.22 | O96: 28.72 | P96: 17.83 | Q96: 18.07 | T96: 2026.03 | U96: 张梓恒
A97: Qwen3.5-27B | B97: 128CU K100_AI | C97: 4 | D97: bfloat16 | E97: 0.15.1 | F97: V1 | G97: 是 | H97: 2048 | I97: 512 | J97: 32 | K97: 691.66 | L97: 73.2 | M97: 429.97 | O97: 38.1 | P97: 13.44 | Q97: 13.66 | T97: 2026.03 | U97: 张梓恒
A98: Qwen3.5-27B | B98: 128CU K100_AI | C98: 4 | D98: bfloat16 | E98: 0.15.1 | F98: V1 | G98: 是 | H98: 2048 | I98: 512 | J98: 64 | K98: 1380.24 | L98: 90.51 | M98: 687.3 | O98: 47.68 | P98: 10.74 | Q98: 11.05 | T98: 2026.03 | U98: 张梓恒
A99: Qwen3.5-27B | B99: 128CU K100_AI | C99: 4 | D99: bfloat16 | E99: 0.15.1 | F99: V1 | G99: 是 | H99: 2048 | I99: 512 | J99: 128 | K99: 3023.6 | L99: 128.63 | M99: 952.64 | O99: 68.79 | P99: 7.44 | Q99: 7.77 | T99: 2026.03 | U99: 张梓恒
A100: Qwen3.5-27B | B100: 128CU K100_AI | C100: 4 | D100: bfloat16 | E100: 0.15.1 | F100: V1 | G100: 是 | H100: 2048 | I100: 512 | J100: 256 | K100: 34234.68 | L100: 306.2 | M100: 686.84 | O100: 190.83 | P100: 2.68 | Q100: 3.27 | T100: 2026.03 | U100: 张梓恒
A101: Qwen3.5-27B | B101: 128CU K100_AI | C101: 4 | D101: bfloat16 | E101: 0.15.1 | F101: V1 | G101: 是 | H101: 512 | I101: 512 | J101: 260 | K101: 56015.94 | L101: 208.52 | M101: 714.53 | O101: 186.3 | P101: 2.75 | Q101: 4.8 | T101: 2026.03 | U101: 张梓恒
A102: Qwen3.5-27B | B102: 128CU K100_AI | C102: 4 | D102: bfloat16 | E102: 0.15.1 | F102: V1 | G102: 是 | H102: 512 | I102: 512 | J102: 1 | K102: 122.24 | L102: 48.41 | M102: 20.59 | O102: 24.86 | P102: 20.59 | Q102: 20.66 | T102: 2026.03 | U102: 张梓恒
A103: Qwen3.5-27B | B103: 128CU K100_AI | C103: 4 | D103: bfloat16 | E103: 0.15.1 | F103: V1 | G103: 是 | H103: 512 | I103: 512 | J103: 4 | K103: 283.7 | L103: 45.63 | M103: 86.72 | O103: 23.62 | P103: 21.68 | Q103: 21.92 | T103: 2026.03 | U103: 张梓恒
A104: Qwen3.5-27B | B104: 128CU K100_AI | C104: 4 | D104: bfloat16 | E104: 0.15.1 | F104: V1 | G104: 是 | H104: 512 | I104: 512 | J104: 8 | K104: 410.64 | L104: 48.32 | M104: 163.11 | O104: 25.11 | P104: 20.39 | Q104: 20.7 | T104: 2026.03 | U104: 张梓恒
A105: Qwen3.5-27B | B105: 128CU K100_AI | C105: 4 | D105: bfloat16 | E105: 0.15.1 | F105: V1 | G105: 是 | H105: 512 | I105: 512 | J105: 16 | K105: 637.57 | L105: 56.87 | M105: 275.76 | O105: 29.71 | P105: 17.23 | Q105: 17.58 | T105: 2026.03 | U105: 张梓恒
A106: Qwen3.5-27B | B106: 128CU K100_AI | C106: 4 | D106: bfloat16 | E106: 0.15.1 | F106: V1 | G106: 是 | H106: 512 | I106: 512 | J106: 32 | K106: 1185.84 | L106: 74.58 | M106: 416.8 | O106: 39.31 | P106: 13.03 | Q106: 13.41 | T106: 2026.03 | U106: 张梓恒
A107: Qwen3.5-27B | B107: 128CU K100_AI | C107: 4 | D107: bfloat16 | E107: 0.15.1 | F107: V1 | G107: 是 | H107: 512 | I107: 512 | J107: 64 | K107: 2148.86 | L107: 91.44 | M107: 670.32 | O107: 48.88 | P107: 10.47 | Q107: 10.94 | T107: 2026.03 | U107: 张梓恒
A108: Qwen3.5-27B | B108: 128CU K100_AI | C108: 4 | D108: bfloat16 | E108: 0.15.1 | F108: V1 | G108: 是 | H108: 512 | I108: 512 | J108: 128 | K108: 2933.19 | L108: 126 | M108: 973.21 | O108: 67.34 | P108: 7.6 | Q108: 7.94 | T108: 2026.03 | U108: 张梓恒
A109: Qwen3.5-27B | B109: 128CU K100_AI | C109: 4 | D109: bfloat16 | E109: 0.15.1 | F109: V1 | G109: 是 | H109: 512 | I109: 512 | J109: 256 | K109: 5385.36 | L109: 212.25 | M109: 1150.68 | O109: 113.91 | P109: 4.49 | Q109: 4.71 | T109: 2026.03 | U109: 张梓恒
